{"text_format":"1","workbook":"xlsx","n_sheets":80,"sheets":["modList00","Инструкция","Лог обновления","Титульный","Территории","Перечень тарифов","Форма 1.0.1 | Т-ТЭ | >=25МВт","Форма 4.10.2 | Т-ТЭ | >=25МВт","Форма 1.0.1 | Т-ТЭ | ТСО","Форма 4.10.2 | Т-ТЭ | ТСО","Форма 1.0.1 | Т-ТЭ | потр","Форма 4.10.2 | Т-ТЭ | потр","Форма 1.0.1 | Т-ТЭ | предел","Форма 4.10.2 | Т-ТЭ | предел","Форма 1.0.1 | Т-ТЭ | индикат","Форма 4.10.2 | Т-ТЭ | индикат","Форма 1.0.1 | Резерв мощности","Форма 4.10.2 | Резерв мощности","Форма 1.0.1 | Т-ТН","Форма 4.10.3 | Т-ТН","Форма 1.0.1 | Т-передача ТЭ","Форма 4.10.3 | Т-передача ТЭ","Форма 1.0.1 | Т-передача ТН","Форма 4.10.3 | Т-передача ТН","Форма 1.0.1 | Т-гор.вода","Форма 4.10.4 | Т-гор.вода","Форма 1.0.1 | Т-подкл","Форма 4.10.5 | Т-подкл","Форма 1.0.1 | Т-подкл(инд)","Форма 4.10.6 | Т-подкл(инд)","Форма 1.0.1 | Форма 4.9","Форма 4.9","Форма 1.0.1 | Форма 4.10.1","Форма 4.10.1","Форма 1.0.2","Сведения об изменении","Комментарии","Проверка","et_union_hor","TEHSHEET","modList14_1","modList13","modListTempFilter","modCheckCyan","REESTR_LINK","REESTR_DS","modHTTP","modfrmRezimChoose","modSheetMain","REESTR_VT","REESTR_VED","modfrmReestrObj","AllSheetsInThisWorkbook","et_union_vert","modInstruction","modRegion","modReestr","modfrmReestr","modUpdTemplMain","REESTR_ORG","modClassifierValidate","modProv","modHyp","modServiceModule","modList01","modList02","modList03","REESTR_MO_FILTER","REESTR_MO","modInfo","modList05","modList06","modList07","modList11","modList12","modfrmDateChoose","modComm","modThisWorkbook","modfrmReestrMR","modfrmCheckUpdates"],"not_rendered":{"charts":0,"images":20,"macros":1,"external_links":0,"defined_names":831,"comments":0,"pivot_tables":0},"unopened":[],"bounds":{"document_bytes":16777216,"sheet_cells":100000,"rows_first":2000,"rows_last":500,"rows_between":2000,"halvings":0,"cell_chars":16384,"cell_head_chars":4096},"cells_cut":0,"cells_raw":0,"read":"whole","date_system":"1900"}

{"sheet":"modList00","index":0,"n_rows":0,"n_cols":0,"rows_kept":0,"cut":false,"hidden":true,"merged":[]}

{"sheet":"Инструкция","index":1,"n_rows":102,"n_cols":27,"rows_kept":102,"cut":false,"hidden":false,"merged":[[1,1,1,6],[2,1,2,2],[6,4,18,23],[22,15,22,22],[57,4,57,20],[4,1,4,24],[40,4,44,23],[20,5,20,12],[20,15,20,23],[21,15,21,23],[34,4,38,23],[21,5,21,12],[39,4,39,23],[101,5,101,23],[99,5,99,18],[81,4,81,6],[97,4,97,23],[80,4,80,20],[83,7,83,23],[59,7,59,23],[81,7,81,23],[45,4,56,23],[69,4,69,19],[59,4,59,6],[58,7,58,23],[58,4,58,6],[70,4,70,19],[60,7,60,23]]}
[null,null,null,null,null,null,null,null,null,null,null,null,null,null,null,null,null,null,null,null,null,null,null,null,null,null," (требуется обновление)"]
[null,{"$f":"\"Код отчёта: \" & GetCode()","v":"Код отчёта: FAS.JKH.OPEN.INFO.REQUEST.WARM"}]
[null,{"$f":"\"Версия \" & GetVersion()","v":"Версия 1.0.2"}]
[]
[null,"Предложение регулируемой организации об установлении тарифов в сфере теплоснабжения (цены и тарифы), информация о способах приобретения, стоимости и объемах товаров, необходимых для производства регулируемых товаров и (или) оказания регулируемых услуг"]
[]
[null,null,null,null,"• На рабочем месте должен быть установлен MS Office 2007 SP3, 2010, 2013, 2016 с полной версией MS Excel\n\n• Макросы во время работы должны быть включены (!)\n\n• Для корректной работы отчёта требуется выбрать низкий уровень безопасности\n(В меню MS Excel 2007/2010/2013/2016: Параметры Excel | Центр управления безопасностью | Параметры центра управления безопасностью | Параметры макросов | Включить все макросы | ОК)\n\n• Если Вы работаете в табличном процессоре MS Excel 2007 и выше, то можете использовать для работы формат XLSB (Двоичная книга Excel). При работе в формате XLSB заметно быстрее происходит сохранение файла, а также уменьшается размер по сравнению с форматами XLS и XLSM\n\n• Не рекомендуется снимать защиту с листов и каким-либо образом модифицировать защищаемые формулы и расчётные поля, в противном случае, отчёт будет отклонён системой\n\n• При сохранении не следует выбирать формат XLSX (Книга Excel), так как в указанном формате макросы, необходимые для работы отчёта, безвозвратно удаляются"]
[]
[]
[]
[]
[]
[]
[]
[]
[]
[]
[]
[]
[]
[null,null,null,null,"A"," - необязательные для заполнения",null,null,null,null,null,null,null,null,"A"," - с формулами и константами"]
[null,null,null,null,"A"," - обязательные для заполнения",null,null,null,null,null,null,null,null,"A"," - с выбором значений по двойному клику"]
[]
[]
[]
[]
[]
[]
[]
[]
[]
[]
[]
[]
[null,null,null,null,"Если в предложенном Вам списке необходимая организация, МР/МО отсутствуют, обновите реестры с помощью кнопок\n\nВ результате синхронизации с базой данных список организаций (МР/МО) будет заменён актуальным (механизм синхронизации требует подключения к сети Интернет и основан на использовании протокола HTTPS (TCP порт 443))\n\nЕсли после обновления Вам не удалось найти необходимую организацию в списке, обратитесь к ответственному за поддержание реестра Вашего региона."]
[]
[]
[]
[]
[]
[]
[]
[]
[]
[]
[null,null,null,null,"• При сохранении шаблона осуществляется проверка корректности данных, в том числе на наличие значений в ячейках, обязательных для заполнения\n\n• Если какая-то ячейка не удовлетворяет условию проверки, на лист «Проверка» добавляется гиперссылка на данную ячейку и указывается причина ошибки\n\n• В колонке «Статус» для каждого сообщения возможны 2 значения: ошибка и предупреждение\n\n• При наличии сообщений со статусом «Ошибка» шаблон будет отклонён системой и не будет загружен в хранилище данных, сообщения со статусом «Предупреждение» носят информационный характер, и такой шаблон будет принят системой"]
[]
[]
[]
[]
[]
[]
[]
[]
[]
[]
[]
[null,null,null,null,"Обратиться за помощью в службу технической поддержки"]
[]
[]
[]
[]
[]
[]
[]
[]
[]
[]
[]
[null,null,null,null,"Инструкция по загрузке сопроводительных материалов"]
[null,null,null,null,"Инструкция по работе с отчетной формой"]
[]
[]
[]
[]
[]
[]
[]
[]
[]
[null,null,null,null,"Обратиться за помощью в службу технической поддержки"]
[]
[]
[]
[]
[]
[]
[]
[]
[]
[]
[]
[]
[]
[]
[]
[]
[null,null,null,null,"При наличии подключения к Интернет, можно автоматически проверять наличие доступных обновлений. Выберите способ оповещения о наличии обновлений для отчёта:"]
[]
[null,null,null,null,null,"проверять доступные обновления (рекомендуется)",null,null,null,null,null,null,null,null,null,null,null,null,null,null,null,null,null,null,null,null,"y"]
[]
[null,null,null,null,null,"никогда не проверять наличие обновлений (не рекомендуется)"]

{"sheet":"Лог обновления","index":2,"n_rows":9,"n_cols":3,"rows_kept":9,"cut":false,"hidden":true,"merged":[]}
["Дата/Время","Сообщение","Статус"]
["2021-05-07T10:06:23","Проверка доступных обновлений...","Информация"]
["2021-05-07T10:06:24","Нет доступных обновлений для отчёта с кодом FAS.JKH.OPEN.INFO.REQUEST.WARM!","Информация"]
["2021-05-07T10:06:56","Проверка доступных обновлений...","Информация"]
["2021-05-07T10:06:57","Нет доступных обновлений для отчёта с кодом FAS.JKH.OPEN.INFO.REQUEST.WARM!","Информация"]
["2021-05-07T10:08:07","Проверка доступных обновлений...","Информация"]
["2021-05-07T10:08:08","Нет доступных обновлений для отчёта с кодом FAS.JKH.OPEN.INFO.REQUEST.WARM!","Информация"]
["2021-05-07T10:57:12","Проверка доступных обновлений...","Информация"]
["2021-05-07T10:57:13","Нет доступных обновлений для отчёта с кодом FAS.JKH.OPEN.INFO.REQUEST.WARM!","Информация"]

{"sheet":"Титульный","index":3,"n_rows":48,"n_cols":6,"rows_kept":48,"cut":false,"hidden":false,"merged":[[4,4,4,5],[53,4,53,8],[47,4,47,5]]}
[null,null,null,null,null,27517472]
[null,null,null,null,{"$f":"\"Код шаблона: \" & GetCode()","v":"Код шаблона: FAS.JKH.OPEN.INFO.REQUEST.WARM"}]
[null,null,null,null,{"$f":"\"Версия \" & GetVersion()","v":"Версия 1.0.2"}]
[]
[null,null,null,null,"Предложение регулируемой организации об установлении тарифов в сфере теплоснабжения (цены и тарифы), информация о способах приобретения, стоимости и объемах товаров, необходимых для производства регулируемых товаров и (или) оказания регулируемых услуг*"]
[]
[null,null,null,null,"Субъект РФ","Ленинградская область"]
[]
[null,null,null,null,"Отсутствует Интернет в границах территории МО, где организация осуществляет регулируемые виды деятельности","нет"]
[]
[null,null,null,null,"Начало периода регулирования","01.01.2022"]
[null,null,null,null,"Окончание периода регулирования","31.12.2022"]
[]
[null,null,null,null,"Тип отчета","первичное раскрытие информации"]
[null,null,null,null,"Дата внесения изменений в информацию, подлежащую раскрытию","07.05.2021"]
[null,null,null,null,"Дата периода регулирования, с которой вводятся изменения в тарифы"]
[null,null,null,null,null,"Первичное предложение по тарифам"]
[]
[null,null,null,null,"Дата подачи заявления об утверждении тарифов","29.04.2021"]
[null,null,null,null,"Номер подачи заявления об утверждении тарифов","520"]
[]
[null,null,null,null,null,"Изменение тарифов"]
[]
[null,null,null,null,"Дата подачи заявления об изменении тарифов"]
[null,null,null,null,"Номер заявления об изменении тарифов"]
[]
[]
[null,null,null,null,"Является ли данное юридическое лицо подразделением (филиалом) другой организации","нет"]
[null,null,null,null,"Наименование организации","ООО \"Энергогазмонтаж\""]
[null,null,null,null,"Наименование филиала"]
[null,null,null,null,"ИНН","7806119950"]
[null,null,null,null,"КПП","781301001"]
[]
[null,null,null,null,"Тип теплоснабжающей организации","Регулируемая организация"]
[]
[null,null,null,null,"Режим налогообложения","общий"]
[]
[]
[]
[null,null,null,null,"Почтовый адрес регулируемой организации","СПБ, ул. Демьяна Бедного,27 к.2."]
[null,null,null,null,"Фамилия, имя, отчество руководителя","О.В. Кудрявцев"]
[null,null,null,null,null,"Ответственный за заполнение формы"]
[null,null,null,null,"Фамилия, имя, отчество","Трунцева Д.В."]
[null,null,null,null,"Должность","Специалист по тарифообразованию"]
[null,null,null,null,"Контактный телефон","8 (812)329-55-22"]
[null,null,null,null,"E-mail","Truntsea@elso.ru"]
[]
[null,null,null,"*","Информация о способах приобретения, стоимости и объемах товаров, необходимых для производства регулируемых товаров и (или) оказания регулируемых услуг регулируемых организаций, публикуется по форме 4.2 едиными теплоснабжающими организациями, теплоснабжающими организациями и теплосетевыми организациями в ценовых зонах теплоснабжения позднее 30 календарных дней со дня направления годового бухгалтерского баланса в налоговые органы с учетом положений пункта 30 постановления Правительства №570 от 5 июля 2013 г."]

{"sheet":"Территории","index":4,"n_rows":15,"n_cols":18,"rows_kept":15,"cut":false,"hidden":false,"merged":[[8,5,8,6],[8,8,8,9],[9,5,9,6],[9,8,9,9],[3,3,3,7],[5,3,5,4],[5,5,5,6],[7,3,7,4],[7,8,7,11],[7,5,7,7],[12,7,13,7],[11,2,13,2],[11,3,13,3],[11,4,13,4],[12,5,13,5],[12,6,13,6]]}
[null,null,null,null,null,null,null,null,null,null,"МО","ОКТМО","МР"]
[]
[]
[null,null,null,"Перечень муниципальных районов и муниципальных образований (территорий действия тарифа)"]
[]
[null,null,null,null,null,"да"]
[]
[null,null,null,"Территория действия тарифа",null,"Муниципальный район",null,null,"Муниципальное образование"]
[null,null,null,"№ п/п","Наименование","№ п/п",null,"Наименование","№ п/п",null,"Наименование","ОКТМО"]
[null,null,null,"1","2","3",null,"4","5",null,"6","7"]
[null,null,null,0,null,null,null,null,null,null,null,null,"размерженный МР",null,null,"флаг используемости территории на листе Перечень тарифов","копия территорий","МР (ОКТМО)"]
[null,"auto",null,1,"Всеволожский муниципальный район, Заневское (41612155);",null,0,null,null,"0",null,null,{"$f":"mergeValue(H12)","v":0},null,null,{"$f":"IF(ISERROR(MATCH(Q12,MODesc,0)),\"n\",\"y\")","v":"n"},"Всеволожский муниципальный район, Заневское (41612155);",{"$f":"K12&\"(\"&L12&\")\"","v":"()"}]
[null,"auto",null,null,null,null,1,"Всеволожский муниципальный район",null,"0",null,null,{"$f":"mergeValue(H13)","v":"Всеволожский муниципальный район"},null,null,null,null,{"$f":"K13&\"(\"&L13&\")\"","v":"()"}]
[null,"auto",null,null,null,null,null,null,null,1,"Заневское","41612155",{"$f":"mergeValue(H14)","v":"Всеволожский муниципальный район"},null,null,null,null,{"$f":"K14&\" (\"&L14&\")\"","v":"Заневское (41612155)"}]
[null,"man",null,null,null,null,null,null,null,null,null,null,null,null,null,null,"Добавить территорию действия тарифа"]

{"sheet":"Перечень тарифов","index":5,"n_rows":40,"n_cols":23,"rows_kept":40,"cut":false,"hidden":false,"merged":[[37,4,37,22],[38,4,38,22],[39,4,39,22],[31,4,31,22],[32,4,32,22],[33,4,33,22],[34,4,34,22],[7,6,7,9],[16,9,17,9],[18,7,18,8],[18,11,18,12],[35,4,35,22],[18,15,18,16],[16,22,17,22],[16,14,16,17],[16,10,16,13],[18,19,18,20],[16,18,16,21],[17,19,17,20],[17,11,17,12],[17,15,17,16],[20,8,23,8],[20,9,23,9],[4,3,4,9],[16,3,17,3],[16,4,17,4],[12,4,12,5],[8,6,8,9],[5,3,5,9],[7,4,7,5],[8,4,8,5],[9,4,9,5],[6,4,6,5],[16,5,17,5],[11,4,11,5],[10,4,10,5],[6,6,6,9],[16,6,17,6],[16,7,17,8],[20,3,24,3],[20,4,24,4],[20,5,24,5],[20,6,24,6],[20,7,23,7],[20,15,21,15],[20,16,21,16],[20,17,21,17],[20,18,21,18],[20,10,23,10],[20,11,22,11],[20,12,22,12],[20,13,22,13],[20,14,22,14]]}
[]
[]
[]
[]
[null,null,null,"Перечень тарифов и технологически не связанных между собой систем теплоснабжения, в отношении которых предлагаются различные тарифы в сфере теплоснабжения и горячего водоснабжения с использованием открытых систем теплоснабжения (информация раскрывается отдельно по каждой системе теплоснабжения)"]
[]
[]
[]
[]
[]
[null,null,null,null,"Тариф на горячую воду предлагается с (!) разбивкой по поставщикам",null,"нет"]
[null,null,null,null,"Тариф на горячую воду предлагается без (!) разбивки на компоненты",null,"нет"]
[]
[]
[]
[]
[null,null,null,"№ п/п","Вид тарифа","Вид деятельности","Наличие двухставочного тарифа","№ п/п",null,"Наименование тарифа","Дифференциация по\n МО (территориям)",null,null,null,"Дифференциация по \nцентрализованным системам теплоснабжения",null,null,null,"Дифференциация по источникам тепловой энергии",null,null,null,"Примечание"]
[null,null,null,null,null,null,null,null,null,null,"да/нет","№ п/п",null,"Описание","да/нет","№ п/п",null,"Описание","да/нет","№ п/п",null,"Наименование"]
[null,null,null,"1","2","3","4","5",null,"6","7","8",null,"9","10","11",null,"12","11","12",null,"13","14"]
[null,null,null,0]
[13,null,null,1,"Тарифы на тепловую энергию (мощность), поставляемую потребителям теплоснабжающими организациями в соответствии с установленными предельными (минимальными и (или) максимальными) уровнями указанных тарифов","Производство тепловой энергии. Некомбинированная выработка","нет",null,1,"Тариф на производство ТЭ","нет",null,"1",null,"нет",null,"1",null,"нет",null,"1"]
[]
[]
[]
[]
[]
[]
[]
[]
[]
[]
[null,null,null,null,"Информация о регулируемых ценах (тарифах) на товары (услуги) единой теплоснабжающей организации в ценовых зонах теплоснабжения включает сведения:"]
[null,null,null,null,"- о предельном уровне цены на тепловую энергию (мощность), поставляемую потребителям, об индикативном предельном уровне цены на тепловую энергию (мощность) и о графике поэтапного равномерного доведения предельного уровня цены на тепловую энергию (мощность) (при наличии), определяемых в соответствии с Правилами определения в ценовых зонах теплоснабжения предельного уровня цены на тепловую энергию (мощность), включая правила индексации предельного уровня цены на тепловую энергию (мощность), утвержденными ПП РФ от 15 декабря 2017 г. № 1562 \"Об определении в ценовых зонах теплоснабжения предельного уровня цены на тепловую энергию (мощность), включая индексацию предельного уровня цены на тепловую энергию (мощность), и технико-экономических параметров работы котельных и тепловых сетей, используемых для расчета предельного уровня цены на тепловую энергию (мощность)\";"]
[null,null,null,null,"- о тарифах на теплоноситель в виде воды, поставляемый единой теплоснабжающей организацией потребителям и теплоснабжающими организациями другим теплоснабжающим организациям с использованием открытых систем теплоснабжения (горячего водоснабжения), за исключением случая, предусмотренного пунктом 6 части 1 статьи 23.4 ФЗ \"О теплоснабжении\";"]
[null,null,null,null,"- о тарифах на горячую воду, поставляемую единой теплоснабжающей организацией потребителям с использованием открытых систем теплоснабжения (горячего водоснабжения), установленных в виде формулы двухкомпонентного тарифа с использованием компонента на теплоноситель и компонента на тепловую энергию, в том числе о числовых значениях компонентов указанного тарифа;"]
[null,null,null,null,"- о плате за подключение (технологическое присоединение) к системе теплоснабжения, применяемой в случае, установленном частью 9 статьи 23.4 ФЗ \"О теплоснабжении\"."]
[]
[null,null,null,null,"Информация о регулируемых ценах (тарифах) на товары (услуги) теплоснабжающей организации и теплосетевой организации в ценовых зонах теплоснабжения включает сведения:"]
[null,null,null,null,"- о тарифах на теплоноситель в виде воды, поставляемый другим теплоснабжающим организациям с использованием открытых систем теплоснабжения (горячего водоснабжения), за исключением случая, предусмотренного пунктом 6 части 1 статьи 23.4 ФЗ \"О теплоснабжении\";"]
[null,null,null,null,"- о тарифах на товары (услуги) в сфере теплоснабжения в случаях, указанных в частях 12.1 - 12.4 статьи 10 ФЗ \"О теплоснабжении\""]

{"sheet":"Форма 1.0.1 | Т-ТЭ | >=25МВт","index":6,"n_rows":19,"n_cols":10,"rows_kept":19,"cut":false,"hidden":true,"merged":[[18,6,18,7],[1,5,1,7],[3,5,3,7],[3,8,4,8],[7,0,15,0],[10,1,14,1],[11,2,13,2],[12,8,13,8]]}
["1"]
[null,null,null,null,null,"Форма 1.0.1 Основные параметры раскрываемой информации 1"]
[]
[null,null,null,null,null,"Параметры формы",null,null,"Описание параметров формы"]
[null,null,null,null,null,"№ п/п","Наименование параметра","Информация"]
[null,null,null,null,null,"1",2,3,4,4]
[null,null,null,null,null,1,"Дата заполнения/внесения изменений",{"$f":"IF(dateCh=\"\",\"\",dateCh)","v":"07.05.2021"},"Указывается календарная дата первичного заполнения или внесения изменений в форму в виде «ДД.ММ.ГГГГ»."]
[1,null,null,null,null,{"$f":"\"2.\" &mergeValue(A8)","v":"2.1"},"Наименование централизованной системы коммунальной инфраструктуры",null,"Указывается наименование централизованной системы холодного водоснабжения/горячего водоснабжения/водоотведения/теплоснабжения, к которой относится размещаемая информация.\nВ случае наличия нескольких централизованных систем коммунальной инфраструктуры, информация по каждой из них указывается в отдельной строке."]
[null,null,null,null,null,{"$f":"\"3.\" &mergeValue(A9)","v":"3.1"},"Наименование регулируемого вида деятельности",null,"Указывается наименование вида регулируемой деятельности."]
[null,null,null,null,null,{"$f":"\"4.\"&mergeValue(A10)","v":"4.1"},"Территория оказания услуги по регулируемому виду деятельности","x"]
[null,1,null,null,null,{"$f":"\"4.\"&mergeValue(A11) &\".\"&mergeValue(B11)","v":"4.1.1"},"Субъект Российской Федерации",{"$f":"IF(region_name=\"\",\"\",region_name)","v":"Ленинградская область"},"Указывается наименование субъекта Российской Федерации"]
[null,null,1,null,null,{"$f":"\"4.\"&mergeValue(A12) &\".\"&mergeValue(B12)&\".\"&mergeValue(C12)","v":"4.1.1.1"},"муниципальный район",null,"Указывается наименование муниципального района, на территории которого организация оказывает услуги по регулируемому виду деятельности."]
[null,null,null,1,null,{"$f":"\"4.\"&mergeValue(A13) &\".\"&mergeValue(B13)&\".\"&mergeValue(C13)&\".\"&mergeValue(D13)","v":"4.1.1.1.1"},"муниципальное образование",null,"Указывается наименование и код муниципального района, муниципального образования в соответствии с Общероссийским классификатором территорий муниципальных образований (далее - ОКТМО), входящего в муниципальный район, на территории которого организация оказывает услуги по регулируемому виду деятельности.\nВ случае оказания услуг по регулируемому виду деятельности на территории нескольких муниципальных районов (муниципальных образований) данные по каждому их них указываются в отдельной строке."]
[null,null,null,null,null,null,"Добавить МО"]
[null,null,null,null,null,null,"Добавить МР"]
[null,null,null,null,null,null,"Добавить территорию"]
[null,null,null,null,null,null,"Добавить ЦС"]
[]
[null,null,null,null,null,null,"  1 Информация размещается при раскрытии информации по каждой из форм."]

{"sheet":"Форма 4.10.2 | Т-ТЭ | >=25МВт","index":7,"n_rows":34,"n_cols":26,"rows_kept":34,"cut":false,"hidden":true,"merged":[[33,12,33,22],[23,22,25,22],[6,14,6,19],[7,14,7,19],[8,14,8,19],[9,14,9,19],[11,14,11,20],[12,22,15,22],[15,18,15,19],[13,21,15,21],[12,11,12,21],[13,11,15,11],[13,12,15,12],[13,14,13,19],[14,15,14,16],[14,14,15,14],[14,17,14,19],[13,20,15,20],[23,19,24,19],[23,20,24,20],[4,11,4,19],[10,11,10,12],[16,18,16,19],[21,8,26,8],[22,9,25,9],[17,0,30,0],[17,14,17,21],[18,1,29,1],[18,14,18,21],[19,2,28,2],[19,14,19,21],[20,3,27,3],[20,14,20,21],[21,4,26,4],[21,14,21,21],[22,5,25,5],[22,14,22,21],[23,17,24,17],[23,18,24,18]]}
[]
[]
[]
[]
[null,null,null,null,null,null,null,null,null,null,null,"Форма 4.10.2 Информация о предложении величин тарифов на тепловую энергию, поддержанию резервной тепловой мощности1"]
[]
[]
[null,null,null,null,null,null,null,null,null,null,null,null,{"$f":"\"Дата подачи заявления об \"&IF(datePr_ch=\"\",\"утверждении\",\"изменении\") & \" тарифов\"","v":"Дата подачи заявления об утверждении тарифов"},null,{"$f":"IF(datePr_ch=\"\",IF(datePr=\"\",\"\",datePr),datePr_ch)","v":"29.04.2021"}]
[null,null,null,null,null,null,null,null,null,null,null,null,{"$f":"\"Номер подачи заявления об \"&IF(numberPr_ch=\"\",\"утверждении\",\"изменении\") & \" тарифов\"","v":"Номер подачи заявления об утверждении тарифов"},null,{"$f":"IF(numberPr_ch=\"\",IF(numberPr=\"\",\"\",numberPr),numberPr_ch)","v":"520"}]
[]
[null,null,null,null,null,null,null,null,null,null,null,null,null,null,null,null,null,null,null,null,"dp"]
[]
[null,null,null,null,null,null,null,null,null,null,null,"Параметры формы",null,null,null,null,null,null,null,null,null,null,"Описание параметров формы"]
[null,null,null,null,null,null,null,null,null,null,null,"№ п/п","Параметр дифференциации тарифа",null,"Период действия тарифа",null,null,null,null,null,"Наличие других периодов действия тарифа","Добавить период"]
[null,null,null,null,null,null,null,null,null,null,null,null,null,null,"Одноставочный тариф, руб./Гкал","Двухставочный тариф",null,"Период действия"]
[null,null,null,null,null,null,null,null,null,null,null,null,null,null,null,"ставка за тепловую  энергию, руб./Гкал","ставка за содержание тепловой мощности, тыс.руб./Гкал/ч/мес","дата начала","дата окончания"]
[null,null,null,null,null,null,null,null,null,null,1,"1","2",{"$f":"OFFSET(N17,0,-1)","v":"2"},{"$f":"OFFSET(O17,0,-1)+1","v":3},{"$f":"OFFSET(P17,0,-1)+1","v":4},{"$f":"OFFSET(Q17,0,-1)+1","v":5},{"$f":"OFFSET(R17,0,-1)+1","v":6},{"$f":"OFFSET(S17,0,-1)+1","v":7},null,{"$f":"OFFSET(U17,0,-2)+1","v":8},{"$f":"OFFSET(V17,0,-1)","v":8},{"$f":"OFFSET(W17,0,-1)+1","v":9}]
[1,null,null,null,null,null,null,null,null,null,null,{"$f":"mergeValue(A18)","v":1},"Наименование тарифа",null,null,null,null,null,null,null,null,null,"Указывается наименование тарифа в случае подачи предложения по нескольким тарифам.\nВ случае наличия нескольких тарифов информация по ним указывается в отдельных строках.",null,null,{"$f":"IF(M18=\"\",\"\",M18 )","v":"Наименование тарифа"}]
[null,1,null,null,null,null,null,null,null,null,null,{"$f":"mergeValue(A19) &\".\"& mergeValue(B19)","v":"1.1"},"Территория действия тарифа",null,null,null,null,null,null,null,null,null,"Указывается наименование территории действия тарифа при наличии дифференциации тарифа по территориальному признаку.\nВ случае дифференциации тарифов по территориальному признаку информация по ним указывается в отдельных строках.",null,null,"Территория действия тарифа"]
[null,null,1,null,null,null,null,null,null,null,null,{"$f":"mergeValue(A20) &\".\"& mergeValue(B20)&\".\"& mergeValue(C20)","v":"1.1.1"},"Наименование системы теплоснабжения ",null,null,null,null,null,null,null,null,null,"Указывается наименование системы теплоснабжения при наличии дифференциации тарифа по системам теплоснабжения.\nВ случае дифференциации тарифов по системам теплоснабжения информация по ним указывается в отдельных строках.",null,null,"Наименование системы теплоснабжения "]
[null,null,null,1,null,null,null,null,null,null,null,{"$f":"mergeValue(A21) &\".\"& mergeValue(B21)&\".\"& mergeValue(C21)&\".\"& mergeValue(D21)","v":"1.1.1.1"},"Источник тепловой энергии  ",null,null,null,null,null,null,null,null,null,"Указывается наименование источника тепловой энергии\nВ случае дифференциации тарифов по источникам тепловой энергии информация по ним указывается в отдельных строках.",null,null,"Источник тепловой энергии  "]
[null,null,null,null,1,null,null,1,1,null,null,{"$f":"mergeValue(A22) &\".\"& mergeValue(B22)&\".\"& mergeValue(C22)&\".\"& mergeValue(D22)&\".\"& mergeValue(E22)","v":"1.1.1.1.1"},"Схема подключения теплопотребляющей установки к коллектору источника тепловой энергии",null,null,null,null,null,null,null,null,null,"Указывается схема подключения теплопотребляющей установки к коллектору источника тепловой энергии только для тарифов на тепловую энергию и за услуги по поддержанию резервной мощности.\nЗначение выбирается из перечня: Без дифференциации; к коллектору источника тепловой энергии; к тепловой сети без дополнительного преобразования на тепловых пунктах, эксплуатируемых теплоснабжающей организацией; к тепловой сети после тепловых пунктов (на тепловых пунктах), эксплуатируемых теплоснабжающей организацией.\nВ случае дифференциации тарифов по схемам подключения теплопотребляющей установки к коллектору источника тепловой энергии информация по ним указывается в отдельных строках.",null,null,"Схема подключения теплопотребляющей установки к коллектору источника тепловой энергии"]
[null,null,null,null,null,1,null,null,null,1,null,{"$f":"mergeValue(A23) &\".\"& mergeValue(B23)&\".\"& mergeValue(C23)&\".\"& mergeValue(D23)&\".\"& mergeValue(E23)&\".\"& mergeValue(F23)","v":"1.1.1.1.1.1"},"Группа потребителей",null,null,null,null,null,null,null,null,null,"Указывается группа потребителей при наличии дифференциации тарифа по группам потребителей.\nЗначение выбирается из перечня: Организации-перепродавцы; Бюджетные организации; Население; Прочие; Без дифференциации.\nВ случае дифференциации тарифов группам потребителей информация по ним указывается в отдельных строках.",null,null,"Группа потребителей"]
[null,null,null,null,null,null,1,null,null,null,1,{"$f":"mergeValue(A24) &\".\"& mergeValue(B24)&\".\"& mergeValue(C24)&\".\"& mergeValue(D24)&\".\"& mergeValue(E24)&\".\"& mergeValue(F24)&\".\"& mergeValue(G24)","v":"1.1.1.1.1.1.1"},null,null,null,null,null,null,"да",null,"нет",null,"В колонке «Параметр дифференциации тарифов» указывается вид теплоносителя.\nЗначение выбирается из перечня: вода; пар; отборный пар, 1.2-2.5 кг/см2; отборный пар, 2.5-7 кг/см2; отборный пар, 7-13 кг/см2; отборный пар, > 13 кг/см2; острый и редуцированный пар; горячая вода в системе централизованного теплоснабжения на отопление; горячая вода в системе централизованного теплоснабжения на горячее водоснабжение; прочее.\nПри подаче предложения на двухставочный тариф колонка «Одноставочный тариф» не заполняется.\nПри подаче предложения на одноставочный тариф колонки в блоке «Двухставочный тариф» не заполняются.\nДаты начала и окончания действия тарифов указываются в виде «ДД.ММ.ГГГГ».\nВ случае отсутствия даты окончания действия тарифа в колонке «Дата окончания» указывается «Нет».\nИнформация в колонке «Ставка за содержание тепловой мощности, тыс. руб./Гкал/ч/мес» указывается только для тарифа по поддержанию резервной мощности. \nВ случае дифференциации тарифов по периодам действия тарифа информация по ним указывается в отдельных колонках.\nВ случае дифференциации тарифов по видам теплоносителя информация по ним указывается в отдельных строках.",{"$f":"strCheckDate(O25:V25)","v":""},null,""]
[null,null,null,null,null,null,null,null,null,null,null,null,null,null,null,null,{"$f":"R24 & \"-\" & T24","v":"-"},null,null,null,null,null,null,null,null,""]
[null,null,null,null,null,null,null,null,null,null,null,null,"Добавить вид теплоносителя (параметры теплоносителя)",null,null,null,null,null,null,null,null,null,null,null,null,"Добавить вид теплоносителя (параметры теплоносителя)"]
[null,null,null,null,null,null,null,null,null,null,null,null,"Добавить группу потребителей",null,null,null,null,null,null,null,null,null,null,null,null,"Добавить группу потребителей"]
[null,null,null,null,null,null,null,null,null,null,null,null,"Добавить схему подключения",null,null,null,null,null,null,null,null,null,null,null,null,"Добавить схему подключения"]
[null,null,null,null,null,null,null,null,null,null,null,null,"Добавить источник тепловой энергии",null,null,null,null,null,null,null,null,null,null,null,null,"Добавить источник тепловой энергии"]
[null,null,null,null,null,null,null,null,null,null,null,null,"Добавить наименование системы теплоснабжения",null,null,null,null,null,null,null,null,null,null,null,null,"Добавить наименование системы теплоснабжения"]
[null,null,null,null,null,null,null,null,null,null,null,null,"Добавить территорию действия тарифа",null,null,null,null,null,null,null,null,null,null,null,null,"Добавить территорию действия тарифа"]
[null,null,null,null,null,null,null,null,null,null,null,null,"Добавить наименование тарифа"]
[]
[null,null,null,null,null,null,null,null,null,null,null,1,"Для каждого вида тарифа в сфере теплоснабжения форма заполняется отдельно. При размещении информации по данной форме дополнительно указывается дата подачи заявления об утверждении тарифа и его номер.\n\nПо данной форме размещается в том числе информация о предложении об установлении цен (тарифов) в сфере теплоснабжения для единых теплоснабжающих организаций, а также теплоснабжающих организаций, теплосетевых организаций в ценовых зонах теплоснабжения."]

{"sheet":"Форма 1.0.1 | Т-ТЭ | ТСО","index":8,"n_rows":19,"n_cols":10,"rows_kept":19,"cut":false,"hidden":true,"merged":[[18,6,18,7],[1,5,1,7],[3,5,3,7],[3,8,4,8],[7,0,15,0],[11,2,13,2],[12,8,13,8],[10,1,14,1]]}
["2"]
[null,null,null,null,null,"Форма 1.0.1 Основные параметры раскрываемой информации 1"]
[]
[null,null,null,null,null,"Параметры формы",null,null,"Описание параметров формы"]
[null,null,null,null,null,"№ п/п","Наименование параметра","Информация"]
[null,null,null,null,null,"1",2,3,4,4]
[null,null,null,null,null,1,"Дата заполнения/внесения изменений",{"$f":"IF(dateCh=\"\",\"\",dateCh)","v":"07.05.2021"},"Указывается календарная дата первичного заполнения или внесения изменений в форму в виде «ДД.ММ.ГГГГ»."]
[1,null,null,null,null,{"$f":"\"2.\" &mergeValue(A8)","v":"2.1"},"Наименование централизованной системы коммунальной инфраструктуры",null,"Указывается наименование централизованной системы холодного водоснабжения/горячего водоснабжения/водоотведения/теплоснабжения, к которой относится размещаемая информация.\nВ случае наличия нескольких централизованных систем коммунальной инфраструктуры, информация по каждой из них указывается в отдельной строке."]
[null,null,null,null,null,{"$f":"\"3.\" &mergeValue(A9)","v":"3.1"},"Наименование регулируемого вида деятельности",null,"Указывается наименование вида регулируемой деятельности."]
[null,null,null,null,null,{"$f":"\"4.\"&mergeValue(A10)","v":"4.1"},"Территория оказания услуги по регулируемому виду деятельности","x"]
[null,1,null,null,null,{"$f":"\"4.\"&mergeValue(A11) &\".\"&mergeValue(B11)","v":"4.1.1"},"Субъект Российской Федерации",{"$f":"IF(region_name=\"\",\"\",region_name)","v":"Ленинградская область"},"Указывается наименование субъекта Российской Федерации"]
[null,null,1,null,null,{"$f":"\"4.\"&mergeValue(A12) &\".\"&mergeValue(B12)&\".\"&mergeValue(C12)","v":"4.1.1.1"},"муниципальный район",null,"Указывается наименование муниципального района, на территории которого организация оказывает услуги по регулируемому виду деятельности."]
[null,null,null,1,null,{"$f":"\"4.\"&mergeValue(A13) &\".\"&mergeValue(B13)&\".\"&mergeValue(C13)&\".\"&mergeValue(D13)","v":"4.1.1.1.1"},"муниципальное образование",null,"Указывается наименование и код муниципального района, муниципального образования в соответствии с Общероссийским классификатором территорий муниципальных образований (далее - ОКТМО), входящего в муниципальный район, на территории которого организация оказывает услуги по регулируемому виду деятельности.\nВ случае оказания услуг по регулируемому виду деятельности на территории нескольких муниципальных районов (муниципальных образований) данные по каждому их них указываются в отдельной строке."]
[null,null,null,null,null,null,"Добавить МО"]
[null,null,null,null,null,null,"Добавить МР"]
[null,null,null,null,null,null,"Добавить территорию"]
[null,null,null,null,null,null,"Добавить ЦС"]
[]
[null,null,null,null,null,null,"  1 Информация размещается при раскрытии информации по каждой из форм."]

{"sheet":"Форма 4.10.2 | Т-ТЭ | ТСО","index":9,"n_rows":34,"n_cols":26,"rows_kept":34,"cut":false,"hidden":true,"merged":[[33,12,33,22],[12,11,12,21],[13,11,15,11],[13,12,15,12],[13,14,13,19],[13,20,15,20],[13,21,15,21],[14,14,15,14],[12,22,15,22],[15,18,15,19],[14,15,14,16],[14,17,14,19],[16,18,16,19],[23,22,25,22],[23,18,24,18],[23,19,24,19],[4,11,4,19],[8,14,8,19],[9,14,9,19],[10,11,10,12],[11,14,11,20],[6,14,6,19],[7,14,7,19],[21,8,26,8],[22,9,25,9],[17,0,30,0],[17,14,17,21],[18,1,29,1],[18,14,18,21],[19,2,28,2],[23,20,24,20],[19,14,19,21],[20,3,27,3],[20,14,20,21],[21,4,26,4],[21,14,21,21],[22,5,25,5],[22,14,22,21],[23,17,24,17]]}
[]
[]
[]
[]
[null,null,null,null,null,null,null,null,null,null,null,"Форма 4.10.2 Информация о предложении величин тарифов на тепловую энергию, поддержанию резервной тепловой мощности1"]
[]
[]
[null,null,null,null,null,null,null,null,null,null,null,null,{"$f":"\"Дата подачи заявления об \"&IF(datePr_ch=\"\",\"утверждении\",\"изменении\") & \" тарифов\"","v":"Дата подачи заявления об утверждении тарифов"},null,{"$f":"IF(datePr_ch=\"\",IF(datePr=\"\",\"\",datePr),datePr_ch)","v":"29.04.2021"}]
[null,null,null,null,null,null,null,null,null,null,null,null,{"$f":"\"Номер подачи заявления об \"&IF(numberPr_ch=\"\",\"утверждении\",\"изменении\") & \" тарифов\"","v":"Номер подачи заявления об утверждении тарифов"},null,{"$f":"IF(numberPr_ch=\"\",IF(numberPr=\"\",\"\",numberPr),numberPr_ch)","v":"520"}]
[]
[null,null,null,null,null,null,null,null,null,null,null,null,null,null,null,null,null,null,null,null,"dp"]
[]
[null,null,null,null,null,null,null,null,null,null,null,"Параметры формы",null,null,null,null,null,null,null,null,null,null,"Описание параметров формы"]
[null,null,null,null,null,null,null,null,null,null,null,"№ п/п","Параметр дифференциации тарифа",null,"Период действия тарифа",null,null,null,null,null,"Наличие других периодов действия тарифа","Добавить период"]
[null,null,null,null,null,null,null,null,null,null,null,null,null,null,"Одноставочный тариф, руб./Гкал","Двухставочный тариф",null,"Период действия"]
[null,null,null,null,null,null,null,null,null,null,null,null,null,null,null,"ставка за тепловую  энергию, руб./Гкал","ставка за содержание тепловой мощности, тыс.руб./Гкал/ч/мес","дата начала","дата окончания"]
[null,null,null,null,null,null,null,null,null,null,1,"1","2",{"$f":"OFFSET(N17,0,-1)","v":"2"},{"$f":"OFFSET(O17,0,-1)+1","v":3},{"$f":"OFFSET(P17,0,-1)+1","v":4},{"$f":"OFFSET(Q17,0,-1)+1","v":5},{"$f":"OFFSET(R17,0,-1)+1","v":6},{"$f":"OFFSET(S17,0,-1)+1","v":7},null,{"$f":"OFFSET(U17,0,-2)+1","v":8},{"$f":"OFFSET(V17,0,-1)","v":8},{"$f":"OFFSET(W17,0,-1)+1","v":9}]
[1,null,null,null,null,null,null,null,null,null,null,{"$f":"mergeValue(A18)","v":1},"Наименование тарифа",null,null,null,null,null,null,null,null,null,"Указывается наименование тарифа в случае подачи предложения по нескольким тарифам.\nВ случае наличия нескольких тарифов информация по ним указывается в отдельных строках.",null,null,{"$f":"IF(M18=\"\",\"\",M18 )","v":"Наименование тарифа"}]
[null,1,null,null,null,null,null,null,null,null,null,{"$f":"mergeValue(A19) &\".\"& mergeValue(B19)","v":"1.1"},"Территория действия тарифа",null,null,null,null,null,null,null,null,null,"Указывается наименование территории действия тарифа при наличии дифференциации тарифа по территориальному признаку.\nВ случае дифференциации тарифов по территориальному признаку информация по ним указывается в отдельных строках.",null,null,"Территория действия тарифа"]
[null,null,1,null,null,null,null,null,null,null,null,{"$f":"mergeValue(A20) &\".\"& mergeValue(B20)&\".\"& mergeValue(C20)","v":"1.1.1"},"Наименование системы теплоснабжения ",null,null,null,null,null,null,null,null,null,"Указывается наименование системы теплоснабжения при наличии дифференциации тарифа по системам теплоснабжения.\nВ случае дифференциации тарифов по системам теплоснабжения информация по ним указывается в отдельных строках.",null,null,"Наименование системы теплоснабжения "]
[null,null,null,1,null,null,null,null,null,null,null,{"$f":"mergeValue(A21) &\".\"& mergeValue(B21)&\".\"& mergeValue(C21)&\".\"& mergeValue(D21)","v":"1.1.1.1"},"Источник тепловой энергии  ",null,null,null,null,null,null,null,null,null,"Указывается наименование источника тепловой энергии\nВ случае дифференциации тарифов по источникам тепловой энергии информация по ним указывается в отдельных строках.",null,null,"Источник тепловой энергии  "]
[null,null,null,null,1,null,null,1,1,null,null,{"$f":"mergeValue(A22) &\".\"& mergeValue(B22)&\".\"& mergeValue(C22)&\".\"& mergeValue(D22)&\".\"& mergeValue(E22)","v":"1.1.1.1.1"},"Схема подключения теплопотребляющей установки к коллектору источника тепловой энергии",null,null,null,null,null,null,null,null,null,"Указывается схема подключения теплопотребляющей установки к коллектору источника тепловой энергии только для тарифов на тепловую энергию и за услуги по поддержанию резервной мощности.\nЗначение выбирается из перечня: Без дифференциации; к коллектору источника тепловой энергии; к тепловой сети без дополнительного преобразования на тепловых пунктах, эксплуатируемых теплоснабжающей организацией; к тепловой сети после тепловых пунктов (на тепловых пунктах), эксплуатируемых теплоснабжающей организацией.\nВ случае дифференциации тарифов по схемам подключения теплопотребляющей установки к коллектору источника тепловой энергии информация по ним указывается в отдельных строках.",null,null,"Схема подключения теплопотребляющей установки к коллектору источника тепловой энергии"]
[null,null,null,null,null,1,null,null,null,1,null,{"$f":"mergeValue(A23) &\".\"& mergeValue(B23)&\".\"& mergeValue(C23)&\".\"& mergeValue(D23)&\".\"& mergeValue(E23)&\".\"& mergeValue(F23)","v":"1.1.1.1.1.1"},"Группа потребителей",null,null,null,null,null,null,null,null,null,"Указывается группа потребителей при наличии дифференциации тарифа по группам потребителей.\nЗначение выбирается из перечня: Организации-перепродавцы; Бюджетные организации; Население; Прочие; Без дифференциации.\nВ случае дифференциации тарифов группам потребителей информация по ним указывается в отдельных строках.",null,null,"Группа потребителей"]
[null,null,null,null,null,null,1,null,null,null,1,{"$f":"mergeValue(A24) &\".\"& mergeValue(B24)&\".\"& mergeValue(C24)&\".\"& mergeValue(D24)&\".\"& mergeValue(E24)&\".\"& mergeValue(F24)&\".\"& mergeValue(G24)","v":"1.1.1.1.1.1.1"},null,null,null,null,null,null,"да",null,"нет",null,"В колонке «Параметр дифференциации тарифов» указывается вид теплоносителя.\nЗначение выбирается из перечня: вода; пар; отборный пар, 1.2-2.5 кг/см2; отборный пар, 2.5-7 кг/см2; отборный пар, 7-13 кг/см2; отборный пар, > 13 кг/см2; острый и редуцированный пар; горячая вода в системе централизованного теплоснабжения на отопление; горячая вода в системе централизованного теплоснабжения на горячее водоснабжение; прочее.\nПри подаче предложения на двухставочный тариф колонка «Одноставочный тариф» не заполняется.\nПри подаче предложения на одноставочный тариф колонки в блоке «Двухставочный тариф» не заполняются.\nДаты начала и окончания действия тарифов указываются в виде «ДД.ММ.ГГГГ».\nВ случае отсутствия даты окончания действия тарифа в колонке «Дата окончания» указывается «Нет».\nИнформация в колонке «Ставка за содержание тепловой мощности, тыс. руб./Гкал/ч/мес» указывается только для тарифа по поддержанию резервной мощности. \nВ случае дифференциации тарифов по периодам действия тарифа информация по ним указывается в отдельных колонках.\nВ случае дифференциации тарифов по видам теплоносителя информация по ним указывается в отдельных строках.",{"$f":"strCheckDate(O25:V25)","v":""},null,""]
[null,null,null,null,null,null,null,null,null,null,null,null,null,null,null,null,{"$f":"R24 & \"-\" & T24","v":"-"},null,null,null,null,null,null,null,null,""]
[null,null,null,null,null,null,null,null,null,null,null,null,"Добавить вид теплоносителя (параметры теплоносителя)",null,null,null,null,null,null,null,null,null,null,null,null,"Добавить вид теплоносителя (параметры теплоносителя)"]
[null,null,null,null,null,null,null,null,null,null,null,null,"Добавить группу потребителей",null,null,null,null,null,null,null,null,null,null,null,null,"Добавить группу потребителей"]
[null,null,null,null,null,null,null,null,null,null,null,null,"Добавить схему подключения",null,null,null,null,null,null,null,null,null,null,null,null,"Добавить схему подключения"]
[null,null,null,null,null,null,null,null,null,null,null,null,"Добавить источник тепловой энергии",null,null,null,null,null,null,null,null,null,null,null,null,"Добавить источник тепловой энергии"]
[null,null,null,null,null,null,null,null,null,null,null,null,"Добавить наименование системы теплоснабжения",null,null,null,null,null,null,null,null,null,null,null,null,"Добавить наименование системы теплоснабжения"]
[null,null,null,null,null,null,null,null,null,null,null,null,"Добавить территорию действия тарифа",null,null,null,null,null,null,null,null,null,null,null,null,"Добавить территорию действия тарифа"]
[null,null,null,null,null,null,null,null,null,null,null,null,"Добавить наименование тарифа"]
[]
[null,null,null,null,null,null,null,null,null,null,null,1,"Для каждого вида тарифа в сфере теплоснабжения форма заполняется отдельно. При размещении информации по данной форме дополнительно указывается дата подачи заявления об утверждении тарифа и его номер.\n\nПо данной форме размещается в том числе информация о предложении об установлении цен (тарифов) в сфере теплоснабжения для единых теплоснабжающих организаций, а также теплоснабжающих организаций, теплосетевых организаций в ценовых зонах теплоснабжения."]

{"sheet":"Форма 1.0.1 | Т-ТЭ | потр","index":10,"n_rows":15,"n_cols":10,"rows_kept":15,"cut":false,"hidden":false,"merged":[[14,6,14,7],[1,5,1,7],[3,5,3,7],[3,8,4,8],[7,0,12,0],[10,1,12,1],[11,2,12,2]]}
["2"]
[null,null,null,null,null,"Форма 1.0.1 Основные параметры раскрываемой информации 1"]
[]
[null,null,null,null,null,"Параметры формы",null,null,"Описание параметров формы"]
[null,null,null,null,null,"№ п/п","Наименование параметра","Информация"]
[null,null,null,null,null,"1",2,3,4,4]
[null,null,null,null,null,1,"Дата заполнения/внесения изменений",{"$f":"IF(dateCh=\"\",\"\",dateCh)","v":"07.05.2021"},"Указывается календарная дата первичного заполнения или внесения изменений в форму в виде «ДД.ММ.ГГГГ»."]
[1,null,null,null,null,{"$f":"\"2.\" &mergeValue(A8)","v":"2.1"},"Наименование централизованной системы коммунальной инфраструктуры",{"$f":"IF('Перечень тарифов'!R21=\"\",\"наименование отсутствует\",\"\" & 'Перечень тарифов'!R21 & \"\")","v":"наименование отсутствует"},"Указывается наименование централизованной системы холодного водоснабжения/горячего водоснабжения/водоотведения/теплоснабжения, к которой относится размещаемая информация.\nВ случае наличия нескольких централизованных систем коммунальной инфраструктуры, информация по каждой из них указывается в отдельной строке."]
[null,null,null,null,null,{"$f":"\"3.\" &mergeValue(A9)","v":"3.1"},"Наименование регулируемого вида деятельности",{"$f":"IF('Перечень тарифов'!F21=\"\",\"наименование отсутствует\",\"\" & 'Перечень тарифов'!F21 & \"\")","v":"Производство тепловой энергии. Некомбинированная выработка"},"Указывается наименование вида регулируемой деятельности."]
[null,null,null,null,null,{"$f":"\"4.\"&mergeValue(A10)","v":"4.1"},"Территория оказания услуги по регулируемому виду деятельности","x"]
[null,1,null,null,null,{"$f":"\"4.\"&mergeValue(A11) &\".\"&mergeValue(B11)","v":"4.1.1"},"Субъект Российской Федерации",{"$f":"IF(region_name=\"\",\"\",region_name)","v":"Ленинградская область"},"Указывается наименование субъекта Российской Федерации"]
[null,null,1,null,null,{"$f":"\"4.\"&mergeValue(A12) &\".\"&mergeValue(B12)&\".\"&mergeValue(C12)","v":"4.1.1.1"},"муниципальный район",{"$f":"IF(Территории!H13=\"\",\"\",\"\" & Территории!H13 & \"\")","v":"Всеволожский муниципальный район"},"Указывается наименование муниципального района, на территории которого организация оказывает услуги по регулируемому виду деятельности."]
[null,null,null,1,null,{"$f":"\"4.\"&mergeValue(A13) &\".\"&mergeValue(B13)&\".\"&mergeValue(C13)&\".\"&mergeValue(D13)","v":"4.1.1.1.1"},"муниципальное образование",{"$f":"IF(Территории!R14=\"\",\"\",\"\" & Территории!R14 & \"\")","v":"Заневское (41612155)"},"Указывается наименование и код муниципального района, муниципального образования в соответствии с Общероссийским классификатором территорий муниципальных образований (далее - ОКТМО), входящего в муниципальный район, на территории которого организация оказывает услуги по регулируемому виду деятельности.\nВ случае оказания услуг по регулируемому виду деятельности на территории нескольких муниципальных районов (муниципальных образований) данные по каждому их них указываются в отдельной строке."]
[]
[null,null,null,null,null,null,"  1 Информация размещается при раскрытии информации по каждой из форм."]

{"sheet":"Форма 4.10.2 | Т-ТЭ | потр","index":11,"n_rows":30,"n_cols":33,"rows_kept":30,"cut":false,"hidden":false,"merged":[[23,29,25,29],[29,12,29,29],[20,14,20,28],[21,4,26,4],[21,8,26,8],[21,14,21,28],[22,5,25,5],[22,9,25,9],[22,14,22,28],[23,17,24,17],[23,18,24,18],[23,19,24,19],[16,18,16,19],[17,0,27,0],[17,14,17,28],[18,1,27,1],[18,14,18,28],[19,2,27,2],[19,14,19,28],[20,3,27,3],[23,20,24,20],[23,27,24,27],[12,11,12,28],[12,29,15,29],[13,11,15,11],[13,12,15,12],[13,14,13,19],[13,20,15,20],[13,28,15,28],[14,14,15,14],[14,15,14,16],[14,17,14,19],[15,18,15,19],[13,21,13,26],[13,27,15,27],[14,21,15,21],[14,22,14,23],[11,21,11,27],[10,11,10,12],[4,11,4,19],[6,14,6,19],[7,14,7,19],[8,14,8,19],[9,14,9,19],[11,14,11,20],[14,24,14,26],[15,25,15,26],[16,25,16,26],[23,24,24,24],[23,25,24,25],[23,26,24,26]]}
[]
[]
[]
[]
[null,null,null,null,null,null,null,null,null,null,null,"Форма 4.10.2 Информация о предложении величин тарифов на тепловую энергию, поддержанию резервной тепловой мощности1"]
[]
[]
[null,null,null,null,null,null,null,null,null,null,null,null,{"$f":"\"Дата подачи заявления об \"&IF(datePr_ch=\"\",\"утверждении\",\"изменении\") & \" тарифов\"","v":"Дата подачи заявления об утверждении тарифов"},null,{"$f":"IF(datePr_ch=\"\",IF(datePr=\"\",\"\",datePr),datePr_ch)","v":"29.04.2021"}]
[null,null,null,null,null,null,null,null,null,null,null,null,{"$f":"\"Номер подачи заявления об \"&IF(numberPr_ch=\"\",\"утверждении\",\"изменении\") & \" тарифов\"","v":"Номер подачи заявления об утверждении тарифов"},null,{"$f":"IF(numberPr_ch=\"\",IF(numberPr=\"\",\"\",numberPr),numberPr_ch)","v":"520"}]
[]
[null,null,null,null,null,null,null,null,null,null,null,null,null,null,null,null,null,null,null,null,"dp",null,null,null,null,null,null,"dp"]
[null,null,null,null,null,null,null,null,null,null,null,null,null,null,null,null,null,null,null,null,null,"О"]
[null,null,null,null,null,null,null,null,null,null,null,"Параметры формы",null,null,null,null,null,null,null,null,null,null,null,null,null,null,null,null,null,"Описание параметров формы"]
[null,null,null,null,null,null,null,null,null,null,null,"№ п/п","Параметр дифференциации тарифа",null,"Период действия тарифа",null,null,null,null,null,"Наличие других периодов действия тарифа","Период действия тарифа",null,null,null,null,null,"Наличие других периодов действия тарифа","Добавить период"]
[null,null,null,null,null,null,null,null,null,null,null,null,null,null,"Одноставочный тариф, руб./Гкал","Двухставочный тариф",null,"Период действия",null,null,null,"Одноставочный тариф, руб./Гкал","Двухставочный тариф",null,"Период действия"]
[null,null,null,null,null,null,null,null,null,null,null,null,null,null,null,"ставка за тепловую  энергию, руб./Гкал","ставка за содержание тепловой мощности, тыс.руб./Гкал/ч/мес","дата начала","дата окончания",null,null,null,"ставка за тепловую  энергию, руб./Гкал","ставка за содержание тепловой мощности, тыс.руб./Гкал/ч/мес","дата начала","дата окончания"]
[null,null,null,null,null,null,null,null,null,null,1,"1","2",{"$f":"OFFSET(N17,0,-1)","v":"2"},{"$f":"OFFSET(O17,0,-1)+1","v":3},{"$f":"OFFSET(P17,0,-1)+1","v":4},{"$f":"OFFSET(Q17,0,-1)+1","v":5},{"$f":"OFFSET(R17,0,-1)+1","v":6},{"$f":"OFFSET(S17,0,-1)+1","v":7},null,{"$f":"OFFSET(U17,0,-2)+1","v":8},{"$f":"OFFSET(V17,0,-1)+1","v":9},{"$f":"OFFSET(W17,0,-1)+1","v":10},{"$f":"OFFSET(X17,0,-1)+1","v":11},{"$f":"OFFSET(Y17,0,-1)+1","v":12},{"$f":"OFFSET(Z17,0,-1)+1","v":13},null,{"$f":"OFFSET(AB17,0,-2)+1","v":14},{"$f":"OFFSET(AC17,0,-1)","v":14},{"$f":"OFFSET(AD17,0,-1)+1","v":15}]
[1,null,null,null,null,null,null,null,null,null,null,{"$f":"mergeValue(A18)","v":1},"Наименование тарифа",null,{"$f":"IF('Перечень тарифов'!J21=\"\",\"\",\"\" & 'Перечень тарифов'!J21 & \"\")","v":"Тариф на производство ТЭ"},null,null,null,null,null,null,null,null,null,null,null,null,null,null,"Указывается наименование тарифа в случае подачи предложения по нескольким тарифам.\nВ случае наличия нескольких тарифов информация по ним указывается в отдельных строках.",null,null,{"$f":"IF(M18=\"\",\"\",M18 )","v":"Наименование тарифа"}]
[null,1,null,null,null,null,null,null,null,null,null,{"$f":"mergeValue(A19) &\".\"& mergeValue(B19)","v":"1.1"},null,null,null,null,null,null,null,null,null,null,null,null,null,null,null,null,null,null,null,null,""]
[null,null,1,null,null,null,null,null,null,null,null,{"$f":"mergeValue(A20) &\".\"& mergeValue(B20)&\".\"& mergeValue(C20)","v":"1.1.1"},null,null,null,null,null,null,null,null,null,null,null,null,null,null,null,null,null,null,null,null,""]
[null,null,null,1,null,null,null,null,null,null,null,{"$f":"mergeValue(A21) &\".\"& mergeValue(B21)&\".\"& mergeValue(C21)&\".\"& mergeValue(D21)","v":"1.1.1.1"},null,null,null,null,null,null,null,null,null,null,null,null,null,null,null,null,null,null,null,null,""]
[null,null,null,null,1,null,null,1,1,null,null,{"$f":"mergeValue(A22) &\".\"& mergeValue(B22)&\".\"& mergeValue(C22)&\".\"& mergeValue(D22)&\".\"& mergeValue(E22)","v":"1.1.1.1.1"},"Схема подключения теплопотребляющей установки к коллектору источника тепловой энергии",null,"к коллектору источника тепловой энергии",null,null,null,null,null,null,null,null,null,null,null,null,null,null,"Указывается схема подключения теплопотребляющей установки к коллектору источника тепловой энергии только для тарифов на тепловую энергию и за услуги по поддержанию резервной мощности.\nЗначение выбирается из перечня: Без дифференциации; к коллектору источника тепловой энергии; к тепловой сети без дополнительного преобразования на тепловых пунктах, эксплуатируемых теплоснабжающей организацией; к тепловой сети после тепловых пунктов (на тепловых пунктах), эксплуатируемых теплоснабжающей организацией.\nВ случае дифференциации тарифов по схемам подключения теплопотребляющей установки к коллектору источника тепловой энергии информация по ним указывается в отдельных строках.",null,null,"Схема подключения теплопотребляющей установки к коллектору источника тепловой энергии"]
[null,null,null,null,null,1,null,null,null,1,null,{"$f":"mergeValue(A23) &\".\"& mergeValue(B23)&\".\"& mergeValue(C23)&\".\"& mergeValue(D23)&\".\"& mergeValue(E23)&\".\"& mergeValue(F23)","v":"1.1.1.1.1.1"},"Группа потребителей",null,"без дифференциации",null,null,null,null,null,null,null,null,null,null,null,null,null,null,"Указывается группа потребителей при наличии дифференциации тарифа по группам потребителей.\nЗначение выбирается из перечня: Организации-перепродавцы; Бюджетные организации; Население; Прочие; Без дифференциации.\nВ случае дифференциации тарифов группам потребителей информация по ним указывается в отдельных строках.",null,null,"Группа потребителей"]
[null,null,null,null,null,null,1,null,null,null,1,{"$f":"mergeValue(A24) &\".\"& mergeValue(B24)&\".\"& mergeValue(C24)&\".\"& mergeValue(D24)&\".\"& mergeValue(E24)&\".\"& mergeValue(F24)&\".\"& mergeValue(G24)","v":"1.1.1.1.1.1.1"},"вода",null,1873.83,null,null,"01.01.2022","да","30.06.2022","да",2073.8370025672302,null,null,"01.07.2022","да","31.12.2022","нет",null,"В колонке «Параметр дифференциации тарифов» указывается вид теплоносителя.\nЗначение выбирается из перечня: вода; пар; отборный пар, 1.2-2.5 кг/см2; отборный пар, 2.5-7 кг/см2; отборный пар, 7-13 кг/см2; отборный пар, > 13 кг/см2; острый и редуцированный пар; горячая вода в системе централизованного теплоснабжения на отопление; горячая вода в системе централизованного теплоснабжения на горячее водоснабжение; прочее.\nПри подаче предложения на двухставочный тариф колонка «Одноставочный тариф» не заполняется.\nПри подаче предложения на одноставочный тариф колонки в блоке «Двухставочный тариф» не заполняются.\nДаты начала и окончания действия тарифов указываются в виде «ДД.ММ.ГГГГ».\nВ случае отсутствия даты окончания действия тарифа в колонке «Дата окончания» указывается «Нет».\nИнформация в колонке «Ставка за содержание тепловой мощности, тыс. руб./Гкал/ч/мес» указывается только для тарифа по поддержанию резервной мощности. \nВ случае дифференциации тарифов по периодам действия тарифа информация по ним указывается в отдельных колонках.\nВ случае дифференциации тарифов по видам теплоносителя информация по ним указывается в отдельных строках.",{"$f":"strCheckDate(O25:AC25)","v":""},null,"вода"]
[null,null,null,null,null,null,null,null,null,null,null,null,null,null,null,null,{"$f":"R24 & \"-\" & T24","v":"01.01.2022-30.06.2022"},null,null,null,null,null,null,{"$f":"Y24 & \"-\" & AA24","v":"01.07.2022-31.12.2022"},null,null,null,null,null,null,null,null,""]
[null,null,null,null,null,null,null,null,null,null,null,null,"Добавить вид теплоносителя (параметры теплоносителя)",null,null,null,null,null,null,null,null,null,null,null,null,null,null,null,null,null,null,null,"Добавить вид теплоносителя (параметры теплоносителя)"]
[null,null,null,null,null,null,null,null,null,null,null,null,"Добавить группу потребителей",null,null,null,null,null,null,null,null,null,null,null,null,null,null,null,null,null,null,null,"Добавить группу потребителей"]
[null,null,null,null,null,null,null,null,null,null,null,null,"Добавить схему подключения",null,null,null,null,null,null,null,null,null,null,null,null,null,null,null,null,null,null,null,"Добавить схему подключения"]
[]
[null,null,null,null,null,null,null,null,null,null,null,1,"Для каждого вида тарифа в сфере теплоснабжения форма заполняется отдельно. При размещении информации по данной форме дополнительно указывается дата подачи заявления об утверждении тарифа и его номер.\n\nПо данной форме размещается в том числе информация о предложении об установлении цен (тарифов) в сфере теплоснабжения для единых теплоснабжающих организаций, а также теплоснабжающих организаций, теплосетевых организаций в ценовых зонах теплоснабжения."]

{"sheet":"Форма 1.0.1 | Т-ТЭ | предел","index":12,"n_rows":19,"n_cols":10,"rows_kept":19,"cut":false,"hidden":true,"merged":[[18,6,18,7],[1,5,1,7],[3,5,3,7],[3,8,4,8],[7,0,15,0],[10,1,14,1],[11,2,13,2],[12,8,13,8]]}
["3"]
[null,null,null,null,null,"Форма 1.0.1 Основные параметры раскрываемой информации 1"]
[]
[null,null,null,null,null,"Параметры формы",null,null,"Описание параметров формы"]
[null,null,null,null,null,"№ п/п","Наименование параметра","Информация"]
[null,null,null,null,null,"1",2,3,4,4]
[null,null,null,null,null,1,"Дата заполнения/внесения изменений",{"$f":"IF(dateCh=\"\",\"\",dateCh)","v":"07.05.2021"},"Указывается календарная дата первичного заполнения или внесения изменений в форму в виде «ДД.ММ.ГГГГ»."]
[1,null,null,null,null,{"$f":"\"2.\" &mergeValue(A8)","v":"2.1"},"Наименование централизованной системы коммунальной инфраструктуры",null,"Указывается наименование централизованной системы холодного водоснабжения/горячего водоснабжения/водоотведения/теплоснабжения, к которой относится размещаемая информация.\nВ случае наличия нескольких централизованных систем коммунальной инфраструктуры, информация по каждой из них указывается в отдельной строке."]
[null,null,null,null,null,{"$f":"\"3.\" &mergeValue(A9)","v":"3.1"},"Наименование регулируемого вида деятельности",null,"Указывается наименование вида регулируемой деятельности."]
[null,null,null,null,null,{"$f":"\"4.\"&mergeValue(A10)","v":"4.1"},"Территория оказания услуги по регулируемому виду деятельности","x"]
[null,1,null,null,null,{"$f":"\"4.\"&mergeValue(A11) &\".\"&mergeValue(B11)","v":"4.1.1"},"Субъект Российской Федерации",{"$f":"IF(region_name=\"\",\"\",region_name)","v":"Ленинградская область"},"Указывается наименование субъекта Российской Федерации"]
[null,null,1,null,null,{"$f":"\"4.\"&mergeValue(A12) &\".\"&mergeValue(B12)&\".\"&mergeValue(C12)","v":"4.1.1.1"},"муниципальный район",null,"Указывается наименование муниципального района, на территории которого организация оказывает услуги по регулируемому виду деятельности."]
[null,null,null,1,null,{"$f":"\"4.\"&mergeValue(A13) &\".\"&mergeValue(B13)&\".\"&mergeValue(C13)&\".\"&mergeValue(D13)","v":"4.1.1.1.1"},"муниципальное образование",null,"Указывается наименование и код муниципального района, муниципального образования в соответствии с Общероссийским классификатором территорий муниципальных образований (далее - ОКТМО), входящего в муниципальный район, на территории которого организация оказывает услуги по регулируемому виду деятельности.\nВ случае оказания услуг по регулируемому виду деятельности на территории нескольких муниципальных районов (муниципальных образований) данные по каждому их них указываются в отдельной строке."]
[null,null,null,null,null,null,"Добавить МО"]
[null,null,null,null,null,null,"Добавить МР"]
[null,null,null,null,null,null,"Добавить территорию"]
[null,null,null,null,null,null,"Добавить ЦС"]
[]
[null,null,null,null,null,null,"  1 Информация размещается при раскрытии информации по каждой из форм."]

{"sheet":"Форма 4.10.2 | Т-ТЭ | предел","index":13,"n_rows":36,"n_cols":26,"rows_kept":36,"cut":false,"hidden":true,"merged":[[25,22,27,22],[8,14,8,19],[9,14,9,19],[35,12,35,22],[18,18,18,19],[14,11,14,21],[15,11,17,11],[15,12,17,12],[15,14,15,19],[15,20,17,20],[16,14,17,14],[16,15,16,16],[14,22,17,22],[17,18,17,19],[15,21,17,21],[16,17,16,19],[25,18,26,18],[25,19,26,19],[4,11,4,19],[10,14,10,19],[11,14,11,19],[12,11,12,12],[13,14,13,20],[6,14,6,15],[23,8,28,8],[24,9,27,9],[19,0,32,0],[19,14,19,21],[20,1,31,1],[20,14,20,21],[21,2,30,2],[25,20,26,20],[21,14,21,21],[22,3,29,3],[22,14,22,21],[23,4,28,4],[23,14,23,21],[24,5,27,5],[24,14,24,21],[25,17,26,17]]}
[]
[]
[]
[]
[null,null,null,null,null,null,null,null,null,null,null,"Форма 4.10.2 Информация о предложении величин тарифов на тепловую энергию, поддержанию резервной тепловой мощности1"]
[]
[]
[]
[]
[null,null,null,null,null,null,null,null,null,null,null,null,{"$f":"\"Дата подачи заявления об \"&IF(datePr_ch=\"\",\"утверждении\",\"изменении\") & \" тарифов\"","v":"Дата подачи заявления об утверждении тарифов"},null,{"$f":"IF(datePr_ch=\"\",IF(datePr=\"\",\"\",datePr),datePr_ch)","v":"29.04.2021"}]
[null,null,null,null,null,null,null,null,null,null,null,null,{"$f":"\"Номер подачи заявления об \"&IF(numberPr_ch=\"\",\"утверждении\",\"изменении\") & \" тарифов\"","v":"Номер подачи заявления об утверждении тарифов"},null,{"$f":"IF(numberPr_ch=\"\",IF(numberPr=\"\",\"\",numberPr),numberPr_ch)","v":"520"}]
[]
[null,null,null,null,null,null,null,null,null,null,null,null,null,null,null,null,null,null,null,null,"dp"]
[]
[null,null,null,null,null,null,null,null,null,null,null,"Параметры формы",null,null,null,null,null,null,null,null,null,null,"Описание параметров формы"]
[null,null,null,null,null,null,null,null,null,null,null,"№ п/п","Параметр дифференциации тарифа",null,"Период действия тарифа",null,null,null,null,null,"Наличие других периодов действия тарифа","Добавить период"]
[null,null,null,null,null,null,null,null,null,null,null,null,null,null,"Одноставочный тариф, руб./Гкал","Двухставочный тариф",null,"Период действия"]
[null,null,null,null,null,null,null,null,null,null,null,null,null,null,null,"ставка за тепловую  энергию, руб./Гкал","ставка за содержание тепловой мощности, тыс.руб./Гкал/ч/мес","дата начала","дата окончания"]
[null,null,null,null,null,null,null,null,null,null,1,"1","2",{"$f":"OFFSET(N19,0,-1)","v":"2"},{"$f":"OFFSET(O19,0,-1)+1","v":3},{"$f":"OFFSET(P19,0,-1)+1","v":4},{"$f":"OFFSET(Q19,0,-1)+1","v":5},{"$f":"OFFSET(R19,0,-1)+1","v":6},{"$f":"OFFSET(S19,0,-1)+1","v":7},null,{"$f":"OFFSET(U19,0,-2)+1","v":8},{"$f":"OFFSET(V19,0,-1)","v":8},{"$f":"OFFSET(W19,0,-1)+1","v":9}]
[1,null,null,null,null,null,null,null,null,null,null,{"$f":"mergeValue(A20)","v":1},"Наименование тарифа",null,null,null,null,null,null,null,null,null,"Указывается наименование тарифа в случае подачи предложения по нескольким тарифам.\nВ случае наличия нескольких тарифов информация по ним указывается в отдельных строках.",null,null,{"$f":"IF(M20=\"\",\"\",M20 )","v":"Наименование тарифа"}]
[null,1,null,null,null,null,null,null,null,null,null,{"$f":"mergeValue(A21) &\".\"& mergeValue(B21)","v":"1.1"},"Территория действия тарифа",null,null,null,null,null,null,null,null,null,"Указывается наименование территории действия тарифа при наличии дифференциации тарифа по территориальному признаку.\nВ случае дифференциации тарифов по территориальному признаку информация по ним указывается в отдельных строках.",null,null,"Территория действия тарифа"]
[null,null,1,null,null,null,null,null,null,null,null,{"$f":"mergeValue(A22) &\".\"& mergeValue(B22)&\".\"& mergeValue(C22)","v":"1.1.1"},"Наименование системы теплоснабжения ",null,null,null,null,null,null,null,null,null,"Указывается наименование системы теплоснабжения при наличии дифференциации тарифа по системам теплоснабжения.\nВ случае дифференциации тарифов по системам теплоснабжения информация по ним указывается в отдельных строках.",null,null,"Наименование системы теплоснабжения "]
[null,null,null,1,null,null,null,null,null,null,null,{"$f":"mergeValue(A23) &\".\"& mergeValue(B23)&\".\"& mergeValue(C23)&\".\"& mergeValue(D23)","v":"1.1.1.1"},"Источник тепловой энергии  ",null,null,null,null,null,null,null,null,null,"Указывается наименование источника тепловой энергии\nВ случае дифференциации тарифов по источникам тепловой энергии информация по ним указывается в отдельных строках.",null,null,"Источник тепловой энергии  "]
[null,null,null,null,1,null,null,1,1,null,null,{"$f":"mergeValue(A24) &\".\"& mergeValue(B24)&\".\"& mergeValue(C24)&\".\"& mergeValue(D24)&\".\"& mergeValue(E24)","v":"1.1.1.1.1"},"Схема подключения теплопотребляющей установки к коллектору источника тепловой энергии",null,null,null,null,null,null,null,null,null,"Указывается схема подключения теплопотребляющей установки к коллектору источника тепловой энергии только для тарифов на тепловую энергию и за услуги по поддержанию резервной мощности.\nЗначение выбирается из перечня: Без дифференциации; к коллектору источника тепловой энергии; к тепловой сети без дополнительного преобразования на тепловых пунктах, эксплуатируемых теплоснабжающей организацией; к тепловой сети после тепловых пунктов (на тепловых пунктах), эксплуатируемых теплоснабжающей организацией.\nВ случае дифференциации тарифов по схемам подключения теплопотребляющей установки к коллектору источника тепловой энергии информация по ним указывается в отдельных строках.",null,null,"Схема подключения теплопотребляющей установки к коллектору источника тепловой энергии"]
[null,null,null,null,null,1,null,null,null,1,null,{"$f":"mergeValue(A25) &\".\"& mergeValue(B25)&\".\"& mergeValue(C25)&\".\"& mergeValue(D25)&\".\"& mergeValue(E25)&\".\"& mergeValue(F25)","v":"1.1.1.1.1.1"},"Группа потребителей",null,null,null,null,null,null,null,null,null,"Указывается группа потребителей при наличии дифференциации тарифа по группам потребителей.\nЗначение выбирается из перечня: Организации-перепродавцы; Бюджетные организации; Население; Прочие; Без дифференциации.\nВ случае дифференциации тарифов группам потребителей информация по ним указывается в отдельных строках.",null,null,"Группа потребителей"]
[null,null,null,null,null,null,1,null,null,null,1,{"$f":"mergeValue(A26) &\".\"& mergeValue(B26)&\".\"& mergeValue(C26)&\".\"& mergeValue(D26)&\".\"& mergeValue(E26)&\".\"& mergeValue(F26)&\".\"& mergeValue(G26)","v":"1.1.1.1.1.1.1"},null,null,null,null,null,null,"да",null,"нет",null,"В колонке «Параметр дифференциации тарифов» указывается вид теплоносителя.\nЗначение выбирается из перечня: вода; пар; отборный пар, 1.2-2.5 кг/см2; отборный пар, 2.5-7 кг/см2; отборный пар, 7-13 кг/см2; отборный пар, > 13 кг/см2; острый и редуцированный пар; горячая вода в системе централизованного теплоснабжения на отопление; горячая вода в системе централизованного теплоснабжения на горячее водоснабжение; прочее.\nПри подаче предложения на двухставочный тариф колонка «Одноставочный тариф» не заполняется.\nПри подаче предложения на одноставочный тариф колонки в блоке «Двухставочный тариф» не заполняются.\nДаты начала и окончания действия тарифов указываются в виде «ДД.ММ.ГГГГ».\nВ случае отсутствия даты окончания действия тарифа в колонке «Дата окончания» указывается «Нет».\nИнформация в колонке «Ставка за содержание тепловой мощности, тыс. руб./Гкал/ч/мес» указывается только для тарифа по поддержанию резервной мощности. \nВ случае дифференциации тарифов по периодам действия тарифа информация по ним указывается в отдельных колонках.\nВ случае дифференциации тарифов по видам теплоносителя информация по ним указывается в отдельных строках.",{"$f":"strCheckDate(O27:V27)","v":""},null,""]
[null,null,null,null,null,null,null,null,null,null,null,null,null,null,null,null,{"$f":"R26 & \"-\" & T26","v":"-"},null,null,null,null,null,null,null,null,""]
[null,null,null,null,null,null,null,null,null,null,null,null,"Добавить вид теплоносителя (параметры теплоносителя)",null,null,null,null,null,null,null,null,null,null,null,null,"Добавить вид теплоносителя (параметры теплоносителя)"]
[null,null,null,null,null,null,null,null,null,null,null,null,"Добавить группу потребителей",null,null,null,null,null,null,null,null,null,null,null,null,"Добавить группу потребителей"]
[null,null,null,null,null,null,null,null,null,null,null,null,"Добавить схему подключения",null,null,null,null,null,null,null,null,null,null,null,null,"Добавить схему подключения"]
[null,null,null,null,null,null,null,null,null,null,null,null,"Добавить источник тепловой энергии",null,null,null,null,null,null,null,null,null,null,null,null,"Добавить источник тепловой энергии"]
[null,null,null,null,null,null,null,null,null,null,null,null,"Добавить наименование системы теплоснабжения",null,null,null,null,null,null,null,null,null,null,null,null,"Добавить наименование системы теплоснабжения"]
[null,null,null,null,null,null,null,null,null,null,null,null,"Добавить территорию действия тарифа",null,null,null,null,null,null,null,null,null,null,null,null,"Добавить территорию действия тарифа"]
[null,null,null,null,null,null,null,null,null,null,null,null,"Добавить наименование тарифа"]
[]
[null,null,null,null,null,null,null,null,null,null,null,1,"Для каждого вида тарифа в сфере теплоснабжения форма заполняется отдельно. При размещении информации по данной форме дополнительно указывается дата подачи заявления об утверждении тарифа и его номер.\n\nПо данной форме размещается в том числе информация о предложении об установлении цен (тарифов) в сфере теплоснабжения для единых теплоснабжающих организаций, а также теплоснабжающих организаций, теплосетевых организаций в ценовых зонах теплоснабжения."]

{"sheet":"Форма 1.0.1 | Т-ТЭ | индикат","index":14,"n_rows":19,"n_cols":10,"rows_kept":19,"cut":false,"hidden":true,"merged":[[18,6,18,7],[1,5,1,7],[3,5,3,7],[3,8,4,8],[7,0,15,0],[10,1,14,1],[11,2,13,2],[12,8,13,8]]}
["3"]
[null,null,null,null,null,"Форма 1.0.1 Основные параметры раскрываемой информации 1"]
[]
[null,null,null,null,null,"Параметры формы",null,null,"Описание параметров формы"]
[null,null,null,null,null,"№ п/п","Наименование параметра","Информация"]
[null,null,null,null,null,"1",2,3,4,4]
[null,null,null,null,null,1,"Дата заполнения/внесения изменений",{"$f":"IF(dateCh=\"\",\"\",dateCh)","v":"07.05.2021"},"Указывается календарная дата первичного заполнения или внесения изменений в форму в виде «ДД.ММ.ГГГГ»."]
[1,null,null,null,null,{"$f":"\"2.\" &mergeValue(A8)","v":"2.1"},"Наименование централизованной системы коммунальной инфраструктуры",null,"Указывается наименование централизованной системы холодного водоснабжения/горячего водоснабжения/водоотведения/теплоснабжения, к которой относится размещаемая информация.\nВ случае наличия нескольких централизованных систем коммунальной инфраструктуры, информация по каждой из них указывается в отдельной строке."]
[null,null,null,null,null,{"$f":"\"3.\" &mergeValue(A9)","v":"3.1"},"Наименование регулируемого вида деятельности",null,"Указывается наименование вида регулируемой деятельности."]
[null,null,null,null,null,{"$f":"\"4.\"&mergeValue(A10)","v":"4.1"},"Территория оказания услуги по регулируемому виду деятельности","x"]
[null,1,null,null,null,{"$f":"\"4.\"&mergeValue(A11) &\".\"&mergeValue(B11)","v":"4.1.1"},"Субъект Российской Федерации",{"$f":"IF(region_name=\"\",\"\",region_name)","v":"Ленинградская область"},"Указывается наименование субъекта Российской Федерации"]
[null,null,1,null,null,{"$f":"\"4.\"&mergeValue(A12) &\".\"&mergeValue(B12)&\".\"&mergeValue(C12)","v":"4.1.1.1"},"муниципальный район",null,"Указывается наименование муниципального района, на территории которого организация оказывает услуги по регулируемому виду деятельности."]
[null,null,null,1,null,{"$f":"\"4.\"&mergeValue(A13) &\".\"&mergeValue(B13)&\".\"&mergeValue(C13)&\".\"&mergeValue(D13)","v":"4.1.1.1.1"},"муниципальное образование",null,"Указывается наименование и код муниципального района, муниципального образования в соответствии с Общероссийским классификатором территорий муниципальных образований (далее - ОКТМО), входящего в муниципальный район, на территории которого организация оказывает услуги по регулируемому виду деятельности.\nВ случае оказания услуг по регулируемому виду деятельности на территории нескольких муниципальных районов (муниципальных образований) данные по каждому их них указываются в отдельной строке."]
[null,null,null,null,null,null,"Добавить МО"]
[null,null,null,null,null,null,"Добавить МР"]
[null,null,null,null,null,null,"Добавить территорию"]
[null,null,null,null,null,null,"Добавить ЦС"]
[]
[null,null,null,null,null,null,"  1 Информация размещается при раскрытии информации по каждой из форм."]

{"sheet":"Форма 4.10.2 | Т-ТЭ | индикат","index":15,"n_rows":36,"n_cols":26,"rows_kept":36,"cut":false,"hidden":true,"merged":[[25,22,27,22],[35,12,35,22],[6,14,6,19],[23,4,28,4],[23,14,23,21],[24,5,27,5],[24,14,24,21],[25,17,26,17],[25,18,26,18],[25,19,26,19],[25,20,26,20],[18,18,18,19],[15,21,17,21],[16,14,17,14],[16,15,16,16],[16,17,16,19],[19,0,32,0],[19,14,19,21],[20,1,31,1],[20,14,20,21],[21,2,30,2],[21,14,21,21],[22,3,29,3],[22,14,22,21],[23,8,28,8],[24,9,27,9],[17,18,17,19],[13,14,13,20],[14,11,14,21],[14,22,17,22],[15,11,17,11],[15,12,17,12],[15,14,15,19],[15,20,17,20],[12,11,12,12],[4,11,4,19],[8,14,8,19],[9,14,9,19],[10,14,10,19],[11,14,11,19]]}
[]
[]
[]
[]
[null,null,null,null,null,null,null,null,null,null,null,"Форма 4.10.2 Информация о предложении величин тарифов на тепловую энергию, поддержанию резервной тепловой мощности1"]
[]
[null,null,null,null,null,null,null,null,null,null,null,null,"График поэтапного равномерного доведения предельного уровня цены на тепловую энергию (мощность)"]
[]
[]
[null,null,null,null,null,null,null,null,null,null,null,null,{"$f":"\"Дата подачи заявления об \"&IF(datePr_ch=\"\",\"утверждении\",\"изменении\") & \" тарифов\"","v":"Дата подачи заявления об утверждении тарифов"},null,{"$f":"IF(datePr_ch=\"\",IF(datePr=\"\",\"\",datePr),datePr_ch)","v":"29.04.2021"}]
[null,null,null,null,null,null,null,null,null,null,null,null,{"$f":"\"Номер подачи заявления об \"&IF(numberPr_ch=\"\",\"утверждении\",\"изменении\") & \" тарифов\"","v":"Номер подачи заявления об утверждении тарифов"},null,{"$f":"IF(numberPr_ch=\"\",IF(numberPr=\"\",\"\",numberPr),numberPr_ch)","v":"520"}]
[]
[null,null,null,null,null,null,null,null,null,null,null,null,null,null,null,null,null,null,null,null,"dp"]
[]
[null,null,null,null,null,null,null,null,null,null,null,"Параметры формы",null,null,null,null,null,null,null,null,null,null,"Описание параметров формы"]
[null,null,null,null,null,null,null,null,null,null,null,"№ п/п","Параметр дифференциации тарифа",null,"Период действия тарифа",null,null,null,null,null,"Наличие других периодов действия тарифа","Добавить период"]
[null,null,null,null,null,null,null,null,null,null,null,null,null,null,"Одноставочный тариф, руб./Гкал","Двухставочный тариф",null,"Период действия"]
[null,null,null,null,null,null,null,null,null,null,null,null,null,null,null,"ставка за тепловую  энергию, руб./Гкал","ставка за содержание тепловой мощности, тыс.руб./Гкал/ч/мес","дата начала","дата окончания"]
[null,null,null,null,null,null,null,null,null,null,1,"1","2",{"$f":"OFFSET(N19,0,-1)","v":"2"},{"$f":"OFFSET(O19,0,-1)+1","v":3},{"$f":"OFFSET(P19,0,-1)+1","v":4},{"$f":"OFFSET(Q19,0,-1)+1","v":5},{"$f":"OFFSET(R19,0,-1)+1","v":6},{"$f":"OFFSET(S19,0,-1)+1","v":7},null,{"$f":"OFFSET(U19,0,-2)+1","v":8},{"$f":"OFFSET(V19,0,-1)","v":8},{"$f":"OFFSET(W19,0,-1)+1","v":9}]
[1,null,null,null,null,null,null,null,null,null,null,{"$f":"mergeValue(A20)","v":1},"Наименование тарифа",null,null,null,null,null,null,null,null,null,"Указывается наименование тарифа в случае подачи предложения по нескольким тарифам.\nВ случае наличия нескольких тарифов информация по ним указывается в отдельных строках.",null,null,{"$f":"IF(M20=\"\",\"\",M20 )","v":"Наименование тарифа"}]
[null,1,null,null,null,null,null,null,null,null,null,{"$f":"mergeValue(A21) &\".\"& mergeValue(B21)","v":"1.1"},"Территория действия тарифа",null,null,null,null,null,null,null,null,null,"Указывается наименование территории действия тарифа при наличии дифференциации тарифа по территориальному признаку.\nВ случае дифференциации тарифов по территориальному признаку информация по ним указывается в отдельных строках.",null,null,"Территория действия тарифа"]
[null,null,1,null,null,null,null,null,null,null,null,{"$f":"mergeValue(A22) &\".\"& mergeValue(B22)&\".\"& mergeValue(C22)","v":"1.1.1"},"Наименование системы теплоснабжения ",null,null,null,null,null,null,null,null,null,"Указывается наименование системы теплоснабжения при наличии дифференциации тарифа по системам теплоснабжения.\nВ случае дифференциации тарифов по системам теплоснабжения информация по ним указывается в отдельных строках.",null,null,"Наименование системы теплоснабжения "]
[null,null,null,1,null,null,null,null,null,null,null,{"$f":"mergeValue(A23) &\".\"& mergeValue(B23)&\".\"& mergeValue(C23)&\".\"& mergeValue(D23)","v":"1.1.1.1"},"Источник тепловой энергии  ",null,null,null,null,null,null,null,null,null,"Указывается наименование источника тепловой энергии\nВ случае дифференциации тарифов по источникам тепловой энергии информация по ним указывается в отдельных строках.",null,null,"Источник тепловой энергии  "]
[null,null,null,null,1,null,null,1,1,null,null,{"$f":"mergeValue(A24) &\".\"& mergeValue(B24)&\".\"& mergeValue(C24)&\".\"& mergeValue(D24)&\".\"& mergeValue(E24)","v":"1.1.1.1.1"},"Схема подключения теплопотребляющей установки к коллектору источника тепловой энергии",null,null,null,null,null,null,null,null,null,"Указывается схема подключения теплопотребляющей установки к коллектору источника тепловой энергии только для тарифов на тепловую энергию и за услуги по поддержанию резервной мощности.\nЗначение выбирается из перечня: Без дифференциации; к коллектору источника тепловой энергии; к тепловой сети без дополнительного преобразования на тепловых пунктах, эксплуатируемых теплоснабжающей организацией; к тепловой сети после тепловых пунктов (на тепловых пунктах), эксплуатируемых теплоснабжающей организацией.\nВ случае дифференциации тарифов по схемам подключения теплопотребляющей установки к коллектору источника тепловой энергии информация по ним указывается в отдельных строках.",null,null,"Схема подключения теплопотребляющей установки к коллектору источника тепловой энергии"]
[null,null,null,null,null,1,null,null,null,1,null,{"$f":"mergeValue(A25) &\".\"& mergeValue(B25)&\".\"& mergeValue(C25)&\".\"& mergeValue(D25)&\".\"& mergeValue(E25)&\".\"& mergeValue(F25)","v":"1.1.1.1.1.1"},"Группа потребителей",null,null,null,null,null,null,null,null,null,"Указывается группа потребителей при наличии дифференциации тарифа по группам потребителей.\nЗначение выбирается из перечня: Организации-перепродавцы; Бюджетные организации; Население; Прочие; Без дифференциации.\nВ случае дифференциации тарифов группам потребителей информация по ним указывается в отдельных строках.",null,null,"Группа потребителей"]
[null,null,null,null,null,null,1,null,null,null,1,{"$f":"mergeValue(A26) &\".\"& mergeValue(B26)&\".\"& mergeValue(C26)&\".\"& mergeValue(D26)&\".\"& mergeValue(E26)&\".\"& mergeValue(F26)&\".\"& mergeValue(G26)","v":"1.1.1.1.1.1.1"},null,null,null,null,null,null,"да",null,"нет",null,"В колонке «Параметр дифференциации тарифов» указывается вид теплоносителя.\nЗначение выбирается из перечня: вода; пар; отборный пар, 1.2-2.5 кг/см2; отборный пар, 2.5-7 кг/см2; отборный пар, 7-13 кг/см2; отборный пар, > 13 кг/см2; острый и редуцированный пар; горячая вода в системе централизованного теплоснабжения на отопление; горячая вода в системе централизованного теплоснабжения на горячее водоснабжение; прочее.\nПри подаче предложения на двухставочный тариф колонка «Одноставочный тариф» не заполняется.\nПри подаче предложения на одноставочный тариф колонки в блоке «Двухставочный тариф» не заполняются.\nДаты начала и окончания действия тарифов указываются в виде «ДД.ММ.ГГГГ».\nВ случае отсутствия даты окончания действия тарифа в колонке «Дата окончания» указывается «Нет».\nИнформация в колонке «Ставка за содержание тепловой мощности, тыс. руб./Гкал/ч/мес» указывается только для тарифа по поддержанию резервной мощности. \nВ случае дифференциации тарифов по периодам действия тарифа информация по ним указывается в отдельных колонках.\nВ случае дифференциации тарифов по видам теплоносителя информация по ним указывается в отдельных строках.",{"$f":"strCheckDate(O27:V27)","v":""},null,""]
[null,null,null,null,null,null,null,null,null,null,null,null,null,null,null,null,{"$f":"R26 & \"-\" & T26","v":"-"},null,null,null,null,null,null,null,null,""]
[null,null,null,null,null,null,null,null,null,null,null,null,"Добавить вид теплоносителя (параметры теплоносителя)",null,null,null,null,null,null,null,null,null,null,null,null,"Добавить вид теплоносителя (параметры теплоносителя)"]
[null,null,null,null,null,null,null,null,null,null,null,null,"Добавить группу потребителей",null,null,null,null,null,null,null,null,null,null,null,null,"Добавить группу потребителей"]
[null,null,null,null,null,null,null,null,null,null,null,null,"Добавить схему подключения",null,null,null,null,null,null,null,null,null,null,null,null,"Добавить схему подключения"]
[null,null,null,null,null,null,null,null,null,null,null,null,"Добавить источник тепловой энергии",null,null,null,null,null,null,null,null,null,null,null,null,"Добавить источник тепловой энергии"]
[null,null,null,null,null,null,null,null,null,null,null,null,"Добавить наименование системы теплоснабжения",null,null,null,null,null,null,null,null,null,null,null,null,"Добавить наименование системы теплоснабжения"]
[null,null,null,null,null,null,null,null,null,null,null,null,"Добавить территорию действия тарифа",null,null,null,null,null,null,null,null,null,null,null,null,"Добавить территорию действия тарифа"]
[null,null,null,null,null,null,null,null,null,null,null,null,"Добавить наименование тарифа"]
[]
[null,null,null,null,null,null,null,null,null,null,null,1,"Для каждого вида тарифа в сфере теплоснабжения форма заполняется отдельно. При размещении информации по данной форме дополнительно указывается дата подачи заявления об утверждении тарифа и его номер.\n\nПо данной форме размещается в том числе информация о предложении об установлении цен (тарифов) в сфере теплоснабжения для единых теплоснабжающих организаций, а также теплоснабжающих организаций, теплосетевых организаций в ценовых зонах теплоснабжения."]

{"sheet":"Форма 1.0.1 | Резерв мощности","index":16,"n_rows":19,"n_cols":10,"rows_kept":19,"cut":false,"hidden":true,"merged":[[18,6,18,7],[1,5,1,7],[3,5,3,7],[3,8,4,8],[7,0,15,0],[10,1,14,1],[11,2,13,2],[12,8,13,8]]}
["8"]
[null,null,null,null,null,"Форма 1.0.1 Основные параметры раскрываемой информации 1"]
[]
[null,null,null,null,null,"Параметры формы",null,null,"Описание параметров формы"]
[null,null,null,null,null,"№ п/п","Наименование параметра","Информация"]
[null,null,null,null,null,"1",2,3,4,4]
[null,null,null,null,null,1,"Дата заполнения/внесения изменений",{"$f":"IF(dateCh=\"\",\"\",dateCh)","v":"07.05.2021"},"Указывается календарная дата первичного заполнения или внесения изменений в форму в виде «ДД.ММ.ГГГГ»."]
[1,null,null,null,null,{"$f":"\"2.\" &mergeValue(A8)","v":"2.1"},"Наименование централизованной системы коммунальной инфраструктуры",null,"Указывается наименование централизованной системы холодного водоснабжения/горячего водоснабжения/водоотведения/теплоснабжения, к которой относится размещаемая информация.\nВ случае наличия нескольких централизованных систем коммунальной инфраструктуры, информация по каждой из них указывается в отдельной строке."]
[null,null,null,null,null,{"$f":"\"3.\" &mergeValue(A9)","v":"3.1"},"Наименование регулируемого вида деятельности",null,"Указывается наименование вида регулируемой деятельности."]
[null,null,null,null,null,{"$f":"\"4.\"&mergeValue(A10)","v":"4.1"},"Территория оказания услуги по регулируемому виду деятельности","x"]
[null,1,null,null,null,{"$f":"\"4.\"&mergeValue(A11) &\".\"&mergeValue(B11)","v":"4.1.1"},"Субъект Российской Федерации",{"$f":"IF(region_name=\"\",\"\",region_name)","v":"Ленинградская область"},"Указывается наименование субъекта Российской Федерации"]
[null,null,1,null,null,{"$f":"\"4.\"&mergeValue(A12) &\".\"&mergeValue(B12)&\".\"&mergeValue(C12)","v":"4.1.1.1"},"муниципальный район",null,"Указывается наименование муниципального района, на территории которого организация оказывает услуги по регулируемому виду деятельности."]
[null,null,null,1,null,{"$f":"\"4.\"&mergeValue(A13) &\".\"&mergeValue(B13)&\".\"&mergeValue(C13)&\".\"&mergeValue(D13)","v":"4.1.1.1.1"},"муниципальное образование",null,"Указывается наименование и код муниципального района, муниципального образования в соответствии с Общероссийским классификатором территорий муниципальных образований (далее - ОКТМО), входящего в муниципальный район, на территории которого организация оказывает услуги по регулируемому виду деятельности.\nВ случае оказания услуг по регулируемому виду деятельности на территории нескольких муниципальных районов (муниципальных образований) данные по каждому их них указываются в отдельной строке."]
[null,null,null,null,null,null,"Добавить МО"]
[null,null,null,null,null,null,"Добавить МР"]
[null,null,null,null,null,null,"Добавить территорию"]
[null,null,null,null,null,null,"Добавить ЦС"]
[]
[null,null,null,null,null,null,"  1 Информация размещается при раскрытии информации по каждой из форм."]

{"sheet":"Форма 4.10.2 | Резерв мощности","index":17,"n_rows":34,"n_cols":27,"rows_kept":34,"cut":false,"hidden":true,"merged":[[23,19,24,19],[23,20,24,20],[33,12,33,22],[23,22,25,22],[16,18,16,19],[17,0,30,0],[17,14,17,21],[18,1,29,1],[18,14,18,21],[19,2,28,2],[19,14,19,21],[20,3,27,3],[20,14,20,21],[21,4,26,4],[21,8,26,8],[21,14,21,21],[22,5,25,5],[22,9,25,9],[22,14,22,21],[23,17,24,17],[23,18,24,18],[4,11,4,19],[8,14,8,19],[9,14,9,19],[12,22,15,22],[15,18,15,19],[13,21,15,21],[12,11,12,21],[13,11,15,11],[13,12,15,12],[13,20,15,20],[13,14,13,19],[6,14,6,19],[7,14,7,19],[14,14,15,14],[14,17,14,19],[11,14,11,20]]}
[]
[]
[]
[]
[null,null,null,null,null,null,null,null,null,null,null,"Форма 4.10.2 Информация о предложении величин тарифов на тепловую энергию, поддержанию резервной тепловой мощности1"]
[]
[]
[null,null,null,null,null,null,null,null,null,null,null,null,{"$f":"\"Дата подачи заявления об \"&IF(datePr_ch=\"\",\"утверждении\",\"изменении\") & \" тарифов\"","v":"Дата подачи заявления об утверждении тарифов"},null,{"$f":"IF(datePr_ch=\"\",IF(datePr=\"\",\"\",datePr),datePr_ch)","v":"29.04.2021"}]
[null,null,null,null,null,null,null,null,null,null,null,null,{"$f":"\"Номер подачи заявления об \"&IF(numberPr_ch=\"\",\"утверждении\",\"изменении\") & \" тарифов\"","v":"Номер подачи заявления об утверждении тарифов"},null,{"$f":"IF(numberPr_ch=\"\",IF(numberPr=\"\",\"\",numberPr),numberPr_ch)","v":"520"}]
[]
[null,null,null,null,null,null,null,null,null,null,null,null,null,null,null,null,null,null,null,null,"dp"]
[null,null,null,null,null,null,null,"1"]
[null,null,null,null,null,null,null,null,null,null,null,"Параметры формы",null,null,null,null,null,null,null,null,null,null,"Описание параметров формы"]
[null,null,null,null,null,null,null,null,null,null,null,"№ п/п","Параметр дифференциации тарифа",null,"Период действия тарифа",null,null,null,null,null,"Наличие других периодов действия тарифа","Добавить период"]
[null,null,null,null,null,null,null,null,null,null,null,null,null,null,"Ставка за содержание тепловой мощности, тыс. руб./Гкал/ч/мес.",null,null,"Период действия"]
[null,null,null,null,null,null,null,null,null,null,null,null,null,null,null,null,null,"дата начала","дата окончания"]
[null,null,null,null,null,null,null,null,null,null,1,"1","2","2",{"$f":"OFFSET(O17,0,-1)+1","v":3},{"$f":"OFFSET(P17,0,-1)","v":3},{"$f":"OFFSET(Q17,0,-1)","v":3},{"$f":"OFFSET(R17,0,-1)+1","v":4},{"$f":"OFFSET(S17,0,-1)+1","v":5},null,{"$f":"OFFSET(U17,0,-2)+1","v":6},{"$f":"OFFSET(V17,0,-1)","v":6},{"$f":"OFFSET(W17,0,-1)+1","v":7}]
[1,null,null,null,null,null,null,null,null,null,null,{"$f":"mergeValue(A18)","v":1},"Наименование тарифа",null,null,null,null,null,null,null,null,null,"Указывается наименование тарифа в случае подачи предложения по нескольким тарифам.\nВ случае наличия нескольких тарифов информация по ним указывается в отдельных строках."]
[null,1,null,null,null,null,null,null,null,null,null,{"$f":"mergeValue(A19) &\".\"& mergeValue(B19)","v":"1.1"},"Территория действия тарифа",null,null,null,null,null,null,null,null,null,"Указывается наименование территории действия тарифа при наличии дифференциации тарифа по территориальному признаку.\nВ случае дифференциации тарифов по территориальному признаку информация по ним указывается в отдельных строках."]
[null,null,1,null,null,null,null,null,null,null,null,{"$f":"mergeValue(A20) &\".\"& mergeValue(B20)&\".\"& mergeValue(C20)","v":"1.1.1"},"Наименование системы теплоснабжения ",null,null,null,null,null,null,null,null,null,"Указывается наименование системы теплоснабжения при наличии дифференциации тарифа по системам теплоснабжения.\nВ случае дифференциации тарифов по системам теплоснабжения информация по ним указывается в отдельных строках."]
[null,null,null,1,null,null,null,null,null,null,null,{"$f":"mergeValue(A21) &\".\"& mergeValue(B21)&\".\"& mergeValue(C21)&\".\"& mergeValue(D21)","v":"1.1.1.1"},"Источник тепловой энергии  ",null,null,null,null,null,null,null,null,null,"Указывается наименование источника тепловой энергии\nВ случае дифференциации тарифов по источникам тепловой энергии информация по ним указывается в отдельных строках."]
[null,null,null,null,1,null,null,1,1,null,null,{"$f":"mergeValue(A22) &\".\"& mergeValue(B22)&\".\"& mergeValue(C22)&\".\"& mergeValue(D22)&\".\"& mergeValue(E22)","v":"1.1.1.1.1"},"Схема подключения теплопотребляющей установки к коллектору источника тепловой энергии",null,null,null,null,null,null,null,null,null,"Указывается схема подключения теплопотребляющей установки к коллектору источника тепловой энергии только для тарифов на тепловую энергию и за услуги по поддержанию резервной мощности.\nЗначение выбирается из перечня: Без дифференциации; к коллектору источника тепловой энергии; к тепловой сети без дополнительного преобразования на тепловых пунктах, эксплуатируемых теплоснабжающей организацией; к тепловой сети после тепловых пунктов (на тепловых пунктах), эксплуатируемых теплоснабжающей организацией.\nВ случае дифференциации тарифов по схемам подключения теплопотребляющей установки к коллектору источника тепловой энергии информация по ним указывается в отдельных строках."]
[null,null,null,null,null,1,null,null,null,1,null,{"$f":"mergeValue(A23) &\".\"& mergeValue(B23)&\".\"& mergeValue(C23)&\".\"& mergeValue(D23)&\".\"& mergeValue(E23)&\".\"& mergeValue(F23)","v":"1.1.1.1.1.1"},"Группа потребителей",null,null,null,null,null,null,null,null,null,"Указывается группа потребителей при наличии дифференциации тарифа по группам потребителей.\nЗначение выбирается из перечня: Организации-перепродавцы; Бюджетные организации; Население; Прочие; Без дифференциации.\nВ случае дифференциации тарифов группам потребителей информация по ним указывается в отдельных строках.",null,{"$f":"strCheckUnique(Z23:Z26)","v":""},null,{"$f":"IF(O23=\"\",\"\",O23 & \":_\")","v":""}]
[null,null,null,null,null,null,1,null,null,null,1,{"$f":"mergeValue(A24) &\".\"& mergeValue(B24)&\".\"& mergeValue(C24)&\".\"& mergeValue(D24)&\".\"& mergeValue(E24)&\".\"& mergeValue(F24)&\".\"& mergeValue(G24)","v":"1.1.1.1.1.1.1"},null,null,null,null,null,null,"да",null,"нет",null,"В колонке «Параметр дифференциации тарифов» указывается вид теплоносителя.\nЗначение выбирается из перечня: вода; пар; отборный пар, 1.2-2.5 кг/см2; отборный пар, 2.5-7 кг/см2; отборный пар, 7-13 кг/см2; отборный пар, > 13 кг/см2; острый и редуцированный пар; горячая вода в системе централизованного теплоснабжения на отопление; горячая вода в системе централизованного теплоснабжения на горячее водоснабжение; прочее.\nПри подаче предложения на двухставочный тариф колонка «Одноставочный тариф» не заполняется.\nПри подаче предложения на одноставочный тариф колонки в блоке «Двухставочный тариф» не заполняются.\nДаты начала и окончания действия тарифов указываются в виде «ДД.ММ.ГГГГ».\nВ случае отсутствия даты окончания действия тарифа в колонке «Дата окончания» указывается «Нет».\nИнформация в колонке «Ставка за содержание тепловой мощности, тыс. руб./Гкал/ч/мес» указывается только для тарифа по поддержанию резервной мощности. \nВ случае дифференциации тарифов по периодам действия тарифа информация по ним указывается в отдельных колонках.\nВ случае дифференциации тарифов по видам теплоносителя информация по ним указывается в отдельных строках.",{"$f":"strCheckDate(O25:V25)","v":""},null,{"$f":"IF(M24=\"\",\"\",M24 )","v":""}]
[null,null,null,null,null,null,null,null,null,null,null,null,null,null,null,null,{"$f":"R24 & \"-\" & T24","v":"-"}]
[null,null,null,null,null,null,null,null,null,null,null,null,"Добавить вид теплоносителя (параметры теплоносителя)"]
[null,null,null,null,null,null,null,null,null,null,null,null,"Добавить группу потребителей"]
[null,null,null,null,null,null,null,null,null,null,null,null,"Добавить схему подключения"]
[null,null,null,null,null,null,null,null,null,null,null,null,"Добавить источник тепловой энергии"]
[null,null,null,null,null,null,null,null,null,null,null,null,"Добавить наименование системы теплоснабжения"]
[null,null,null,null,null,null,null,null,null,null,null,null,"Добавить территорию действия тарифа"]
[null,null,null,null,null,null,null,null,null,null,null,null,"Добавить наименование тарифа"]
[]
[null,null,null,null,null,null,null,null,null,null,null,1,"Для каждого вида тарифа в сфере теплоснабжения форма заполняется отдельно. При размещении информации по данной форме дополнительно указывается дата подачи заявления об утверждении тарифа и его номер.\n\nПо данной форме размещается в том числе информация о предложении об установлении цен (тарифов) в сфере теплоснабжения для единых теплоснабжающих организаций, а также теплоснабжающих организаций, теплосетевых организаций в ценовых зонах теплоснабжения."]

{"sheet":"Форма 1.0.1 | Т-ТН","index":18,"n_rows":19,"n_cols":10,"rows_kept":19,"cut":false,"hidden":true,"merged":[[18,6,18,7],[1,5,1,7],[3,5,3,7],[3,8,4,8],[7,0,15,0],[10,1,14,1],[11,2,13,2],[12,8,13,8]]}
["4"]
[null,null,null,null,null,"Форма 1.0.1 Основные параметры раскрываемой информации 1"]
[]
[null,null,null,null,null,"Параметры формы",null,null,"Описание параметров формы"]
[null,null,null,null,null,"№ п/п","Наименование параметра","Информация"]
[null,null,null,null,null,"1",2,3,4,4]
[null,null,null,null,null,1,"Дата заполнения/внесения изменений",{"$f":"IF(dateCh=\"\",\"\",dateCh)","v":"07.05.2021"},"Указывается календарная дата первичного заполнения или внесения изменений в форму в виде «ДД.ММ.ГГГГ»."]
[1,null,null,null,null,{"$f":"\"2.\" &mergeValue(A8)","v":"2.1"},"Наименование централизованной системы коммунальной инфраструктуры",null,"Указывается наименование централизованной системы холодного водоснабжения/горячего водоснабжения/водоотведения/теплоснабжения, к которой относится размещаемая информация.\nВ случае наличия нескольких централизованных систем коммунальной инфраструктуры, информация по каждой из них указывается в отдельной строке."]
[null,null,null,null,null,{"$f":"\"3.\" &mergeValue(A9)","v":"3.1"},"Наименование регулируемого вида деятельности",null,"Указывается наименование вида регулируемой деятельности."]
[null,null,null,null,null,{"$f":"\"4.\"&mergeValue(A10)","v":"4.1"},"Территория оказания услуги по регулируемому виду деятельности","x"]
[null,1,null,null,null,{"$f":"\"4.\"&mergeValue(A11) &\".\"&mergeValue(B11)","v":"4.1.1"},"Субъект Российской Федерации",{"$f":"IF(region_name=\"\",\"\",region_name)","v":"Ленинградская область"},"Указывается наименование субъекта Российской Федерации"]
[null,null,1,null,null,{"$f":"\"4.\"&mergeValue(A12) &\".\"&mergeValue(B12)&\".\"&mergeValue(C12)","v":"4.1.1.1"},"муниципальный район",null,"Указывается наименование муниципального района, на территории которого организация оказывает услуги по регулируемому виду деятельности."]
[null,null,null,1,null,{"$f":"\"4.\"&mergeValue(A13) &\".\"&mergeValue(B13)&\".\"&mergeValue(C13)&\".\"&mergeValue(D13)","v":"4.1.1.1.1"},"муниципальное образование",null,"Указывается наименование и код муниципального района, муниципального образования в соответствии с Общероссийским классификатором территорий муниципальных образований (далее - ОКТМО), входящего в муниципальный район, на территории которого организация оказывает услуги по регулируемому виду деятельности.\nВ случае оказания услуг по регулируемому виду деятельности на территории нескольких муниципальных районов (муниципальных образований) данные по каждому их них указываются в отдельной строке."]
[null,null,null,null,null,null,"Добавить МО"]
[null,null,null,null,null,null,"Добавить МР"]
[null,null,null,null,null,null,"Добавить территорию"]
[null,null,null,null,null,null,"Добавить ЦС"]
[]
[null,null,null,null,null,null,"  1 Информация размещается при раскрытии информации по каждой из форм."]

{"sheet":"Форма 4.10.3 | Т-ТН","index":19,"n_rows":34,"n_cols":26,"rows_kept":34,"cut":false,"hidden":true,"merged":[[23,22,25,22],[14,17,14,19],[13,14,13,19],[33,12,33,22],[13,20,15,20],[13,21,15,21],[12,22,15,22],[12,11,12,21],[13,11,15,11],[13,12,15,12],[16,18,16,19],[23,19,24,19],[4,11,4,19],[6,14,6,19],[7,14,7,19],[10,11,10,12],[10,14,10,19],[8,14,8,19],[9,14,9,19],[11,14,11,20],[14,14,15,14],[14,15,14,16],[15,18,15,19],[20,8,27,8],[17,0,30,0],[17,14,17,21],[18,1,29,1],[18,14,18,21],[19,2,28,2],[23,20,24,20],[19,14,19,21],[20,3,27,3],[20,14,20,21],[21,4,26,4],[22,5,25,5],[22,9,25,9],[22,14,22,21],[23,17,24,17],[23,18,24,18]]}
[]
[]
[]
[]
[null,null,null,null,null,null,null,null,null,null,null,"Форма 4.10.3 Информация о предложении величин тарифов на теплоноситель, передачу тепловой энергии, теплоносителя1"]
[]
[]
[null,null,null,null,null,null,null,null,null,null,null,null,{"$f":"\"Дата подачи заявления об \"&IF(datePr_ch=\"\",\"утверждении\",\"изменении\") & \" тарифов\"","v":"Дата подачи заявления об утверждении тарифов"},null,{"$f":"IF(datePr_ch=\"\",IF(datePr=\"\",\"\",datePr),datePr_ch)","v":"29.04.2021"}]
[null,null,null,null,null,null,null,null,null,null,null,null,{"$f":"\"Номер подачи заявления об \"&IF(numberPr_ch=\"\",\"утверждении\",\"изменении\") & \" тарифов\"","v":"Номер подачи заявления об утверждении тарифов"},null,{"$f":"IF(numberPr_ch=\"\",IF(numberPr=\"\",\"\",numberPr),numberPr_ch)","v":"520"}]
[]
[null,null,null,null,null,null,null,null,null,null,null,null,null,null,null,null,null,null,null,null,"dp"]
[]
[null,null,null,null,null,null,null,null,null,null,null,"Параметры формы",null,null,null,null,null,null,null,null,null,null,"Описание параметров формы"]
[null,null,null,null,null,null,null,null,null,null,null,"№ п/п","Параметр дифференциации тарифа",null,"Период действия тарифа",null,null,null,null,null,"Наличие других периодов действия тарифа","Добавить период"]
[null,null,null,null,null,null,null,null,null,null,null,null,null,null,"Одноставочный тариф, руб./куб.м",null,null,"Период действия"]
[null,null,null,null,null,null,null,null,null,null,null,null,null,null,null,null,null,"дата начала","дата окончания"]
[null,null,null,null,null,null,null,null,null,null,1,"1","2","2",{"$f":"OFFSET(O17,0,-1)+1","v":3},{"$f":"OFFSET(P17,0,-1)","v":3},{"$f":"OFFSET(Q17,0,-1)","v":3},{"$f":"OFFSET(R17,0,-1)+1","v":4},{"$f":"OFFSET(S17,0,-1)+1","v":5},null,{"$f":"OFFSET(U17,0,-2)+1","v":6},{"$f":"OFFSET(V17,0,-1)","v":6},{"$f":"OFFSET(W17,0,-1)+1","v":7}]
[1,null,null,null,null,null,null,null,null,null,1,{"$f":"mergeValue(A18)","v":1},"Наименование тарифа",null,null,null,null,null,null,null,null,null,"Указывается наименование тарифа в случае подачи предложения по нескольким тарифам.\nВ случае наличия нескольких тарифов информация по ним указывается в отдельных строках."]
[null,1,null,null,null,null,null,null,null,null,1,{"$f":"mergeValue(A19) &\".\"& mergeValue(B19)","v":"1.1"},"Территория действия тарифа",null,null,null,null,null,null,null,null,null,"Указывается наименование территории действия тарифа при наличии дифференциации тарифа по территориальному признаку.\nВ случае дифференциации тарифов по территориальному признаку информация по ним указывается в отдельных строках."]
[null,null,1,null,null,null,null,null,null,null,1,{"$f":"mergeValue(A20) &\".\"& mergeValue(B20)&\".\"& mergeValue(C20)","v":"1.1.1"},"Наименование системы теплоснабжения ",null,null,null,null,null,null,null,null,null,"Указывается наименование системы теплоснабжения при наличии дифференциации тарифа по системам теплоснабжения.\nВ случае дифференциации тарифов по системам теплоснабжения информация по ним указывается в отдельных строках."]
[null,null,null,1,null,null,null,null,1,null,1,{"$f":"mergeValue(A21) &\".\"& mergeValue(B21)&\".\"& mergeValue(C21)&\".\"& mergeValue(D21)","v":"1.1.1.1"},"Источник тепловой энергии  ",null,null,null,null,null,null,null,null,null,"Указывается наименование источника тепловой энергии\nВ случае дифференциации тарифов по источникам тепловой энергии информация по ним указывается в отдельных строках."]
[null,null,null,null,1,null,null,null,null,null,1]
[null,null,null,null,null,1,null,null,null,null,1,{"$f":"mergeValue(A23) &\".\"& mergeValue(B23)&\".\"& mergeValue(C23)&\".\"& mergeValue(D23)&\".\"&  mergeValue(F23)","v":"1.1.1.1.1"},"Группа потребителей",null,null,null,null,null,null,null,null,null,"Указывается группа потребителей при наличии дифференциации тарифа по группам потребителей.\nЗначение выбирается из перечня: Организации-перепродавцы; Бюджетные организации; Население; Прочие; Без дифференциации.\nВ случае дифференциации тарифов группам потребителей информация по ним указывается в отдельных строках.",null,{"$f":"strCheckUnique(Z23:Z26)","v":""}]
[null,null,null,null,null,null,1,null,null,null,null,{"$f":"mergeValue(A24) &\".\"& mergeValue(B24)&\".\"& mergeValue(C24)&\".\"& mergeValue(D24)&\".\"&  mergeValue(F24)&\".\"&  mergeValue(G24)","v":"1.1.1.1.1.1"},null,null,null,null,null,null,"да",null,"нет",null,"В колонке «Параметр дифференциации тарифов» указывается вид теплоносителя.\nЗначение выбирается из перечня: вода; пар; отборный пар, 1.2-2.5 кг/см2; отборный пар, 2.5-7 кг/см2; отборный пар, 7-13 кг/см2; отборный пар, > 13 кг/см2; острый и редуцированный пар; горячая вода в системе централизованного теплоснабжения на отопление;  горячая вода в системе централизованного теплоснабжения на горячее водоснабжение; прочее.\nПри подаче предложения на двухставочный тариф колонка «Одноставочный тариф» не заполняется.\nПри подаче предложения на одноставочный тариф колонки в блоке «Двухставочный тариф» не заполняются.\nИнформация в колонке «Двухставочный тариф» не указывается для тарифа на теплоноситель.\nДаты начала и окончания действия тарифов указываются в виде «ДД.ММ.ГГГГ».\nВ случае отсутствия даты окончания действия тарифа в колонке «Дата окончания» указывается «Нет».\nВ случае дифференциации тарифов по видам теплоносителя информация по ним указывается в отдельных строках.",{"$f":"strCheckDate(O25:V25)","v":""},null,{"$f":"IF(M24=\"\",\"\",M24 )","v":""}]
[null,null,null,null,null,null,null,null,null,null,1,null,null,null,null,null,{"$f":"R24 & \"-\" & T24","v":"-"}]
[null,null,null,null,null,null,null,null,null,null,1,null,"Добавить вид теплоносителя (параметры теплоносителя)"]
[null,null,null,null,null,null,null,null,null,null,null,null,"Добавить группу потребителей"]
[]
[null,null,null,null,null,null,null,null,null,null,1,null,"Добавить источник тепловой энергии"]
[null,null,null,null,null,null,null,null,null,null,1,null,"Добавить наименование системы теплоснабжения"]
[null,null,null,null,null,null,null,null,null,null,1,null,"Добавить территорию действия тарифа"]
[null,null,null,null,null,null,null,null,null,null,null,null,"Добавить наименование тарифа"]
[]
[null,null,null,null,null,null,null,null,null,null,null,1,"Для каждого вида цены (тарифа) в сфере теплоснабжения форма заполняется отдельно. При размещении информации по данной форме дополнительно указывается дата подачи заявления об утверждении цены (тарифа) и его номер.\n\nПо данной форме размещается в том числе информация о предложении об установлении цен (тарифов) для единых теплоснабжающих организаций, а также теплоснабжающих организаций, теплосетевых организаций в ценовых зонах теплоснабжения."]

{"sheet":"Форма 1.0.1 | Т-передача ТЭ","index":20,"n_rows":19,"n_cols":10,"rows_kept":19,"cut":false,"hidden":true,"merged":[[18,6,18,7],[1,5,1,7],[3,5,3,7],[3,8,4,8],[7,0,15,0],[10,1,14,1],[11,2,13,2],[12,8,13,8]]}
["6"]
[null,null,null,null,null,"Форма 1.0.1 Основные параметры раскрываемой информации 1"]
[]
[null,null,null,null,null,"Параметры формы",null,null,"Описание параметров формы"]
[null,null,null,null,null,"№ п/п","Наименование параметра","Информация"]
[null,null,null,null,null,"1",2,3,4,4]
[null,null,null,null,null,1,"Дата заполнения/внесения изменений",{"$f":"IF(dateCh=\"\",\"\",dateCh)","v":"07.05.2021"},"Указывается календарная дата первичного заполнения или внесения изменений в форму в виде «ДД.ММ.ГГГГ»."]
[1,null,null,null,null,{"$f":"\"2.\" &mergeValue(A8)","v":"2.1"},"Наименование централизованной системы коммунальной инфраструктуры",null,"Указывается наименование централизованной системы холодного водоснабжения/горячего водоснабжения/водоотведения/теплоснабжения, к которой относится размещаемая информация.\nВ случае наличия нескольких централизованных систем коммунальной инфраструктуры, информация по каждой из них указывается в отдельной строке."]
[null,null,null,null,null,{"$f":"\"3.\" &mergeValue(A9)","v":"3.1"},"Наименование регулируемого вида деятельности",null,"Указывается наименование вида регулируемой деятельности."]
[null,null,null,null,null,{"$f":"\"4.\"&mergeValue(A10)","v":"4.1"},"Территория оказания услуги по регулируемому виду деятельности","x"]
[null,1,null,null,null,{"$f":"\"4.\"&mergeValue(A11) &\".\"&mergeValue(B11)","v":"4.1.1"},"Субъект Российской Федерации",{"$f":"IF(region_name=\"\",\"\",region_name)","v":"Ленинградская область"},"Указывается наименование субъекта Российской Федерации"]
[null,null,1,null,null,{"$f":"\"4.\"&mergeValue(A12) &\".\"&mergeValue(B12)&\".\"&mergeValue(C12)","v":"4.1.1.1"},"муниципальный район",null,"Указывается наименование муниципального района, на территории которого организация оказывает услуги по регулируемому виду деятельности."]
[null,null,null,1,null,{"$f":"\"4.\"&mergeValue(A13) &\".\"&mergeValue(B13)&\".\"&mergeValue(C13)&\".\"&mergeValue(D13)","v":"4.1.1.1.1"},"муниципальное образование",null,"Указывается наименование и код муниципального района, муниципального образования в соответствии с Общероссийским классификатором территорий муниципальных образований (далее - ОКТМО), входящего в муниципальный район, на территории которого организация оказывает услуги по регулируемому виду деятельности.\nВ случае оказания услуг по регулируемому виду деятельности на территории нескольких муниципальных районов (муниципальных образований) данные по каждому их них указываются в отдельной строке."]
[null,null,null,null,null,null,"Добавить МО"]
[null,null,null,null,null,null,"Добавить МР"]
[null,null,null,null,null,null,"Добавить территорию"]
[null,null,null,null,null,null,"Добавить ЦС"]
[]
[null,null,null,null,null,null,"  1 Информация размещается при раскрытии информации по каждой из форм."]

{"sheet":"Форма 4.10.3 | Т-передача ТЭ","index":21,"n_rows":34,"n_cols":26,"rows_kept":34,"cut":false,"hidden":true,"merged":[[33,12,33,22],[23,22,25,22],[12,11,12,21],[13,11,15,11],[13,12,15,12],[13,14,13,19],[13,20,15,20],[13,21,15,21],[14,14,15,14],[14,15,14,16],[14,17,14,19],[16,18,16,19],[12,22,15,22],[4,11,4,19],[8,14,8,19],[9,14,9,19],[6,14,6,19],[7,14,7,19],[10,11,10,12],[10,14,10,19],[11,14,11,20],[17,0,30,0],[17,14,17,21],[18,1,29,1],[18,14,18,21],[19,2,28,2],[15,18,15,19],[23,19,24,19],[23,20,24,20],[19,14,19,21],[20,3,27,3],[20,14,20,21],[21,4,26,4],[21,8,26,8],[22,5,25,5],[22,9,25,9],[22,14,22,21],[23,17,24,17],[23,18,24,18]]}
[]
[]
[]
[]
[null,null,null,null,null,null,null,null,null,null,null,"Форма 4.2.2 Информация о величинах тарифов на теплоноситель, передачу тепловой энергии, теплоносителя1"]
[]
[]
[null,null,null,null,null,null,null,null,null,null,null,null,{"$f":"\"Дата подачи заявления об \"&IF(datePr_ch=\"\",\"утверждении\",\"изменении\") & \" тарифов\"","v":"Дата подачи заявления об утверждении тарифов"},null,{"$f":"IF(datePr_ch=\"\",IF(datePr=\"\",\"\",datePr),datePr_ch)","v":"29.04.2021"}]
[null,null,null,null,null,null,null,null,null,null,null,null,{"$f":"\"Номер подачи заявления об \"&IF(numberPr_ch=\"\",\"утверждении\",\"изменении\") & \" тарифов\"","v":"Номер подачи заявления об утверждении тарифов"},null,{"$f":"IF(numberPr_ch=\"\",IF(numberPr=\"\",\"\",numberPr),numberPr_ch)","v":"520"}]
[]
[null,null,null,null,null,null,null,null,null,null,null,null,null,null,null,null,null,null,null,null,"dp"]
[]
[null,null,null,null,null,null,null,null,null,null,null,"Параметры формы",null,null,null,null,null,null,null,null,null,null,"Описание параметров формы"]
[null,null,null,null,null,null,null,null,null,null,null,"№ п/п","Параметр дифференциации тарифа",null,"Период действия тарифа",null,null,null,null,null,"Наличие других периодов действия тарифа","Добавить период"]
[null,null,null,null,null,null,null,null,null,null,null,null,null,null,"Одноставочный тариф, руб./Гкал","Двухставочный тариф",null,"Период действия"]
[null,null,null,null,null,null,null,null,null,null,null,null,null,null,null,"ставка за тепловую энергию, руб./Гкал","ставка за содержание тепловой мощности, тыс. руб./Гкал/ч/мес.","дата начала","дата окончания"]
[null,null,null,null,null,null,null,null,null,null,1,"1","2","2",{"$f":"OFFSET(O17,0,-1)+1","v":3},{"$f":"OFFSET(P17,0,-1)+1","v":4},{"$f":"OFFSET(Q17,0,-1)+1","v":5},{"$f":"OFFSET(R17,0,-1)+1","v":6},{"$f":"OFFSET(S17,0,-1)+1","v":7},null,{"$f":"OFFSET(U17,0,-2)+1","v":8},{"$f":"OFFSET(V17,0,-1)","v":8},{"$f":"OFFSET(W17,0,-1)+1","v":9}]
[1,null,null,null,null,null,null,null,null,null,null,{"$f":"mergeValue(A18)","v":1},"Наименование тарифа",null,null,null,null,null,null,null,null,null,"Указывается наименование тарифа в случае подачи предложения по нескольким тарифам.\nВ случае наличия нескольких тарифов информация по ним указывается в отдельных строках."]
[null,1,null,null,null,null,null,null,null,null,null,{"$f":"mergeValue(A19) &\".\"& mergeValue(B19)","v":"1.1"},"Территория действия тарифа",null,null,null,null,null,null,null,null,null,"Указывается наименование территории действия тарифа при наличии дифференциации тарифа по территориальному признаку.\nВ случае дифференциации тарифов по территориальному признаку информация по ним указывается в отдельных строках."]
[null,null,1,null,null,null,null,null,null,null,null,{"$f":"mergeValue(A20) &\".\"& mergeValue(B20)&\".\"& mergeValue(C20)","v":"1.1.1"},"Наименование системы теплоснабжения ",null,null,null,null,null,null,null,null,null,"Указывается наименование системы теплоснабжения при наличии дифференциации тарифа по системам теплоснабжения.\nВ случае дифференциации тарифов по системам теплоснабжения информация по ним указывается в отдельных строках."]
[null,null,null,1,null,null,null,null,null,null,null,{"$f":"mergeValue(A21) &\".\"& mergeValue(B21)&\".\"& mergeValue(C21)&\".\"& mergeValue(D21)","v":"1.1.1.1"},"Источник тепловой энергии  ",null,null,null,null,null,null,null,null,null,"Указывается наименование источника тепловой энергии\nВ случае дифференциации тарифов по источникам тепловой энергии информация по ним указывается в отдельных строках."]
[null,null,null,null,1,null,null,1,1]
[null,null,null,null,null,1,null,null,null,1,null,{"$f":"mergeValue(A23) &\".\"& mergeValue(B23)&\".\"& mergeValue(C23)&\".\"& mergeValue(D23)&\".\"&  mergeValue(F23)","v":"1.1.1.1.1"},"Группа потребителей",null,null,null,null,null,null,null,null,null,"Указывается группа потребителей при наличии дифференциации тарифа по группам потребителей.\nЗначение выбирается из перечня: Организации-перепродавцы; Бюджетные организации; Население; Прочие; Без дифференциации.\nВ случае дифференциации тарифов группам потребителей информация по ним указывается в отдельных строках.",null,{"$f":"strCheckUnique(Z23:Z26)","v":""}]
[null,null,null,null,null,null,1,null,null,null,1,{"$f":"mergeValue(A24) &\".\"& mergeValue(B24)&\".\"& mergeValue(C24)&\".\"& mergeValue(D24)&\".\"& mergeValue(F24)&\".\"& mergeValue(G24)","v":"1.1.1.1.1.1"},null,null,null,null,null,null,"да",null,"нет",null,"В колонке «Параметр дифференциации тарифов» указывается вид теплоносителя.\nЗначение выбирается из перечня: вода; пар; отборный пар, 1.2-2.5 кг/см2; отборный пар, 2.5-7 кг/см2; отборный пар, 7-13 кг/см2; отборный пар, > 13 кг/см2; острый и редуцированный пар; горячая вода в системе централизованного теплоснабжения на отопление;  горячая вода в системе централизованного теплоснабжения на горячее водоснабжение; прочее.\nПри подаче предложения на двухставочный тариф колонка «Одноставочный тариф» не заполняется.\nПри подаче предложения на одноставочный тариф колонки в блоке «Двухставочный тариф» не заполняются.\nИнформация в колонке «Двухставочный тариф» не указывается для тарифа на теплоноситель.\nДаты начала и окончания действия тарифов указываются в виде «ДД.ММ.ГГГГ».\nВ случае отсутствия даты окончания действия тарифа в колонке «Дата окончания» указывается «Нет».\nВ случае дифференциации тарифов по видам теплоносителя информация по ним указывается в отдельных строках.",{"$f":"strCheckDate(O25:V25)","v":""},null,{"$f":"IF(M24=\"\",\"\",M24 )","v":""}]
[null,null,null,null,null,null,null,null,null,null,null,null,null,null,null,null,{"$f":"R24 & \"-\" & T24","v":"-"}]
[null,null,null,null,null,null,null,null,null,null,null,null,"Добавить вид теплоносителя (параметры теплоносителя)"]
[null,null,null,null,null,null,null,null,null,null,null,null,"Добавить группу потребителей"]
[]
[null,null,null,null,null,null,null,null,null,null,null,null,"Добавить источник тепловой энергии"]
[null,null,null,null,null,null,null,null,null,null,null,null,"Добавить наименование системы теплоснабжения"]
[null,null,null,null,null,null,null,null,null,null,null,null,"Добавить территорию действия тарифа"]
[null,null,null,null,null,null,null,null,null,null,null,null,"Добавить наименование тарифа"]
[]
[null,null,null,null,null,null,null,null,null,null,null,1,"Для каждого вида цены (тарифа) в сфере теплоснабжения форма заполняется отдельно. При размещении информации по данной форме дополнительно указывается дата подачи заявления об утверждении цены (тарифа) и его номер.\n\nПо данной форме размещается в том числе информация о предложении об установлении цен (тарифов) для единых теплоснабжающих организаций, а также теплоснабжающих организаций, теплосетевых организаций в ценовых зонах теплоснабжения."]

{"sheet":"Форма 1.0.1 | Т-передача ТН","index":22,"n_rows":19,"n_cols":10,"rows_kept":19,"cut":false,"hidden":true,"merged":[[18,6,18,7],[1,5,1,7],[3,5,3,7],[3,8,4,8],[7,0,15,0],[10,1,14,1],[11,2,13,2],[12,8,13,8]]}
["7"]
[null,null,null,null,null,"Форма 1.0.1 Основные параметры раскрываемой информации 1"]
[]
[null,null,null,null,null,"Параметры формы",null,null,"Описание параметров формы"]
[null,null,null,null,null,"№ п/п","Наименование параметра","Информация"]
[null,null,null,null,null,"1",2,3,4,4]
[null,null,null,null,null,1,"Дата заполнения/внесения изменений",{"$f":"IF(dateCh=\"\",\"\",dateCh)","v":"07.05.2021"},"Указывается календарная дата первичного заполнения или внесения изменений в форму в виде «ДД.ММ.ГГГГ»."]
[1,null,null,null,null,{"$f":"\"2.\" &mergeValue(A8)","v":"2.1"},"Наименование централизованной системы коммунальной инфраструктуры",null,"Указывается наименование централизованной системы холодного водоснабжения/горячего водоснабжения/водоотведения/теплоснабжения, к которой относится размещаемая информация.\nВ случае наличия нескольких централизованных систем коммунальной инфраструктуры, информация по каждой из них указывается в отдельной строке."]
[null,null,null,null,null,{"$f":"\"3.\" &mergeValue(A9)","v":"3.1"},"Наименование регулируемого вида деятельности",null,"Указывается наименование вида регулируемой деятельности."]
[null,null,null,null,null,{"$f":"\"4.\"&mergeValue(A10)","v":"4.1"},"Территория оказания услуги по регулируемому виду деятельности","x"]
[null,1,null,null,null,{"$f":"\"4.\"&mergeValue(A11) &\".\"&mergeValue(B11)","v":"4.1.1"},"Субъект Российской Федерации",{"$f":"IF(region_name=\"\",\"\",region_name)","v":"Ленинградская область"},"Указывается наименование субъекта Российской Федерации"]
[null,null,1,null,null,{"$f":"\"4.\"&mergeValue(A12) &\".\"&mergeValue(B12)&\".\"&mergeValue(C12)","v":"4.1.1.1"},"муниципальный район",null,"Указывается наименование муниципального района, на территории которого организация оказывает услуги по регулируемому виду деятельности."]
[null,null,null,1,null,{"$f":"\"4.\"&mergeValue(A13) &\".\"&mergeValue(B13)&\".\"&mergeValue(C13)&\".\"&mergeValue(D13)","v":"4.1.1.1.1"},"муниципальное образование",null,"Указывается наименование и код муниципального района, муниципального образования в соответствии с Общероссийским классификатором территорий муниципальных образований (далее - ОКТМО), входящего в муниципальный район, на территории которого организация оказывает услуги по регулируемому виду деятельности.\nВ случае оказания услуг по регулируемому виду деятельности на территории нескольких муниципальных районов (муниципальных образований) данные по каждому их них указываются в отдельной строке."]
[null,null,null,null,null,null,"Добавить МО"]
[null,null,null,null,null,null,"Добавить МР"]
[null,null,null,null,null,null,"Добавить территорию"]
[null,null,null,null,null,null,"Добавить ЦС"]
[]
[null,null,null,null,null,null,"  1 Информация размещается при раскрытии информации по каждой из форм."]

{"sheet":"Форма 4.10.3 | Т-передача ТН","index":23,"n_rows":34,"n_cols":26,"rows_kept":34,"cut":false,"hidden":true,"merged":[[12,22,15,22],[23,22,25,22],[33,12,33,22],[23,19,24,19],[23,20,24,20],[19,14,19,21],[23,18,24,18],[16,18,16,19],[6,14,6,19],[7,14,7,19],[13,21,15,21],[12,11,12,21],[13,11,15,11],[13,12,15,12],[13,14,13,19],[13,20,15,20],[15,18,15,19],[11,14,11,20],[14,14,15,14],[14,15,14,16],[14,17,14,19],[20,3,27,3],[4,11,4,19],[8,14,8,19],[9,14,9,19],[17,0,30,0],[17,14,17,21],[18,1,29,1],[18,14,18,21],[19,2,28,2],[20,14,20,21],[21,4,26,4],[21,8,26,8],[22,5,25,5],[22,9,25,9],[22,14,22,21],[23,17,24,17]]}
[]
[]
[]
[]
[null,null,null,null,null,null,null,null,null,null,null,"Форма 4.2.2 Информация о величинах тарифов на теплоноситель, передачу тепловой энергии, теплоносителя1"]
[]
[]
[null,null,null,null,null,null,null,null,null,null,null,null,{"$f":"\"Дата подачи заявления об \"&IF(datePr_ch=\"\",\"утверждении\",\"изменении\") & \" тарифов\"","v":"Дата подачи заявления об утверждении тарифов"},null,{"$f":"IF(datePr_ch=\"\",IF(datePr=\"\",\"\",datePr),datePr_ch)","v":"29.04.2021"}]
[null,null,null,null,null,null,null,null,null,null,null,null,{"$f":"\"Номер подачи заявления об \"&IF(numberPr_ch=\"\",\"утверждении\",\"изменении\") & \" тарифов\"","v":"Номер подачи заявления об утверждении тарифов"},null,{"$f":"IF(numberPr_ch=\"\",IF(numberPr=\"\",\"\",numberPr),numberPr_ch)","v":"520"}]
[]
[null,null,null,null,null,null,null,null,null,null,null,null,null,null,null,null,null,null,null,null,"dp"]
[]
[null,null,null,null,null,null,null,null,null,null,null,"Параметры формы",null,null,null,null,null,null,null,null,null,null,"Описание параметров формы"]
[null,null,null,null,null,null,null,null,null,null,null,"№ п/п","Параметр дифференциации тарифа",null,"Период действия тарифа",null,null,null,null,null,"Наличие других периодов действия тарифа","Добавить период"]
[null,null,null,null,null,null,null,null,null,null,null,null,null,null,"Одноставочный тариф, руб./Гкал (руб./куб.м)","Двухставочный тариф",null,"Период действия"]
[null,null,null,null,null,null,null,null,null,null,null,null,null,null,null,"ставка за тепловую энергию, руб./Гкал","ставка за содержание тепловой мощности, тыс. руб./Гкал/ч/мес.","дата начала","дата окончания"]
[null,null,null,null,null,null,null,null,null,null,1,"1","2","2",{"$f":"OFFSET(O17,0,-1)+1","v":3},{"$f":"OFFSET(P17,0,-1)+1","v":4},{"$f":"OFFSET(Q17,0,-1)+1","v":5},{"$f":"OFFSET(R17,0,-1)+1","v":6},{"$f":"OFFSET(S17,0,-1)+1","v":7},null,{"$f":"OFFSET(U17,0,-2)+1","v":8},{"$f":"OFFSET(V17,0,-1)","v":8},{"$f":"OFFSET(W17,0,-1)+1","v":9}]
[1,null,null,null,null,null,null,null,null,null,null,{"$f":"mergeValue(A18)","v":1},"Наименование тарифа",null,null,null,null,null,null,null,null,null,"Указывается наименование тарифа в случае подачи предложения по нескольким тарифам.\nВ случае наличия нескольких тарифов информация по ним указывается в отдельных строках."]
[null,1,null,null,null,null,null,null,null,null,null,{"$f":"mergeValue(A19) &\".\"& mergeValue(B19)","v":"1.1"},"Территория действия тарифа",null,null,null,null,null,null,null,null,null,"Указывается наименование территории действия тарифа при наличии дифференциации тарифа по территориальному признаку.\nВ случае дифференциации тарифов по территориальному признаку информация по ним указывается в отдельных строках."]
[null,null,1,null,null,null,null,null,null,null,null,{"$f":"mergeValue(A20) &\".\"& mergeValue(B20)&\".\"& mergeValue(C20)","v":"1.1.1"},"Наименование системы теплоснабжения ",null,null,null,null,null,null,null,null,null,"Указывается наименование системы теплоснабжения при наличии дифференциации тарифа по системам теплоснабжения.\nВ случае дифференциации тарифов по системам теплоснабжения информация по ним указывается в отдельных строках."]
[null,null,null,1,null,null,null,null,null,null,null,{"$f":"mergeValue(A21) &\".\"& mergeValue(B21)&\".\"& mergeValue(C21)&\".\"& mergeValue(D21)","v":"1.1.1.1"},"Источник тепловой энергии  ",null,null,null,null,null,null,null,null,null,"Указывается наименование источника тепловой энергии\nВ случае дифференциации тарифов по источникам тепловой энергии информация по ним указывается в отдельных строках."]
[null,null,null,null,1,null,null,1,1]
[null,null,null,null,null,1,null,null,null,1,null,{"$f":"mergeValue(A23) &\".\"& mergeValue(B23)&\".\"& mergeValue(C23)&\".\"& mergeValue(D23)&\".\"&  mergeValue(F23)","v":"1.1.1.1.1"},"Группа потребителей",null,null,null,null,null,null,null,null,null,"Указывается группа потребителей при наличии дифференциации тарифа по группам потребителей.\nЗначение выбирается из перечня: Организации-перепродавцы; Бюджетные организации; Население; Прочие; Без дифференциации.\nВ случае дифференциации тарифов группам потребителей информация по ним указывается в отдельных строках.",null,{"$f":"strCheckUnique(Z23:Z26)","v":""}]
[null,null,null,null,null,null,1,null,null,null,1,{"$f":"mergeValue(A24) &\".\"& mergeValue(B24)&\".\"& mergeValue(C24)&\".\"& mergeValue(D24)&\".\"& mergeValue(F24)&\".\"& mergeValue(G24)","v":"1.1.1.1.1.1"},null,null,null,null,null,null,"да",null,"нет",null,"В колонке «Параметр дифференциации тарифов» указывается вид теплоносителя.\nЗначение выбирается из перечня: вода; пар; отборный пар, 1.2-2.5 кг/см2; отборный пар, 2.5-7 кг/см2; отборный пар, 7-13 кг/см2; отборный пар, > 13 кг/см2; острый и редуцированный пар; горячая вода в системе централизованного теплоснабжения на отопление;  горячая вода в системе централизованного теплоснабжения на горячее водоснабжение; прочее.\nПри подаче предложения на двухставочный тариф колонка «Одноставочный тариф» не заполняется.\nПри подаче предложения на одноставочный тариф колонки в блоке «Двухставочный тариф» не заполняются.\nИнформация в колонке «Двухставочный тариф» не указывается для тарифа на теплоноситель.\nДаты начала и окончания действия тарифов указываются в виде «ДД.ММ.ГГГГ».\nВ случае отсутствия даты окончания действия тарифа в колонке «Дата окончания» указывается «Нет».\nВ случае дифференциации тарифов по видам теплоносителя информация по ним указывается в отдельных строках.",{"$f":"strCheckDate(O25:V25)","v":""},null,{"$f":"IF(M24=\"\",\"\",M24 )","v":""}]
[null,null,null,null,null,null,null,null,null,null,null,null,null,null,null,null,{"$f":"R24 & \"-\" & T24","v":"-"}]
[null,null,null,null,null,null,null,null,null,null,null,null,"Добавить вид теплоносителя (параметры теплоносителя)"]
[null,null,null,null,null,null,null,null,null,null,null,null,"Добавить группу потребителей"]
[]
[null,null,null,null,null,null,null,null,null,null,null,null,"Добавить источник тепловой энергии"]
[null,null,null,null,null,null,null,null,null,null,null,null,"Добавить наименование системы теплоснабжения"]
[null,null,null,null,null,null,null,null,null,null,null,null,"Добавить территорию действия тарифа"]
[null,null,null,null,null,null,null,null,null,null,null,null,"Добавить наименование тарифа"]
[]
[null,null,null,null,null,null,null,null,null,null,null,1,"Для каждого вида цены (тарифа) в сфере теплоснабжения форма заполняется отдельно. При размещении информации по данной форме дополнительно указывается дата подачи заявления об утверждении цены (тарифа) и его номер.\n\nПо данной форме размещается в том числе информация о предложении об установлении цен (тарифов) для единых теплоснабжающих организаций, а также теплоснабжающих организаций, теплосетевых организаций в ценовых зонах теплоснабжения."]

{"sheet":"Форма 1.0.1 | Т-гор.вода","index":24,"n_rows":19,"n_cols":10,"rows_kept":19,"cut":false,"hidden":true,"merged":[[18,6,18,7],[1,5,1,7],[3,5,3,7],[3,8,4,8],[7,0,15,0],[11,2,13,2],[12,8,13,8],[10,1,14,1]]}
["5"]
[null,null,null,null,null,"Форма 1.0.1 Основные параметры раскрываемой информации 1"]
[]
[null,null,null,null,null,"Параметры формы",null,null,"Описание параметров формы"]
[null,null,null,null,null,"№ п/п","Наименование параметра","Информация"]
[null,null,null,null,null,"1",2,3,4,4]
[null,null,null,null,null,1,"Дата заполнения/внесения изменений",{"$f":"IF(dateCh=\"\",\"\",dateCh)","v":"07.05.2021"},"Указывается календарная дата первичного заполнения или внесения изменений в форму в виде «ДД.ММ.ГГГГ»."]
[1,null,null,null,null,{"$f":"\"2.\" &mergeValue(A8)","v":"2.1"},"Наименование централизованной системы коммунальной инфраструктуры",null,"Указывается наименование централизованной системы холодного водоснабжения/горячего водоснабжения/водоотведения/теплоснабжения, к которой относится размещаемая информация.\nВ случае наличия нескольких централизованных систем коммунальной инфраструктуры, информация по каждой из них указывается в отдельной строке."]
[null,null,null,null,null,{"$f":"\"3.\" &mergeValue(A9)","v":"3.1"},"Наименование регулируемого вида деятельности",null,"Указывается наименование вида регулируемой деятельности."]
[null,null,null,null,null,{"$f":"\"4.\"&mergeValue(A10)","v":"4.1"},"Территория оказания услуги по регулируемому виду деятельности","x"]
[null,1,null,null,null,{"$f":"\"4.\"&mergeValue(A11) &\".\"&mergeValue(B11)","v":"4.1.1"},"Субъект Российской Федерации",{"$f":"IF(region_name=\"\",\"\",region_name)","v":"Ленинградская область"},"Указывается наименование субъекта Российской Федерации"]
[null,null,1,null,null,{"$f":"\"4.\"&mergeValue(A12) &\".\"&mergeValue(B12)&\".\"&mergeValue(C12)","v":"4.1.1.1"},"муниципальный район",null,"Указывается наименование муниципального района, на территории которого организация оказывает услуги по регулируемому виду деятельности."]
[null,null,null,1,null,{"$f":"\"4.\"&mergeValue(A13) &\".\"&mergeValue(B13)&\".\"&mergeValue(C13)&\".\"&mergeValue(D13)","v":"4.1.1.1.1"},"муниципальное образование",null,"Указывается наименование и код муниципального района, муниципального образования в соответствии с Общероссийским классификатором территорий муниципальных образований (далее - ОКТМО), входящего в муниципальный район, на территории которого организация оказывает услуги по регулируемому виду деятельности.\nВ случае оказания услуг по регулируемому виду деятельности на территории нескольких муниципальных районов (муниципальных образований) данные по каждому их них указываются в отдельной строке."]
[null,null,null,null,null,null,"Добавить МО"]
[null,null,null,null,null,null,"Добавить МР"]
[null,null,null,null,null,null,"Добавить территорию"]
[null,null,null,null,null,null,"Добавить ЦС"]
[]
[null,null,null,null,null,null,"  1 Информация размещается при раскрытии информации по каждой из форм."]

{"sheet":"Форма 4.10.4 | Т-гор.вода","index":25,"n_rows":36,"n_cols":32,"rows_kept":36,"cut":false,"hidden":true,"merged":[[17,0,32,0],[18,1,31,1],[19,2,30,2],[23,6,26,6],[21,4,28,4],[22,5,27,5],[20,3,29,3],[22,8,27,8],[23,9,26,9],[35,12,35,22],[24,27,26,27],[14,22,14,24],[14,19,14,20],[14,17,14,18],[14,14,15,14],[14,15,15,15],[14,16,15,16],[13,12,15,12],[13,25,15,25],[13,26,15,26],[13,14,13,24],[16,23,16,24],[23,24,25,24],[23,25,25,25],[8,14,8,19],[9,14,9,19],[4,11,4,19],[6,14,6,19],[7,14,7,19],[11,14,11,25],[13,11,15,11],[12,11,12,26],[20,14,20,26],[22,14,22,26],[23,22,25,22],[23,23,25,23],[12,27,15,27],[15,23,15,24],[17,14,17,26],[18,14,18,26],[19,14,19,26]]}
[]
[]
[]
[]
[null,null,null,null,null,null,null,null,null,null,null,"Форма 4.10.4 Информация о предложении величин тарифов на горячую воду (в открытых системах)1"]
[]
[]
[null,null,null,null,null,null,null,null,null,null,null,null,{"$f":"\"Дата подачи заявления об \"&IF(datePr_ch=\"\",\"утверждении\",\"изменении\") & \" тарифов\"","v":"Дата подачи заявления об утверждении тарифов"},null,{"$f":"IF(datePr_ch=\"\",IF(datePr=\"\",\"\",datePr),datePr_ch)","v":"29.04.2021"}]
[null,null,null,null,null,null,null,null,null,null,null,null,{"$f":"\"Номер подачи заявления об \"&IF(numberPr_ch=\"\",\"утверждении\",\"изменении\") & \" тарифов\"","v":"Номер подачи заявления об утверждении тарифов"},null,{"$f":"IF(numberPr_ch=\"\",IF(numberPr=\"\",\"\",numberPr),numberPr_ch)","v":"520"}]
[]
[null,null,null,null,null,null,null,null,null,null,null,null,null,null,null,null,null,null,null,null,null,null,null,null,null,"dp"]
[]
[null,null,null,null,null,null,null,null,null,null,null,"Параметры формы",null,null,null,null,null,null,null,null,null,null,null,null,null,null,null,"Описание параметров формы"]
[null,null,null,null,null,null,null,null,null,null,null,"№ п/п","Параметр дифференциации тарифа",null,"Период действия тарифа",null,null,null,null,null,null,null,null,null,null,"Наличие других периодов действия тарифа","Добавить период"]
[null,null,null,null,null,null,null,null,null,null,null,null,null,null,"Компонент на теплоноситель, руб./куб.м","Одноставочный компонент на тепловую энергию, руб/Гкал","Одноставочный тариф, руб./куб.м","Двухставочный тариф",null,"Двухставочный тариф",null,null,"Период действия"]
[null,null,null,null,null,null,null,null,null,null,null,null,null,null,null,null,null,"ставка за потребление горячей воды, руб./куб.м","ставка за содержание системы ГВС, тыс.руб./куб.м/ч/мес","ставка за тепловую энергию в компоненте на тепловую энергию, руб/Гкал","ставка за содержание тепловой мощности в компоненте на тепловую энергию, тыс. руб./Гкал/ч в мес.",null,"дата начала","дата окончания"]
[null,null,null,null,null,null,null,null,null,null,1,"1","2","2",{"$f":"OFFSET(O17,0,-1)+1","v":3},{"$f":"OFFSET(P17,0,-1)+1","v":4},5,6,7,8,9,{"$f":"OFFSET(V17,0,-1)","v":9},10,{"$f":"OFFSET(X17,0,-1)+1","v":11},null,{"$f":"OFFSET(Z17,0,-2)+1","v":12},null,{"$f":"OFFSET(AB17,0,-2)+1","v":13}]
[1,null,null,null,null,null,null,null,null,null,null,{"$f":"mergeValue(A18)","v":1},"Наименование тарифа",null,null,null,null,null,null,null,null,null,null,null,null,null,null,"Указывается наименование тарифа в случае подачи предложения по нескольким тарифам.\nВ случае наличия нескольких тарифов информация по ним указывается в отдельных строках."]
[null,1,null,null,null,null,null,null,null,null,null,{"$f":"mergeValue(A19) &\".\"& mergeValue(B19)","v":"1.1"},"Территория действия тарифа",null,null,null,null,null,null,null,null,null,null,null,null,null,null,"Указывается наименование территории действия тарифа при наличии дифференциации тарифа по территориальному признаку.\nВ случае дифференциации тарифов по территориальному признаку информация по ним указывается в отдельных строках."]
[null,null,1,null,null,null,null,null,null,null,null,{"$f":"mergeValue(A20) &\".\"& mergeValue(B20)&\".\"& mergeValue(C20)","v":"1.1.1"},"Наименование системы теплоснабжения ",null,null,null,null,null,null,null,null,null,null,null,null,null,null,"Указывается наименование системы теплоснабжения при наличии дифференциации тарифа по системам теплоснабжения.\nВ случае дифференциации тарифов по системам теплоснабжения информация по ним указывается в отдельных строках."]
[null,null,null,1,null,null,null,null,null,null,null,{"$f":"mergeValue(A21) &\".\"& mergeValue(B21)&\".\"& mergeValue(C21)&\".\"& mergeValue(D21)","v":"1.1.1.1"},"Источник тепловой энергии  ",null,null,null,null,null,null,null,null,null,null,null,null,null,null,"Указывается наименование источника тепловой энергии\nВ случае дифференциации тарифов по источникам тепловой энергии информация по ним указывается в отдельных строках."]
[null,null,null,null,1]
[null,null,null,null,null,1,null,null,null,null,null,{"$f":"mergeValue(A23) &\".\"& mergeValue(B23)&\".\"& mergeValue(C23)&\".\"& mergeValue(D23)&\".\"& mergeValue(F23)","v":"1.1.1.1.1"},"Группа потребителей",null,null,null,null,null,null,null,null,null,null,null,null,null,null,"Указывается группа потребителей при наличии дифференциации тарифа по группам потребителей.\nЗначение выбирается из перечня: Организации-перепродавцы; Бюджетные организации; Население; Прочие; Без дифференциации.\nВ случае дифференциации тарифов группам потребителей информация по ним указывается в отдельных строках.",null,{"$f":"strCheckUnique(AE23:AE28)","v":""}]
[null,null,null,null,null,null,1,null,null,null,null,{"$f":"mergeValue(A24) &\".\"& mergeValue(B24)&\".\"& mergeValue(C24)&\".\"& mergeValue(D24)&\".\"& mergeValue(F24)&\".\"& mergeValue(G24)","v":"1.1.1.1.1.1"},"горячая вода в системе централизованного теплоснабжения на горячее водоснабжение",null,null,null,null,null,null,null,null,{"$f":"W24 & \"-\" & Y24","v":"-"},null,"да",null,"нет",null,"Указывается вид теплоносителя. Значение выбирается из перечня: вода; пар; отборный пар, 1.2-2.5 кг/см2; отборный пар, 2.5-7 кг/см2; отборный пар, 7-13 кг/см2; отборный пар, > 13 кг/см2; острый и редуцированный пар; горячая вода в системе централизованного теплоснабжения на отопление; горячая вода в системе централизованного теплоснабжения на горячее водоснабжение; прочее.\nВ случае дифференциации тарифов по видам теплоносителя информация по ним указывается в отдельных строках.",{"$f":"strCheckDate(O24:AA24)","v":""},null,{"$f":"IF(M24=\"\",\"\",M24 )","v":"горячая вода в системе централизованного теплоснабжения на горячее водоснабжение"}]
[null,null,null,null,null,null,null,1,null,null,null,{"$f":"mergeValue(A25) &\".\"& mergeValue(B25)&\".\"& mergeValue(C25)&\".\"& mergeValue(D25)&\".\"& mergeValue(F25)&\".\"& mergeValue(G25)&\".\"& mergeValue(H25)","v":"1.1.1.1.1.1.1"},null,null,null,null,null,null,null,null,null,{"$f":"W25 & \"-\" & Y25","v":"-"},null,null,null,null,null,"В колонке «Параметр дифференциации тарифов» указывается наименование поставщика в случае наличия дифференциации компонента двухставочного тарифа на горячую воду по поставщикам.\nПри подаче предложения на двухставочный тариф колонка «Одноставочный тариф» не заполняется.\nПри подаче предложения на одноставочный тариф колонки в блоке «Двухставочный тариф» не заполняются.\nВ случае отсутствия разбивки тарифа на компоненты колонки «Компонент на теплоноситель, руб./куб.м» и «Одноставочный компонент на тепловую энергию, руб/Гкал» не заполняются.\nДаты начала и окончания действия тарифов указываются в виде «ДД.ММ.ГГГГ».\nВ случае отсутствия даты окончания действия тарифа в колонке «Дата окончания» указывается «Нет».\nВ случае дифференциации тарифов по поставщикам информация по ним указывается в отдельных строках.",{"$f":"strCheckDate(O25:AA25)","v":""}]
[null,null,null,null,null,null,null,null,null,null,null,null,null,null,null,null,null,null,null,null,null,null,null,null,null,null,null,null,null,null,null,{"$f":"OFFSET(AF26,-1,0)","v":0}]
[null,null,null,null,null,null,null,null,null,null,null,null,"Добавить поставщика"]
[null,null,null,null,null,null,null,null,null,null,null,null,"Добавить вид теплоносителя (параметры теплоносителя)"]
[null,null,null,null,null,null,null,null,null,null,null,null,"Добавить группу потребителей"]
[]
[null,null,null,null,null,null,null,null,null,null,null,null,"Добавить источник тепловой энергии"]
[null,null,null,null,null,null,null,null,null,null,null,null,"Добавить наименование системы теплоснабжения"]
[null,null,null,null,null,null,null,null,null,null,null,null,"Добавить территорию действия тарифа"]
[null,null,null,null,null,null,null,null,null,null,null,null,"Добавить наименование тарифа"]
[]
[null,null,null,null,null,null,null,null,null,null,null,1,"При размещении информации по данной форме дополнительно указывается дата подачи заявления об утверждении цены (тарифа) и его номер.\n\nПо данной форме раскрывается в том числе информация о предложении об установлении цен (тарифов) для единых теплоснабжающих организаций, а также теплоснабжающих организаций, теплосетевых организаций в ценовых зонах теплоснабжения."]

{"sheet":"Форма 1.0.1 | Т-подкл","index":26,"n_rows":19,"n_cols":10,"rows_kept":19,"cut":false,"hidden":true,"merged":[[18,6,18,7],[1,5,1,7],[3,5,3,7],[3,8,4,8],[7,0,15,0],[11,2,13,2],[12,8,13,8],[10,1,14,1]]}
["10"]
[null,null,null,null,null,"Форма 1.0.1 Основные параметры раскрываемой информации 1"]
[]
[null,null,null,null,null,"Параметры формы",null,null,"Описание параметров формы"]
[null,null,null,null,null,"№ п/п","Наименование параметра","Информация"]
[null,null,null,null,null,"1",2,3,4,4]
[null,null,null,null,null,1,"Дата заполнения/внесения изменений",{"$f":"IF(dateCh=\"\",\"\",dateCh)","v":"07.05.2021"},"Указывается календарная дата первичного заполнения или внесения изменений в форму в виде «ДД.ММ.ГГГГ»."]
[1,null,null,null,null,{"$f":"\"2.\" &mergeValue(A8)","v":"2.1"},"Наименование централизованной системы коммунальной инфраструктуры",null,"Указывается наименование централизованной системы холодного водоснабжения/горячего водоснабжения/водоотведения/теплоснабжения, к которой относится размещаемая информация.\nВ случае наличия нескольких централизованных систем коммунальной инфраструктуры, информация по каждой из них указывается в отдельной строке."]
[null,null,null,null,null,{"$f":"\"3.\" &mergeValue(A9)","v":"3.1"},"Наименование регулируемого вида деятельности",null,"Указывается наименование вида регулируемой деятельности."]
[null,null,null,null,null,{"$f":"\"4.\"&mergeValue(A10)","v":"4.1"},"Территория оказания услуги по регулируемому виду деятельности","x"]
[null,1,null,null,null,{"$f":"\"4.\"&mergeValue(A11) &\".\"&mergeValue(B11)","v":"4.1.1"},"Субъект Российской Федерации",{"$f":"IF(region_name=\"\",\"\",region_name)","v":"Ленинградская область"},"Указывается наименование субъекта Российской Федерации"]
[null,null,1,null,null,{"$f":"\"4.\"&mergeValue(A12) &\".\"&mergeValue(B12)&\".\"&mergeValue(C12)","v":"4.1.1.1"},"муниципальный район",null,"Указывается наименование муниципального района, на территории которого организация оказывает услуги по регулируемому виду деятельности."]
[null,null,null,1,null,{"$f":"\"4.\"&mergeValue(A13) &\".\"&mergeValue(B13)&\".\"&mergeValue(C13)&\".\"&mergeValue(D13)","v":"4.1.1.1.1"},"муниципальное образование",null,"Указывается наименование и код муниципального района, муниципального образования в соответствии с Общероссийским классификатором территорий муниципальных образований (далее - ОКТМО), входящего в муниципальный район, на территории которого организация оказывает услуги по регулируемому виду деятельности.\nВ случае оказания услуг по регулируемому виду деятельности на территории нескольких муниципальных районов (муниципальных образований) данные по каждому их них указываются в отдельной строке."]
[null,null,null,null,null,null,"Добавить МО"]
[null,null,null,null,null,null,"Добавить МР"]
[null,null,null,null,null,null,"Добавить территорию"]
[null,null,null,null,null,null,"Добавить ЦС"]
[]
[null,null,null,null,null,null,"  1 Информация размещается при раскрытии информации по каждой из форм."]

{"sheet":"Форма 4.10.5 | Т-подкл","index":27,"n_rows":33,"n_cols":35,"rows_kept":33,"cut":false,"hidden":true,"merged":[[22,32,26,32],[32,12,32,32],[22,21,23,21],[22,27,23,27],[22,28,23,28],[22,29,23,29],[22,30,23,30],[22,15,24,15],[22,16,24,16],[22,17,24,17],[22,18,23,18],[22,19,23,19],[22,14,24,14],[22,13,25,13],[16,28,16,29],[14,21,16,24],[15,25,15,26],[15,27,15,29],[6,14,6,19],[9,14,9,19],[17,28,17,29],[17,13,17,16],[17,17,17,20],[18,0,29,0],[18,13,18,31],[19,1,28,1],[19,13,19,31],[20,2,27,2],[20,13,20,31],[21,3,26,3],[21,13,21,31],[22,20,23,20],[22,4,25,4],[22,10,25,10],[22,11,25,11],[22,12,25,12],[4,11,4,19],[13,32,16,32],[14,25,14,29],[14,30,16,30],[14,31,16,31],[11,11,11,12],[11,14,11,19],[12,14,12,19],[12,25,12,30],[7,13,7,19],[8,13,8,19],[13,11,13,31],[14,11,16,11],[14,12,16,12],[14,13,16,16],[14,17,16,20]]}
[]
[]
[]
[]
[null,null,null,null,null,null,null,null,null,null,null,"Форма 4.10.5 Информация о предложении величин тарифов на подключение к системе теплоснабжения1"]
[]
[]
[null,null,null,null,null,null,null,null,null,null,null,null,{"$f":"\"Дата подачи заявления об \"&IF(datePr_ch=\"\",\"утверждении\",\"изменении\") & \" тарифов\"","v":"Дата подачи заявления об утверждении тарифов"},{"$f":"IF(datePr_ch=\"\",IF(datePr=\"\",\"\",datePr),datePr_ch)","v":"29.04.2021"}]
[null,null,null,null,null,null,null,null,null,null,null,null,{"$f":"\"Номер подачи заявления об \"&IF(numberPr_ch=\"\",\"утверждении\",\"изменении\") & \" тарифов\"","v":"Номер подачи заявления об утверждении тарифов"},{"$f":"IF(numberPr_ch=\"\",IF(numberPr=\"\",\"\",numberPr),numberPr_ch)","v":"520"}]
[]
[null,null,null,null,null,null,null,null,null,null,null,null,null,null,null,null,null,null,null,null,null,null,null,null,null,"NDS","woNDS"]
[null,null,null,null,null,null,null,null,null,null,null,null,null,null,null,null,null,null,null,null,null,null,null,null,null,null,null,null,null,null,"dp"]
[]
[null,null,null,null,null,null,null,null,null,null,null,"Параметры формы",null,null,null,null,null,null,null,null,null,null,null,null,null,null,null,null,null,null,null,null,"Описание параметров формы"]
[null,null,null,null,null,null,null,null,null,null,null,"№ п/п","Параметр дифференциации тарифа/Заявитель","Подключаемая тепловая нагрузка, Гкал/ч",null,null,null,"Тип прокладки тепловых сетей",null,null,null,"Диаметр тепловых сетей",null,null,null,"Период действия тарифа",null,null,null,null,"Наличие других периодов действия тарифа","Добавить период"]
[null,null,null,null,null,null,null,null,null,null,null,null,null,null,null,null,null,null,null,null,null,null,null,null,null,"Плата за подключение (технологическое присоединение), тыс. руб./Гкал/ч (руб.)",null,"Период действия"]
[null,null,null,null,null,null,null,null,null,null,null,null,null,null,null,null,null,null,null,null,null,null,null,null,null,"с НДС","без НДС","дата начала","дата окончания"]
[null,null,null,null,null,null,null,null,null,null,1,"1","2",{"$f":"OFFSET(N18,0,-1)+1","v":3},null,null,null,{"$f":"OFFSET(N18,0,0)+1","v":4},null,null,null,null,null,null,{"$f":"OFFSET(R18,0,0)+1","v":5},{"$f":"OFFSET(Z18,0,-1)+1","v":6},{"$f":"OFFSET(AA18,0,-1)+1","v":7},{"$f":"OFFSET(AB18,0,-1)+1","v":8},{"$f":"OFFSET(AC18,0,-1)+1","v":9},null,{"$f":"OFFSET(AE18,0,-2)+1","v":10},null,{"$f":"OFFSET(AG18,0,-2)+1","v":11}]
[1,null,null,null,null,null,null,null,null,null,null,{"$f":"mergeValue(A19)","v":1},"Наименование тарифа",null,null,null,null,null,null,null,null,null,null,null,null,null,null,null,null,null,null,null,"Указывается наименование тарифа в случае подачи предложения по нескольким тарифам.\nВ случае наличия нескольких тарифов информация по ним указывается в отдельных строках."]
[null,1,null,null,null,null,null,null,null,null,null,{"$f":"mergeValue(A20) &\".\"& mergeValue(B20)","v":"1.1"},"Территория действия тарифа",null,null,null,null,null,null,null,null,null,null,null,null,null,null,null,null,null,null,null,"Указывается наименование территории действия тарифа при наличии дифференциации тарифа по территориальному признаку.\nВ случае дифференциации тарифов по территориальному признаку информация по ним указывается в отдельных строках."]
[null,null,1,null,null,null,null,null,null,null,null,{"$f":"mergeValue(A21) &\".\"& mergeValue(B21)&\".\"& mergeValue(C21)","v":"1.1.1"},"Наименование системы теплоснабжения ",null,null,null,null,null,null,null,null,null,null,null,null,null,null,null,null,null,null,null,"Указывается наименование системы теплоснабжения при наличии дифференциации тарифа по системам теплоснабжения.\nВ случае дифференциации тарифов по системам теплоснабжения информация по ним указывается в отдельных строках."]
[null,null,null,1,null,null,null,null,null,null,null,{"$f":"mergeValue(A22) &\".\"& mergeValue(B22)&\".\"& mergeValue(C22)&\".\"& mergeValue(D22)","v":"1.1.1.1"},"Источник тепловой энергии  ",null,null,null,null,null,null,null,null,null,null,null,null,null,null,null,null,null,null,null,"Указывается наименование источника тепловой энергии."]
[null,null,null,null,1,null,null,null,null,null,null,{"$f":"mergeValue(A23) &\".\"& mergeValue(B23)&\".\"& mergeValue(C23)&\".\"& mergeValue(D23)&\".\"& mergeValue(E23)","v":"1.1.1.1.1"},null,"нет",null,1,null,"нет",null,1,null,"нет",null,1,null,null,null,null,"да",null,"нет",null,"В колодке «Параметр дифференциации тарифа/Заявитель» указывается наименование категории потребителей, к которой относится тариф.\nДаты начала и окончания указываются в виде «ДД.ММ.ГГГГ».\nВ случае отсутствия даты окончания тарифа в колонке «Дата окончания» указывается «Нет».\nВ случае наличия дифференциации по подключаемой нагрузке, диапазону диаметров, типу прокладки тепловых сетей, информация по ним указывается в отдельных строках.\nВ случае дифференциации тарифов по периодам действия тарифа информация по ним указывается в отдельных колонках.",{"$f":"strCheckDate(Z24:AF24)","v":""},{"$f":"IF(AND(COUNTIF(AJ18:AJ27,AJ23)>1,AJ23<>\"\"),\"ErrUnique:HasDoubleConn\",\"\")","v":""}]
[null,null,null,null,null,null,null,null,null,null,null,null,null,null,null,null,null,null,null,null,null,null,null,null,null,null,{"$f":"AB23 & \"-\" & AD23","v":"-"}]
[]
[]
[null,null,null,null,null,null,null,null,null,null,null,null,"Добавить строку"]
[null,null,null,null,null,null,null,null,null,null,null,null,"Добавить источник тепловой энергии"]
[null,null,null,null,null,null,null,null,null,null,null,null,"Добавить наименование системы теплоснабжения"]
[null,null,null,null,null,null,null,null,null,null,null,null,"Добавить территорию действия тарифа"]
[null,null,null,null,null,null,null,null,null,null,null,null,"Добавить наименование тарифа"]
[]
[null,null,null,null,null,null,null,null,null,null,null,1,"При размещении информации по данной форме дополнительно указывается дата подачи заявления об утверждении цены (тарифа) и его номер.\n\nПо данной форме размещается в том числе информация о предложении об установлении цен (тарифов) для единых теплоснабжающих организаций, а также теплоснабжающих организаций, теплосетевых организаций в ценовых зонах теплоснабжения."]

{"sheet":"Форма 1.0.1 | Т-подкл(инд)","index":28,"n_rows":19,"n_cols":10,"rows_kept":19,"cut":false,"hidden":true,"merged":[[18,6,18,7],[1,5,1,7],[3,5,3,7],[3,8,4,8],[7,0,15,0],[11,2,13,2],[12,8,13,8],[10,1,14,1]]}
["9"]
[null,null,null,null,null,"Форма 1.0.1 Основные параметры раскрываемой информации 1"]
[]
[null,null,null,null,null,"Параметры формы",null,null,"Описание параметров формы"]
[null,null,null,null,null,"№ п/п","Наименование параметра","Информация"]
[null,null,null,null,null,"1",2,3,4,4]
[null,null,null,null,null,1,"Дата заполнения/внесения изменений",{"$f":"IF(dateCh=\"\",\"\",dateCh)","v":"07.05.2021"},"Указывается календарная дата первичного заполнения или внесения изменений в форму в виде «ДД.ММ.ГГГГ»."]
[1,null,null,null,null,{"$f":"\"2.\" &mergeValue(A8)","v":"2.1"},"Наименование централизованной системы коммунальной инфраструктуры",null,"Указывается наименование централизованной системы холодного водоснабжения/горячего водоснабжения/водоотведения/теплоснабжения, к которой относится размещаемая информация.\nВ случае наличия нескольких централизованных систем коммунальной инфраструктуры, информация по каждой из них указывается в отдельной строке."]
[null,null,null,null,null,{"$f":"\"3.\" &mergeValue(A9)","v":"3.1"},"Наименование регулируемого вида деятельности",null,"Указывается наименование вида регулируемой деятельности."]
[null,null,null,null,null,{"$f":"\"4.\"&mergeValue(A10)","v":"4.1"},"Территория оказания услуги по регулируемому виду деятельности","x"]
[null,1,null,null,null,{"$f":"\"4.\"&mergeValue(A11) &\".\"&mergeValue(B11)","v":"4.1.1"},"Субъект Российской Федерации",{"$f":"IF(region_name=\"\",\"\",region_name)","v":"Ленинградская область"},"Указывается наименование субъекта Российской Федерации"]
[null,null,1,null,null,{"$f":"\"4.\"&mergeValue(A12) &\".\"&mergeValue(B12)&\".\"&mergeValue(C12)","v":"4.1.1.1"},"муниципальный район",null,"Указывается наименование муниципального района, на территории которого организация оказывает услуги по регулируемому виду деятельности."]
[null,null,null,1,null,{"$f":"\"4.\"&mergeValue(A13) &\".\"&mergeValue(B13)&\".\"&mergeValue(C13)&\".\"&mergeValue(D13)","v":"4.1.1.1.1"},"муниципальное образование",null,"Указывается наименование и код муниципального района, муниципального образования в соответствии с Общероссийским классификатором территорий муниципальных образований (далее - ОКТМО), входящего в муниципальный район, на территории которого организация оказывает услуги по регулируемому виду деятельности.\nВ случае оказания услуг по регулируемому виду деятельности на территории нескольких муниципальных районов (муниципальных образований) данные по каждому их них указываются в отдельной строке."]
[null,null,null,null,null,null,"Добавить МО"]
[null,null,null,null,null,null,"Добавить МР"]
[null,null,null,null,null,null,"Добавить территорию"]
[null,null,null,null,null,null,"Добавить ЦС"]
[]
[null,null,null,null,null,null,"  1 Информация размещается при раскрытии информации по каждой из форм."]

{"sheet":"Форма 4.10.6 | Т-подкл(инд)","index":29,"n_rows":31,"n_cols":25,"rows_kept":31,"cut":false,"hidden":true,"merged":[[30,12,30,23],[14,15,16,15],[13,11,13,22],[6,14,6,19],[7,14,7,19],[14,16,14,20],[15,18,15,20],[15,16,15,17],[20,14,20,22],[13,23,16,23],[22,23,24,23],[4,11,4,19],[17,19,17,20],[14,21,16,21],[14,22,16,22],[14,11,16,11],[14,12,16,12],[14,14,16,14],[16,19,16,20],[11,11,11,12],[12,16,12,21],[8,14,8,19],[9,14,9,19],[18,0,27,0],[18,14,18,22],[19,1,26,1],[19,14,19,22],[20,2,25,2],[21,3,24,3],[21,14,21,22]]}
[]
[]
[]
[]
[null,null,null,null,null,null,null,null,null,null,null,"Форма 4.10.6 Информация о предложении платы за подключение к системе теплоснабжения в индивидуальном порядке1"]
[]
[]
[null,null,null,null,null,null,null,null,null,null,null,null,{"$f":"\"Дата подачи заявления об \"&IF(datePr_ch=\"\",\"утверждении\",\"изменении\") & \" тарифов\"","v":"Дата подачи заявления об утверждении тарифов"},null,{"$f":"IF(datePr_ch=\"\",IF(datePr=\"\",\"\",datePr),datePr_ch)","v":"29.04.2021"}]
[null,null,null,null,null,null,null,null,null,null,null,null,{"$f":"\"Номер подачи заявления об \"&IF(numberPr_ch=\"\",\"утверждении\",\"изменении\") & \" тарифов\"","v":"Номер подачи заявления об утверждении тарифов"},null,{"$f":"IF(numberPr_ch=\"\",IF(numberPr=\"\",\"\",numberPr),numberPr_ch)","v":"520"}]
[]
[null,null,null,null,null,null,null,null,null,null,null,null,null,null,null,null,"NDS","woNDS"]
[null,null,null,null,null,null,null,null,null,null,null,null,null,null,null,null,null,null,null,null,null,"dp"]
[]
[null,null,null,null,null,null,null,null,null,null,null,"Параметры формы",null,null,null,null,null,null,null,null,null,null,null,"Описание параметров формы"]
[null,null,null,null,null,null,null,null,null,null,null,"№ п/п","Заявитель",null,"Наименование объекта, адрес","Подключаемая тепловая нагрузка, Гкал/ч","Период действия тарифа",null,null,null,null,"Наличие других периодов действия тарифа","Добавить период"]
[null,null,null,null,null,null,null,null,null,null,null,null,null,null,null,null,"Плата за подключение (технологическое присоединение), тыс. руб./Гкал/ч (руб.)",null,"Период действия"]
[null,null,null,null,null,null,null,null,null,null,null,null,null,null,null,null,"с НДС","без НДС","дата начала","дата окончания"]
[null,null,null,null,null,null,null,null,null,null,1,"1","2","2",{"$f":"OFFSET(O18,0,-1)+1","v":3},4,5,6,7,8,null,{"$f":"OFFSET(V18,0,-2)+1","v":9},null,{"$f":"OFFSET(X18,0,-2)+1","v":10}]
[1,null,null,null,null,null,null,null,null,null,null,{"$f":"mergeValue(A19)","v":1},"Наименование тарифа",null,null,null,null,null,null,null,null,null,null,"Указывается наименование тарифа в случае подачи предложения по нескольким тарифам.\nВ случае наличия нескольких тарифов информация по ним указывается в отдельных строках."]
[null,1,null,null,null,null,null,null,null,null,null,{"$f":"mergeValue(A20) &\".\"& mergeValue(B20)","v":"1.1"},"Территория действия тарифа",null,null,null,null,null,null,null,null,null,null,"Указывается наименование территории действия тарифа при наличии дифференциации тарифа по территориальному признаку.\nВ случае дифференциации тарифов по территориальному признаку информация по ним указывается в отдельных строках."]
[null,null,1,null,null,null,null,null,null,null,null,{"$f":"mergeValue(A21) &\".\"& mergeValue(B21)&\".\"& mergeValue(C21)","v":"1.1.1"},"Наименование системы теплоснабжения ",null,null,null,null,null,null,null,null,null,null,"Указывается наименование системы теплоснабжения при наличии дифференциации тарифа по системам теплоснабжения.\nВ случае дифференциации тарифов по системам теплоснабжения информация по ним указывается в отдельных строках."]
[null,null,null,1,null,null,null,null,null,null,null,{"$f":"mergeValue(A22) &\".\"& mergeValue(B22)&\".\"& mergeValue(C22)&\".\"& mergeValue(D22)","v":"1.1.1.1"},"Источник тепловой энергии  ",null,null,null,null,null,null,null,null,null,null,"Указывается наименование источника тепловой энергии."]
[null,null,null,null,1,null,null,null,null,null,null,{"$f":"mergeValue(A23) &\".\"& mergeValue(B23)&\".\"& mergeValue(C23)&\".\"& mergeValue(D23)&\".\"& mergeValue(E23)","v":"1.1.1.1.1"},null,null,null,null,null,null,null,"да",null,"нет",null,"В колодке «Заявитель» указывается наименование заявителя, к которой относится тариф.\nДаты начала и окончания указываются в виде «ДД.ММ.ГГГГ».\nВ случае отсутствия даты окончания тарифа в колонке «Дата окончания» указывается «Нет».\nВ случае наличия дифференциации по категориям потребителей/заявителям информация по ним указывается в отдельных строках.\nВ случае дифференциации по периодам действия тарифа информация по ним указывается в отдельных колонках.",{"$f":"strCheckDateTwo(N23:W23)","v":""}]
[null,null,null,null,null,null,null,null,null,null,null,null,null,null,null,null,null,{"$f":"S23 & \"-\" & U23","v":"-"}]
[null,null,null,null,null,null,null,null,null,null,null,null,"Добавить строку"]
[null,null,null,null,null,null,null,null,null,null,null,null,"Добавить источник тепловой энергии"]
[null,null,null,null,null,null,null,null,null,null,null,null,"Добавить наименование системы теплоснабжения"]
[null,null,null,null,null,null,null,null,null,null,null,null,"Добавить территорию действия тарифа"]
[null,null,null,null,null,null,null,null,null,null,null,null,"Добавить наименование тарифа"]
[]
[null,null,null,null,null,null,null,null,null,null,null,1,"При размещении информации по данной форме дополнительно указывается дата подачи заявления об утверждении платы и его номер.\n\nПо данной форме раскрывается в том числе информация о предложении об установлении соответствующих цен (тарифов) в сфере теплоснабжения для единых теплоснабжающих организаций, а также теплоснабжающих организаций, теплосетевых организаций в ценовых зонах теплоснабжения."]

{"sheet":"Форма 1.0.1 | Форма 4.9","index":30,"n_rows":15,"n_cols":10,"rows_kept":15,"cut":false,"hidden":false,"merged":[[14,6,14,7],[1,5,1,7],[3,5,3,7],[3,8,4,8],[7,0,12,0],[10,1,12,1],[11,2,12,2]]}
["11"]
[null,null,null,null,null,"Форма 1.0.1 Основные параметры раскрываемой информации 1"]
[]
[null,null,null,null,null,"Параметры формы",null,null,"Описание параметров формы"]
[null,null,null,null,null,"№ п/п","Наименование параметра","Информация"]
[null,null,null,null,null,"1",2,3,4,4]
[null,null,null,null,null,1,"Дата заполнения/внесения изменений",{"$f":"IF(dateCh=\"\",\"\",dateCh)","v":"07.05.2021"},"Указывается календарная дата первичного заполнения или внесения изменений в форму в виде «ДД.ММ.ГГГГ»."]
[1,null,null,null,null,{"$f":"\"2.\" &mergeValue(A8)","v":"2.1"},"Наименование централизованной системы коммунальной инфраструктуры",{"$f":"IF('Перечень тарифов'!R21=\"\",\"наименование отсутствует\",\"\" & 'Перечень тарифов'!R21 & \"\")","v":"наименование отсутствует"},"Указывается наименование централизованной системы холодного водоснабжения/горячего водоснабжения/водоотведения/теплоснабжения, к которой относится размещаемая информация.\nВ случае наличия нескольких централизованных систем коммунальной инфраструктуры, информация по каждой из них указывается в отдельной строке."]
[null,null,null,null,null,{"$f":"\"3.\" &mergeValue(A9)","v":"3.1"},"Наименование регулируемого вида деятельности",{"$f":"IF('Перечень тарифов'!F21=\"\",\"наименование отсутствует\",\"\" & 'Перечень тарифов'!F21 & \"\")","v":"Производство тепловой энергии. Некомбинированная выработка"},"Указывается наименование вида регулируемой деятельности."]
[null,null,null,null,null,{"$f":"\"4.\"&mergeValue(A10)","v":"4.1"},"Территория оказания услуги по регулируемому виду деятельности","x"]
[null,1,null,null,null,{"$f":"\"4.\"&mergeValue(A11) &\".\"&mergeValue(B11)","v":"4.1.1"},"Субъект Российской Федерации",{"$f":"IF(region_name=\"\",\"\",region_name)","v":"Ленинградская область"},"Указывается наименование субъекта Российской Федерации"]
[null,null,1,null,null,{"$f":"\"4.\"&mergeValue(A12) &\".\"&mergeValue(B12)&\".\"&mergeValue(C12)","v":"4.1.1.1"},"муниципальный район",{"$f":"IF(Территории!H13=\"\",\"\",\"\" & Территории!H13 & \"\")","v":"Всеволожский муниципальный район"},"Указывается наименование муниципального района, на территории которого организация оказывает услуги по регулируемому виду деятельности."]
[null,null,null,1,null,{"$f":"\"4.\"&mergeValue(A13) &\".\"&mergeValue(B13)&\".\"&mergeValue(C13)&\".\"&mergeValue(D13)","v":"4.1.1.1.1"},"муниципальное образование",{"$f":"IF(Территории!R14=\"\",\"\",\"\" & Территории!R14 & \"\")","v":"Заневское (41612155)"},"Указывается наименование и код муниципального района, муниципального образования в соответствии с Общероссийским классификатором территорий муниципальных образований (далее - ОКТМО), входящего в муниципальный район, на территории которого организация оказывает услуги по регулируемому виду деятельности.\nВ случае оказания услуг по регулируемому виду деятельности на территории нескольких муниципальных районов (муниципальных образований) данные по каждому их них указываются в отдельной строке."]
[]
[null,null,null,null,null,null,"  1 Информация размещается при раскрытии информации по каждой из форм."]

{"sheet":"Форма 4.9","index":31,"n_rows":14,"n_cols":8,"rows_kept":14,"cut":false,"hidden":false,"merged":[[4,3,4,6],[6,3,6,6],[6,7,7,7],[9,7,13,7]]}
[]
[]
[]
[]
[null,null,null,"Форма 4.9 Информация о способах приобретения, стоимости и объемах товаров, необходимых для производства товаров и (или) оказания услуг"]
[]
[null,null,null,"Параметры формы",null,null,null,"Описание параметров формы"]
[null,null,null,"№ п/п","Наименование параметра","Информация","Ссылка на документ"]
[null,null,null,"1","2","3","4","5"]
[null,null,null,"1","Сведения о правовых актах, регламентирующих правила закупки (положение о закупках) в организации","Положениеоборганизациизакупоктоваров,работиуслуг","https://tarif.lenreg.ru/disclo/get_file?p_guid=88b9b3bb-ffae-4dfa-ad3f-9d4e856d7bce","В колонке «Информация» указывается описательная информация, характеризующая размещаемые данные.\nВ колонке «Ссылка на документ» указывается либо ссылка на документ, предварительно загруженный в хранилище файлов ФГИС ЕИАС, либо ссылка на официальный сайт в сети «Интернет», на котором размещена информация.\nВ случае наличия дополнительных сведений о способах приобретения, стоимости и объемах товаров, необходимых для производства товаров и (или) оказания услуг организацией, информация по ним указывается в отдельных строках."]
[null,null,null,"2","Сведения о месте размещения положения о закупках организации","http://www.egmelso.ru/images/cms/content/egm/docs/engazmontaj/08-Polozhenie_ob_organizatsii_zakupok.pdf","https://tarif.lenreg.ru/disclo/get_file?p_guid=88b9b3bb-ffae-4dfa-ad3f-9d4e856d7bce"]
[null,null,null,"3","Сведения о планировании закупочных процедур","http://www.egmelso.ru/service/prodazha_tepla/raskrytie_informacii_ooo_energogazmontazh","https://tarif.lenreg.ru/disclo/get_file?p_guid=88b9b3bb-ffae-4dfa-ad3f-9d4e856d7bce"]
[null,null,null,"4","Сведения о результатах проведения закупочных процедур","http://www.egmelso.ru/service/prodazha_tepla/raskrytie_informacii_ooo_energogazmontazh","https://tarif.lenreg.ru/disclo/get_file?p_guid=88b9b3bb-ffae-4dfa-ad3f-9d4e856d7bce"]
[null,null,null,null,"Добавить сведения"]

{"sheet":"Форма 1.0.1 | Форма 4.10.1","index":32,"n_rows":15,"n_cols":10,"rows_kept":15,"cut":false,"hidden":false,"merged":[[14,6,14,7],[1,5,1,7],[3,5,3,7],[3,8,4,8],[7,0,12,0],[10,1,12,1],[11,2,12,2]]}
["11"]
[null,null,null,null,null,"Форма 1.0.1 Основные параметры раскрываемой информации 1"]
[]
[null,null,null,null,null,"Параметры формы",null,null,"Описание параметров формы"]
[null,null,null,null,null,"№ п/п","Наименование параметра","Информация"]
[null,null,null,null,null,"1",2,3,4,4]
[null,null,null,null,null,1,"Дата заполнения/внесения изменений",{"$f":"IF(dateCh=\"\",\"\",dateCh)","v":"07.05.2021"},"Указывается календарная дата первичного заполнения или внесения изменений в форму в виде «ДД.ММ.ГГГГ»."]
[1,null,null,null,null,{"$f":"\"2.\" &mergeValue(A8)","v":"2.1"},"Наименование централизованной системы коммунальной инфраструктуры",{"$f":"IF('Перечень тарифов'!R21=\"\",\"наименование отсутствует\",\"\" & 'Перечень тарифов'!R21 & \"\")","v":"наименование отсутствует"},"Указывается наименование централизованной системы холодного водоснабжения/горячего водоснабжения/водоотведения/теплоснабжения, к которой относится размещаемая информация.\nВ случае наличия нескольких централизованных систем коммунальной инфраструктуры, информация по каждой из них указывается в отдельной строке."]
[null,null,null,null,null,{"$f":"\"3.\" &mergeValue(A9)","v":"3.1"},"Наименование регулируемого вида деятельности",{"$f":"IF('Перечень тарифов'!F21=\"\",\"наименование отсутствует\",\"\" & 'Перечень тарифов'!F21 & \"\")","v":"Производство тепловой энергии. Некомбинированная выработка"},"Указывается наименование вида регулируемой деятельности."]
[null,null,null,null,null,{"$f":"\"4.\"&mergeValue(A10)","v":"4.1"},"Территория оказания услуги по регулируемому виду деятельности","x"]
[null,1,null,null,null,{"$f":"\"4.\"&mergeValue(A11) &\".\"&mergeValue(B11)","v":"4.1.1"},"Субъект Российской Федерации",{"$f":"IF(region_name=\"\",\"\",region_name)","v":"Ленинградская область"},"Указывается наименование субъекта Российской Федерации"]
[null,null,1,null,null,{"$f":"\"4.\"&mergeValue(A12) &\".\"&mergeValue(B12)&\".\"&mergeValue(C12)","v":"4.1.1.1"},"муниципальный район",{"$f":"IF(Территории!H13=\"\",\"\",\"\" & Территории!H13 & \"\")","v":"Всеволожский муниципальный район"},"Указывается наименование муниципального района, на территории которого организация оказывает услуги по регулируемому виду деятельности."]
[null,null,null,1,null,{"$f":"\"4.\"&mergeValue(A13) &\".\"&mergeValue(B13)&\".\"&mergeValue(C13)&\".\"&mergeValue(D13)","v":"4.1.1.1.1"},"муниципальное образование",{"$f":"IF(Территории!R14=\"\",\"\",\"\" & Территории!R14 & \"\")","v":"Заневское (41612155)"},"Указывается наименование и код муниципального района, муниципального образования в соответствии с Общероссийским классификатором территорий муниципальных образований (далее - ОКТМО), входящего в муниципальный район, на территории которого организация оказывает услуги по регулируемому виду деятельности.\nВ случае оказания услуг по регулируемому виду деятельности на территории нескольких муниципальных районов (муниципальных образований) данные по каждому их них указываются в отдельной строке."]
[]
[null,null,null,null,null,null,"  1 Информация размещается при раскрытии информации по каждой из форм."]

{"sheet":"Форма 4.10.1","index":33,"n_rows":34,"n_cols":15,"rows_kept":34,"cut":false,"hidden":false,"merged":[[33,4,33,11],[29,4,29,10],[30,2,31,2],[30,3,31,3],[30,4,31,4],[30,5,31,5],[30,11,31,11],[27,11,28,11],[21,11,22,11],[23,4,23,10],[24,2,25,2],[24,3,25,3],[24,4,25,4],[24,5,25,5],[24,11,25,11],[26,4,26,10],[27,2,28,2],[27,3,28,3],[27,4,28,4],[27,5,28,5],[19,6,19,7],[20,4,20,10],[21,2,22,2],[21,3,22,3],[21,4,22,4],[21,5,22,5],[16,2,17,2],[16,3,17,3],[16,4,17,4],[16,5,17,5],[16,11,17,11],[18,4,18,10],[10,10,11,10],[11,6,11,7],[12,6,12,7],[13,4,13,10],[14,6,14,7],[15,4,15,10],[4,3,4,10],[6,5,6,10],[7,5,7,10],[9,3,9,10],[9,11,11,11],[10,3,11,3],[10,4,11,4],[10,5,11,5],[10,6,10,8],[10,9,11,9]]}
[]
[]
[]
[]
[null,null,null,"Форма 4.10.1 Информация о предложении регулируемой организацией об установлении тарифов в сфере теплоснабжения на очередной период регулирования1"]
[]
[null,null,null,null,{"$f":"\"Дата подачи заявления об \"&IF(datePr_ch=\"\",\"утверждении\",\"изменении\") & \" тарифов\"","v":"Дата подачи заявления об утверждении тарифов"},{"$f":"IF(datePr_ch=\"\",IF(datePr=\"\",\"\",datePr),datePr_ch)","v":"29.04.2021"}]
[null,null,null,null,{"$f":"\"Номер подачи заявления об \"&IF(numberPr_ch=\"\",\"утверждении\",\"изменении\") & \" тарифов\"","v":"Номер подачи заявления об утверждении тарифов"},{"$f":"IF(numberPr_ch=\"\",IF(numberPr=\"\",\"\",numberPr),numberPr_ch)","v":"520"}]
[]
[null,null,null,"Параметры формы",null,null,null,null,null,null,null,"Описание параметров формы"]
[null,null,null,"№ п/п","Вид тарифа","Наименование тарифа","Период действия тарифов",null,null,"Информация","Ссылка на документ"]
[null,null,null,null,null,null,"с",null,"по"]
[null,null,null,"1","2","3","4",null,"5","6","7","8"]
[null,null,null,1,"Копия инвестиционной программы, утвержденной в установленном законодательством Российской Федерации порядке, а до ее утверждения копия проекта инвестиционной программы"]
[null,null,null,"1.1","x","x","x",null,"x","отсутствует",null,"Заполняется в случае наличия инвестиционной программы (проекта инвестиционной программы) в отчетном периоде.\nВ колонке «Информация» указывается наименование инвестиционной программы.\nВ колонке «Ссылка на документ» указывается ссылка на документ, предварительно загруженный в хранилище файлов ФГИС ЕИАС."]
[null,3,null,2,"Предлагаемый метод регулирования",null,null,null,null,"x"]
[null,null,null,"2.1",{"$f":"IF('Перечень тарифов'!E21=\"\",\"наименование отсутствует\",\"\" & 'Перечень тарифов'!E21 & \"\")","v":"Тарифы на тепловую энергию (мощность), поставляемую потребителям теплоснабжающими организациями в соответствии с установленными предельными (минимальными и (или) максимальными) уровнями указанных тарифов"},{"$f":"IF('Перечень тарифов'!J21=\"\",\"наименование отсутствует\",\"\" & 'Перечень тарифов'!J21 & \"\")","v":"Тариф на производство ТЭ"},null,"01.01.2022","31.12.2022","метод индексации установленных тарифов","x","Значение в колонке «Вид тарифа» выбирается из перечня видов тарифов в сфере теплоснабжения, предусмотренных законодательством в сфере теплоснабжения.\nЗначение в колонке «Информация» выбирается из перечня: Метод экономически обоснованных расходов (затрат); Метод индексации установленных тарифов; Метод обеспечения доходности инвестированного капитала; Метод сравнения аналогов.\nДаты начала и окончания периода действия тарифов указывается в виде «ДД.ММ.ГГГГ».\nВ случае дифференциации предлагаемых методов регулирования видам тарифов и (или) по периодам действия тарифов информация по каждому из них указывается в отдельной строке."]
[null,null,null,null,null,null,null,"Добавить период"]
[null,3,null,"3","Долгосрочные параметры регулирования (в случае если их установление предусмотрено выбранным методом регулирования)"]
[null,null,null,"3.1","x","x","x",null,"x","x","https://portal.eias.ru/Portal/DownloadPage.aspx?type=12&guid=c2bba26e-1874-49ae-96a0-a904fcc2d872","Долгосрочные параметры регулирования указываются в случае выбора любого метода регулирования за исключением метода экономически обоснованных затрат в виде ссылки на документ, предварительно загруженный в хранилище файлов ФГИС ЕИАС."]
[null,3,null,"4","Необходимая валовая выручка на соответствующий период, в том числе с разбивкой по годам"]
[null,null,null,"4.1",{"$f":"IF('Перечень тарифов'!E21=\"\",\"наименование отсутствует\",\"\" & 'Перечень тарифов'!E21 & \"\")","v":"Тарифы на тепловую энергию (мощность), поставляемую потребителям теплоснабжающими организациями в соответствии с установленными предельными (минимальными и (или) максимальными) уровнями указанных тарифов"},{"$f":"IF('Перечень тарифов'!J21=\"\",\"наименование отсутствует\",\"\" & 'Перечень тарифов'!J21 & \"\")","v":"Тариф на производство ТЭ"},null,"01.01.2022","31.12.2022",18750.822053611657,"x","Значение в колонке «Вид тарифа» выбирается из перечня видов тарифов в сфере теплоснабжения, предусмотренных законодательством в сфере теплоснабжения.\nДаты начала и окончания периода действия тарифов указывается в виде «ДД.ММ.ГГГГ».\nВеличина необходимой валовой выручки указывается в колонке «Информация» в тыс. руб.\nВ случае дифференциации необходимой валовой выручки по видам тарифов и (или) по периодам действия тарифов информация указывается в отдельных строках."]
[null,null,null,null,null,null,null,"Добавить период"]
[null,null,null,"5","Годовой объем полезного отпуска тепловой энергии (теплоносителя)"]
[null,null,null,"5.1",{"$f":"IF('Перечень тарифов'!E21=\"\",\"наименование отсутствует\",\"\" & 'Перечень тарифов'!E21 & \"\")","v":"Тарифы на тепловую энергию (мощность), поставляемую потребителям теплоснабжающими организациями в соответствии с установленными предельными (минимальными и (или) максимальными) уровнями указанных тарифов"},{"$f":"IF('Перечень тарифов'!J21=\"\",\"наименование отсутствует\",\"\" & 'Перечень тарифов'!J21 & \"\")","v":"Тариф на производство ТЭ"},null,"01.01.2022","31.12.2022",9573.8000000000011,"x","Значение в колонке «Вид тарифа» выбирается из перечня видов тарифов в сфере теплоснабжения, предусмотренных законодательством в сфере теплоснабжения\r\nДаты начала и окончания периода действия тарифов указывается в виде «ДД.ММ.ГГГГ».\r\nВеличина годового объема полезного отпуска тепловой энергии (теплоносителя) указывается в колонке «Информация» в тыс. Гкал.\r\nВ случае дифференциации объема полезного отпуска тепловой энергии (теплоносителя) по видам тарифов и (или) по периодам действия тарифов информация указывается в отдельных строках."]
[null,null,null,null,null,null,null,"Добавить период"]
[null,null,null,"6","Размер недополученных доходов регулируемой организацией, исчисленный в соответствии с законодательством в сфере теплоснабжения"]
[null,null,null,"6.1",{"$f":"IF('Перечень тарифов'!E21=\"\",\"наименование отсутствует\",\"\" & 'Перечень тарифов'!E21 & \"\")","v":"Тарифы на тепловую энергию (мощность), поставляемую потребителям теплоснабжающими организациями в соответствии с установленными предельными (минимальными и (или) максимальными) уровнями указанных тарифов"},{"$f":"IF('Перечень тарифов'!J21=\"\",\"наименование отсутствует\",\"\" & 'Перечень тарифов'!J21 & \"\")","v":"Тариф на производство ТЭ"},null,"01.01.2022","31.12.2022",0,"x","Значение в колонке «Вид тарифа» выбирается из перечня видов тарифов в сфере теплоснабжения, предусмотренных законодательством в сфере теплоснабжения.\nДаты начала и окончания периода действия тарифов указывается в виде «ДД.ММ.ГГГГ».\nВеличина недополученных доходов регулируемой организации указывается в колонке «Информация» в тыс. руб. \nВ случае отсутствия недополученных доходов регулируемой организацией, исчисленных в соответствии с законодательством в сфере теплоснабжения, указывается значение 0.\nВ случае дифференциации недополученных доходов регулируемой организацией по видам тарифов и (или) по периодам действия тарифов информация указывается в отдельных строках.",null,null,"c 01:03 до 18:55"]
[null,null,null,null,null,null,null,"Добавить период"]
[null,3,null,"7","Размер экономически обоснованных расходов, не учтенных при регулировании тарифов в предыдущий период регулирования (при их наличии), определенном в соответствии с законодательством в сфере теплоснабжения"]
[null,null,null,"7.1",{"$f":"IF('Перечень тарифов'!E21=\"\",\"наименование отсутствует\",\"\" & 'Перечень тарифов'!E21 & \"\")","v":"Тарифы на тепловую энергию (мощность), поставляемую потребителям теплоснабжающими организациями в соответствии с установленными предельными (минимальными и (или) максимальными) уровнями указанных тарифов"},{"$f":"IF('Перечень тарифов'!J21=\"\",\"наименование отсутствует\",\"\" & 'Перечень тарифов'!J21 & \"\")","v":"Тариф на производство ТЭ"},null,"01.01.2022","31.12.2022",1958.5558559413873,"x","Значение в колонке «Вид тарифа» выбирается из перечня видов тарифов в сфере теплоснабжения, предусмотренных законодательством в сфере теплоснабжения.\nДаты начала и окончания периода действия тарифов указывается в виде «ДД.ММ.ГГГГ».\nВеличина экономически обоснованных расходов, не учтенных при регулировании тарифов в предыдущий период регулирования, указывается в колонке «Информация» в тыс. руб. \nВ случае отсутствия экономически обоснованных расходов, не учтенных при регулировании тарифов в предыдущий период регулирования, определенных в соответствии с законодательством в сфере теплоснабжения, указывается значение 0.\nВ случае дифференциации экономически обоснованных расходов по видам тарифов и (или) по периодам действия тарифов информация указывается в отдельных строках."]
[null,null,null,null,null,null,null,"Добавить период"]
[]
[null,null,null,1,"При размещении информации по данной форме дополнительно указывается дата подачи заявления об утверждении тарифа и его номер."]

{"sheet":"Форма 1.0.2","index":34,"n_rows":15,"n_cols":13,"rows_kept":15,"cut":false,"hidden":true,"merged":[[4,3,4,9],[14,4,14,9],[11,10,12,10],[7,3,7,9],[8,4,8,5],[7,10,9,10],[8,6,8,9],[8,3,9,3]]}
[]
[]
[]
[]
[null,null,null,"Форма 1.0.2 Информация о публикации в печатных изданиях 2"]
[]
[]
[null,null,null,"Параметры формы",null,null,null,null,null,null,"Описание параметров формы"]
[null,null,null,"№ п/п","Форма публикации",null,"Официальное печатное издание"]
[null,null,null,null,"Номер","Наименование","Наименование","Номер","Дата выпуска","Ссылка на документ"]
[null,null,null,"1","2","3","4","5","6","7","8"]
["3","",null,"1",null,null,null,null,null,null,"В колонке «Дата выпуска» дата выпуска печатного издания указывается в виде «ДД.ММ.ГГГГ».\nВ колонке «Ссылка на документ» указывается ссылка на отсканированную копию печатного издания, предварительно загруженную в хранилище федеральной государственной информационной системы «Единая информационно-аналитическая система «Федеральный орган регулирования - региональные органы регулирования - субъекты регулирования» (далее – ФГИС ЕИАС), с опубликованной информацией.\nВ случае публикации информации в нескольких печатных изданиях информация по каждому из них указывается в отдельной строке.",null,{"$f":"IF(ISERROR(INDEX(kind_of_nameforms,MATCH(E12,kind_of_forms,0),1)),\"\",INDEX(kind_of_nameforms,MATCH(E12,kind_of_forms,0),1))","v":""}]
[null,null,null,null,"Добавить строку"]
[]
[null,null,null,null,"2 Размещается информация по каждой из форм раскрытия, данные в которой относятся к муниципальному образованию, в котором отсутствует доступ в сеть «Интернет»."]

{"sheet":"Сведения об изменении","index":35,"n_rows":15,"n_cols":5,"rows_kept":15,"cut":false,"hidden":true,"merged":[[6,3,6,4],[14,3,14,4]]}
[]
[]
[]
[]
[]
[]
[null,null,null,"Сведения об изменениях в первоначально опубликованной информации*"]
[]
[null,null,null,"№ п/п","Сведения"]
[null,null,null,"1","2"]
[null,null,null,0]
[null,null,null,1]
[null,null,null,null,"Добавить"]
[]
[null,null,null,"* Лист заполняется в случае, если на Титульном листе в поле \"Тип отчета\" выбрано значение «Изменения в раскрытой ранее информации»."]

{"sheet":"Комментарии","index":36,"n_rows":12,"n_cols":5,"rows_kept":12,"cut":false,"hidden":false,"merged":[[6,3,6,4]]}
[]
[]
[]
[]
[]
[]
[null,null,null,"Комментарии"]
[]
[null,null,null,"№ п/п","Комментарий"]
[null,null,null,"1","2"]
[null,null,null,0]
[null,null,null,null,"Добавить"]

{"sheet":"Проверка","index":37,"n_rows":4,"n_cols":4,"rows_kept":4,"cut":false,"hidden":false,"merged":[[1,1,1,3]]}
[]
[null,"Результат проверки"]
[]
[null,"Ссылка","Причина","Статус"]

{"sheet":"et_union_hor","index":38,"n_rows":373,"n_cols":35,"rows_kept":373,"cut":false,"hidden":true,"merged":[[225,22,227,22],[219,14,219,21],[243,29,245,29],[243,17,244,17],[243,18,244,18],[243,19,244,19],[243,20,244,20],[210,21,211,21],[210,19,211,19],[243,27,244,27],[145,14,145,21],[194,13,194,31],[195,13,195,31],[162,14,162,21],[163,14,163,21],[164,14,164,21],[165,14,165,21],[148,18,149,18],[160,14,160,21],[161,14,161,21],[166,22,168,22],[166,18,167,18],[147,14,147,21],[148,19,149,19],[148,17,149,17],[166,17,167,17],[166,19,167,19],[166,20,167,20],[182,23,184,23],[206,20,207,20],[210,17,212,17],[355,3,356,3],[355,4,356,4],[355,5,356,5],[355,11,356,11],[361,3,362,3],[361,4,362,4],[361,5,362,5],[361,11,362,11],[225,20,226,20],[242,9,245,9],[224,9,227,9],[223,8,228,8],[225,19,226,19],[223,14,223,21],[224,14,224,21],[210,13,213,13],[210,16,212,16],[210,14,212,14],[210,15,212,15],[210,20,211,20],[14,15,15,15],[220,1,231,1],[221,2,230,2],[222,3,229,3],[223,4,228,4],[224,5,227,5],[225,17,226,17],[225,18,226,18],[53,5,56,5],[52,8,57,8],[53,9,56,9],[71,5,74,5],[71,9,74,9],[70,8,75,8],[129,5,132,5],[129,9,132,9],[87,8,94,8],[108,6,111,6],[107,5,112,5],[165,9,168,9],[147,5,150,5],[146,8,151,8],[147,9,150,9],[206,16,208,16],[196,32,200,32],[196,11,199,11],[196,12,199,12],[196,13,199,13],[196,14,198,14],[196,15,198,15],[196,16,198,16],[196,17,198,17],[196,18,197,18],[196,19,197,19],[196,21,197,21],[196,27,197,27],[196,28,197,28],[196,29,197,29],[196,30,197,30],[196,20,197,20],[90,19,91,19],[90,20,91,20],[125,14,125,21],[90,22,92,22],[108,25,110,25],[54,22,56,22],[72,22,74,22],[105,14,105,26],[106,14,106,26],[107,14,107,26],[72,20,73,20],[8,3,12,3],[14,3,18,3],[36,18,37,18],[8,14,10,14],[26,17,27,19],[8,8,11,8],[14,7,17,7],[14,9,17,9],[14,10,17,10],[14,12,16,12],[14,14,16,14],[14,11,16,11],[26,14,26,16],[28,18,28,19],[8,11,10,11],[14,13,16,13],[8,4,12,4],[8,13,10,13],[8,10,11,10],[8,9,11,9],[8,5,12,5],[14,4,18,4],[14,8,17,8],[34,4,39,4],[8,12,10,12],[14,5,18,5],[8,6,12,6],[8,7,11,7],[14,6,18,6],[26,22,28,22],[36,17,37,17],[36,19,37,19],[27,15,27,16],[36,22,38,22],[27,14,28,14],[29,14,29,20],[26,20,28,20],[35,9,38,9],[35,5,38,5],[34,8,39,8],[36,20,37,20],[8,15,9,15],[8,16,9,16],[8,17,9,17],[8,18,9,18],[14,16,15,16],[14,17,15,17],[14,18,15,18],[30,0,43,0],[31,1,42,1],[32,2,41,2],[33,3,40,3],[296,3,297,3],[296,4,297,4],[160,0,173,0],[161,1,172,1],[162,2,171,2],[163,3,170,3],[164,4,169,4],[128,4,133,4],[143,1,154,1],[144,2,153,2],[145,3,152,3],[146,4,151,4],[124,0,137,0],[125,1,136,1],[126,2,135,2],[127,3,134,3],[52,4,57,4],[66,0,79,0],[67,1,78,1],[193,1,202,1],[48,0,61,0],[49,1,60,1],[50,2,59,2],[51,3,58,3],[68,2,77,2],[164,8,169,8],[194,2,201,2],[107,8,112,8],[130,22,132,22],[84,0,97,0],[85,1,96,1],[86,2,95,2],[87,3,94,3],[88,4,93,4],[124,14,124,21],[142,0,155,0],[178,0,187,0],[179,1,186,1],[180,2,185,2],[181,3,184,3],[192,0,203,0],[128,8,133,8],[105,3,114,3],[165,5,168,5],[336,0,344,0],[340,2,342,2],[341,8,342,8],[301,7,302,7],[339,1,343,1],[296,2,297,2],[301,2,302,2],[301,5,302,5],[301,6,302,6],[237,0,250,0],[238,1,249,1],[239,2,248,2],[240,3,247,3],[241,4,246,4],[241,8,246,8],[242,5,245,5],[130,20,131,20],[130,18,131,18],[195,3,200,3],[196,4,199,4],[210,18,211,18],[178,14,178,22],[179,14,179,22],[180,14,180,22],[181,14,181,22],[192,13,192,31],[193,13,193,31],[196,10,199,10],[219,0,232,0],[148,22,150,22],[220,14,220,21],[221,14,221,21],[222,14,222,21],[106,4,113,4],[102,0,117,0],[103,1,116,1],[104,2,115,2],[127,14,127,21],[129,14,129,21],[130,19,131,19],[72,19,73,19],[69,3,76,3],[70,4,75,4],[84,14,84,21],[85,14,85,21],[86,14,86,21],[88,14,88,21],[89,14,89,21],[108,9,111,9],[89,5,92,5],[89,9,92,9],[102,14,102,26],[103,14,103,26],[104,14,104,26],[108,24,110,24],[69,14,69,21],[70,14,70,21],[30,14,30,21],[31,14,31,21],[32,14,32,21],[33,14,33,21],[34,14,34,21],[35,14,35,21],[66,14,66,21],[67,14,67,21],[68,14,68,21],[48,14,48,21],[49,14,49,21],[50,14,50,21],[51,14,51,21],[52,14,52,21],[53,14,53,21],[54,19,55,19],[54,20,55,20],[54,17,55,17],[54,18,55,18],[71,14,71,21],[130,17,131,17],[72,17,73,17],[72,18,73,18],[87,14,87,21],[148,20,149,20],[243,24,244,24],[243,25,244,25],[243,26,244,26],[237,14,237,28],[238,14,238,28],[239,14,239,28],[240,14,240,28],[241,14,241,28],[242,14,242,28],[109,27,111,27],[126,14,126,21],[144,14,144,21],[142,14,142,21],[108,22,110,22],[108,23,110,23],[143,14,143,21],[90,17,91,17],[90,18,91,18]]}
[]
["et_Comm"]
[]
[]
[]
[]
["et_List02(_1,_2,_3)"]
[]
[null,null,null,1,null,null,"нет",null,1,null,"нет",null,"1",null,"нет",null,"1",null,"нет",null,"1"]
[null,null,null,null,null,null,null,null,null,null,null,null,null,null,null,null,null,null,null,null,null,"Добавить источник для дифференциации"]
[null,null,null,null,null,null,null,null,null,null,null,null,null,null,null,null,null,"Добавить СТ для дифференциации"]
[null,null,null,null,null,null,null,null,null,null,null,null,null,"Добавить территорию для дифференциации"]
[]
[]
[null,null,null,null,null,null,null,null,1,null,"нет",null,"1",null,"нет",null,"1",null,"нет",null,"1"]
[null,null,null,null,null,null,null,null,null,null,null,null,null,null,null,null,null,null,null,null,null,"Добавить источник для дифференциации"]
[null,null,null,null,null,null,null,null,null,null,null,null,null,null,null,null,null,"Добавить СТ для дифференциации"]
[null,null,null,null,null,null,null,null,null,null,null,null,null,"Добавить территорию для дифференциации"]
[]
[]
["et_List06(_1,_2,_3)",null,"1"]
[]
[]
[]
[]
[]
[null,null,null,null,null,null,null,null,null,null,null,null,null,null,"Величина установленного тарифа",null,null,"Срок действия цены (тарифа) на тепловую энергию (мощность)",null,null,"Наличие других периодов действия тарифа"]
[null,null,null,null,null,null,null,null,null,null,null,null,null,null,"Одноставочный тариф, руб./Гкал","Двухставочный тариф"]
[null,null,null,null,null,null,null,null,null,null,null,null,null,null,null,"ставка за тепловую  энергию, руб./Гкал","ставка за содержание тепловой мощности, тыс.руб./Гкал/ч/мес","дата начала","дата окончания"]
[null,null,null,null,null,null,null,null,null,null,null,null,"7"]
[1,null,null,null,null,null,null,null,null,null,null,{"$f":"mergeValue(A31)","v":1},"Наименование тарифа",null,null,null,null,null,null,null,null,null,"Указывается наименование тарифа в случае подачи предложения по нескольким тарифам.\nВ случае наличия нескольких тарифов информация по ним указывается в отдельных строках.",null,null,{"$f":"IF(M31=\"\",\"\",M31 )","v":"Наименование тарифа"}]
[null,1,null,null,null,null,null,null,null,null,null,{"$f":"mergeValue(A32) &\".\"& mergeValue(B32)","v":"1.1"},"Территория действия тарифа",null,null,null,null,null,null,null,null,null,"Указывается наименование территории действия тарифа при наличии дифференциации тарифа по территориальному признаку.\nВ случае дифференциации тарифов по территориальному признаку информация по ним указывается в отдельных строках.",null,null,"Территория действия тарифа"]
[null,null,1,null,null,null,null,null,null,null,null,{"$f":"mergeValue(A33) &\".\"& mergeValue(B33)&\".\"& mergeValue(C33)","v":"1.1.1"},"Наименование системы теплоснабжения ",null,null,null,null,null,null,null,null,null,"Указывается наименование системы теплоснабжения при наличии дифференциации тарифа по системам теплоснабжения.\nВ случае дифференциации тарифов по системам теплоснабжения информация по ним указывается в отдельных строках.",null,null,"Наименование системы теплоснабжения "]
[null,null,null,1,null,null,null,null,null,null,null,{"$f":"mergeValue(A34) &\".\"& mergeValue(B34)&\".\"& mergeValue(C34)&\".\"& mergeValue(D34)","v":"1.1.1.1"},"Источник тепловой энергии  ",null,null,null,null,null,null,null,null,null,"Указывается наименование источника тепловой энергии\nВ случае дифференциации тарифов по источникам тепловой энергии информация по ним указывается в отдельных строках.",null,null,"Источник тепловой энергии  "]
[null,null,null,null,1,null,null,1,1,null,null,{"$f":"mergeValue(A35) &\".\"& mergeValue(B35)&\".\"& mergeValue(C35)&\".\"& mergeValue(D35)&\".\"& mergeValue(E35)","v":"1.1.1.1.1"},"Схема подключения теплопотребляющей установки к коллектору источника тепловой энергии",null,null,null,null,null,null,null,null,null,"Указывается схема подключения теплопотребляющей установки к коллектору источника тепловой энергии только для тарифов на тепловую энергию и за услуги по поддержанию резервной мощности.\nЗначение выбирается из перечня: Без дифференциации; к коллектору источника тепловой энергии; к тепловой сети без дополнительного преобразования на тепловых пунктах, эксплуатируемых теплоснабжающей организацией; к тепловой сети после тепловых пунктов (на тепловых пунктах), эксплуатируемых теплоснабжающей организацией.\nВ случае дифференциации тарифов по схемам подключения теплопотребляющей установки к коллектору источника тепловой энергии информация по ним указывается в отдельных строках.",null,null,"Схема подключения теплопотребляющей установки к коллектору источника тепловой энергии"]
[null,null,null,null,null,1,null,null,null,1,null,{"$f":"mergeValue(A36) &\".\"& mergeValue(B36)&\".\"& mergeValue(C36)&\".\"& mergeValue(D36)&\".\"& mergeValue(E36)&\".\"& mergeValue(F36)","v":"1.1.1.1.1.1"},"Группа потребителей",null,null,null,null,null,null,null,null,null,"Указывается группа потребителей при наличии дифференциации тарифа по группам потребителей.\nЗначение выбирается из перечня: Организации-перепродавцы; Бюджетные организации; Население; Прочие; Без дифференциации.\nВ случае дифференциации тарифов группам потребителей информация по ним указывается в отдельных строках.",null,null,"Группа потребителей"]
[null,null,null,null,null,null,1,null,null,null,1,{"$f":"mergeValue(A37) &\".\"& mergeValue(B37)&\".\"& mergeValue(C37)&\".\"& mergeValue(D37)&\".\"& mergeValue(E37)&\".\"& mergeValue(F37)&\".\"& mergeValue(G37)","v":"1.1.1.1.1.1.1"},null,null,null,null,null,null,"да",null,"да",null,"В колонке «Параметр дифференциации тарифов» указывается вид теплоносителя.\nЗначение выбирается из перечня: вода; пар; отборный пар, 1.2-2.5 кг/см2; отборный пар, 2.5-7 кг/см2; отборный пар, 7-13 кг/см2; отборный пар, > 13 кг/см2; острый и редуцированный пар; горячая вода в системе централизованного теплоснабжения на отопление; горячая вода в системе централизованного теплоснабжения на горячее водоснабжение; прочее.\nПри подаче предложения на двухставочный тариф колонка «Одноставочный тариф» не заполняется.\nПри подаче предложения на одноставочный тариф колонки в блоке «Двухставочный тариф» не заполняются.\nДаты начала и окончания действия тарифов указываются в виде «ДД.ММ.ГГГГ».\nВ случае отсутствия даты окончания действия тарифа в колонке «Дата окончания» указывается «Нет».\nИнформация в колонке «Ставка за содержание тепловой мощности, тыс. руб./Гкал/ч/мес» указывается только для тарифа по поддержанию резервной мощности. \nВ случае дифференциации тарифов по периодам действия тарифа информация по ним указывается в отдельных колонках.\nВ случае дифференциации тарифов по видам теплоносителя информация по ним указывается в отдельных строках.",{"$f":"strCheckDate(O38:V38)","v":""},null,""]
[null,null,null,null,null,null,null,null,null,null,null,null,null,null,null,null,{"$f":"R37 & \"-\" & T37","v":"-"},null,null,null,null,null,null,null,null,""]
[null,null,null,null,null,null,null,null,null,null,null,null,"Добавить вид теплоносителя (параметры теплоносителя)",null,null,null,null,null,null,null,null,null,null,null,null,"Добавить вид теплоносителя (параметры теплоносителя)"]
[null,null,null,null,null,null,null,null,null,null,null,null,"Добавить группу потребителей",null,null,null,null,null,null,null,null,null,null,null,null,"Добавить группу потребителей"]
[null,null,null,null,null,null,null,null,null,null,null,null,"Добавить схему подключения",null,null,null,null,null,null,null,null,null,null,null,null,"Добавить схему подключения"]
[null,null,null,null,null,null,null,null,null,null,null,null,"Добавить источник тепловой энергии",null,null,null,null,null,null,null,null,null,null,null,null,"Добавить источник тепловой энергии"]
[null,null,null,null,null,null,null,null,null,null,null,null,"Добавить наименование системы теплоснабжения",null,null,null,null,null,null,null,null,null,null,null,null,"Добавить наименование системы теплоснабжения"]
[null,null,null,null,null,null,null,null,null,null,null,null,"Добавить территорию действия тарифа",null,null,null,null,null,null,null,null,null,null,null,null,"Добавить территорию действия тарифа"]
[null,null,null,null,null,null,null,null,null,null,null,null,"Добавить наименование тарифа"]
[]
["et_List06(_1,_2,_3)",null,"2"]
[]
[1,null,null,null,null,null,null,null,null,null,null,{"$f":"mergeValue(A49)","v":1},"Наименование тарифа",null,null,null,null,null,null,null,null,null,"Указывается наименование тарифа в случае подачи предложения по нескольким тарифам.\nВ случае наличия нескольких тарифов информация по ним указывается в отдельных строках.",null,null,{"$f":"IF(M49=\"\",\"\",M49 )","v":"Наименование тарифа"}]
[null,1,null,null,null,null,null,null,null,null,null,{"$f":"mergeValue(A50) &\".\"& mergeValue(B50)","v":"1.1"},"Территория действия тарифа",null,null,null,null,null,null,null,null,null,"Указывается наименование территории действия тарифа при наличии дифференциации тарифа по территориальному признаку.\nВ случае дифференциации тарифов по территориальному признаку информация по ним указывается в отдельных строках.",null,null,"Территория действия тарифа"]
[null,null,1,null,null,null,null,null,null,null,null,{"$f":"mergeValue(A51) &\".\"& mergeValue(B51)&\".\"& mergeValue(C51)","v":"1.1.1"},"Наименование системы теплоснабжения ",null,null,null,null,null,null,null,null,null,"Указывается наименование системы теплоснабжения при наличии дифференциации тарифа по системам теплоснабжения.\nВ случае дифференциации тарифов по системам теплоснабжения информация по ним указывается в отдельных строках.",null,null,"Наименование системы теплоснабжения "]
[null,null,null,1,null,null,null,null,null,null,null,{"$f":"mergeValue(A52) &\".\"& mergeValue(B52)&\".\"& mergeValue(C52)&\".\"& mergeValue(D52)","v":"1.1.1.1"},"Источник тепловой энергии  ",null,null,null,null,null,null,null,null,null,"Указывается наименование источника тепловой энергии\nВ случае дифференциации тарифов по источникам тепловой энергии информация по ним указывается в отдельных строках.",null,null,"Источник тепловой энергии  "]
[null,null,null,null,1,null,null,1,1,null,null,{"$f":"mergeValue(A53) &\".\"& mergeValue(B53)&\".\"& mergeValue(C53)&\".\"& mergeValue(D53)&\".\"& mergeValue(E53)","v":"1.1.1.1.1"},"Схема подключения теплопотребляющей установки к коллектору источника тепловой энергии",null,null,null,null,null,null,null,null,null,"Указывается схема подключения теплопотребляющей установки к коллектору источника тепловой энергии только для тарифов на тепловую энергию и за услуги по поддержанию резервной мощности.\nЗначение выбирается из перечня: Без дифференциации; к коллектору источника тепловой энергии; к тепловой сети без дополнительного преобразования на тепловых пунктах, эксплуатируемых теплоснабжающей организацией; к тепловой сети после тепловых пунктов (на тепловых пунктах), эксплуатируемых теплоснабжающей организацией.\nВ случае дифференциации тарифов по схемам подключения теплопотребляющей установки к коллектору источника тепловой энергии информация по ним указывается в отдельных строках.",null,null,"Схема подключения теплопотребляющей установки к коллектору источника тепловой энергии"]
[null,null,null,null,null,1,null,null,null,1,null,{"$f":"mergeValue(A54) &\".\"& mergeValue(B54)&\".\"& mergeValue(C54)&\".\"& mergeValue(D54)&\".\"& mergeValue(E54)&\".\"& mergeValue(F54)","v":"1.1.1.1.1.1"},"Группа потребителей",null,null,null,null,null,null,null,null,null,"Указывается группа потребителей при наличии дифференциации тарифа по группам потребителей.\nЗначение выбирается из перечня: Организации-перепродавцы; Бюджетные организации; Население; Прочие; Без дифференциации.\nВ случае дифференциации тарифов группам потребителей информация по ним указывается в отдельных строках.",null,null,"Группа потребителей"]
[null,null,null,null,null,null,1,null,null,null,1,{"$f":"mergeValue(A55) &\".\"& mergeValue(B55)&\".\"& mergeValue(C55)&\".\"& mergeValue(D55)&\".\"& mergeValue(E55)&\".\"& mergeValue(F55)&\".\"& mergeValue(G55)","v":"1.1.1.1.1.1.1"},null,null,null,null,null,null,"да",null,"да",null,"В колонке «Параметр дифференциации тарифов» указывается вид теплоносителя.\nЗначение выбирается из перечня: вода; пар; отборный пар, 1.2-2.5 кг/см2; отборный пар, 2.5-7 кг/см2; отборный пар, 7-13 кг/см2; отборный пар, > 13 кг/см2; острый и редуцированный пар; горячая вода в системе централизованного теплоснабжения на отопление; горячая вода в системе централизованного теплоснабжения на горячее водоснабжение; прочее.\nПри подаче предложения на двухставочный тариф колонка «Одноставочный тариф» не заполняется.\nПри подаче предложения на одноставочный тариф колонки в блоке «Двухставочный тариф» не заполняются.\nДаты начала и окончания действия тарифов указываются в виде «ДД.ММ.ГГГГ».\nВ случае отсутствия даты окончания действия тарифа в колонке «Дата окончания» указывается «Нет».\nИнформация в колонке «Ставка за содержание тепловой мощности, тыс. руб./Гкал/ч/мес» указывается только для тарифа по поддержанию резервной мощности. \nВ случае дифференциации тарифов по периодам действия тарифа информация по ним указывается в отдельных колонках.\nВ случае дифференциации тарифов по видам теплоносителя информация по ним указывается в отдельных строках.",{"$f":"strCheckDate(O56:V56)","v":""},null,""]
[null,null,null,null,null,null,null,null,null,null,null,null,null,null,null,null,{"$f":"R55 & \"-\" & T55","v":"-"},null,null,null,null,null,null,null,null,""]
[null,null,null,null,null,null,null,null,null,null,null,null,"Добавить вид теплоносителя (параметры теплоносителя)",null,null,null,null,null,null,null,null,null,null,null,null,"Добавить вид теплоносителя (параметры теплоносителя)"]
[null,null,null,null,null,null,null,null,null,null,null,null,"Добавить группу потребителей",null,null,null,null,null,null,null,null,null,null,null,null,"Добавить группу потребителей"]
[null,null,null,null,null,null,null,null,null,null,null,null,"Добавить схему подключения",null,null,null,null,null,null,null,null,null,null,null,null,"Добавить схему подключения"]
[null,null,null,null,null,null,null,null,null,null,null,null,"Добавить источник тепловой энергии",null,null,null,null,null,null,null,null,null,null,null,null,"Добавить источник тепловой энергии"]
[null,null,null,null,null,null,null,null,null,null,null,null,"Добавить наименование системы теплоснабжения",null,null,null,null,null,null,null,null,null,null,null,null,"Добавить наименование системы теплоснабжения"]
[null,null,null,null,null,null,null,null,null,null,null,null,"Добавить территорию действия тарифа",null,null,null,null,null,null,null,null,null,null,null,null,"Добавить территорию действия тарифа"]
[null,null,null,null,null,null,null,null,null,null,null,null,"Добавить наименование тарифа"]
[]
["et_List06(_1,_2,_3)",null,"3"]
[]
[1,null,null,null,null,null,null,null,null,null,null,{"$f":"mergeValue(A67)","v":1},"Наименование тарифа",null,null,null,null,null,null,null,null,null,"Указывается наименование тарифа в случае подачи предложения по нескольким тарифам.\nВ случае наличия нескольких тарифов информация по ним указывается в отдельных строках.",null,null,{"$f":"IF(M67=\"\",\"\",M67 )","v":"Наименование тарифа"}]
[null,1,null,null,null,null,null,null,null,null,null,{"$f":"mergeValue(A68) &\".\"& mergeValue(B68)","v":"1.1"},"Территория действия тарифа",null,null,null,null,null,null,null,null,null,"Указывается наименование территории действия тарифа при наличии дифференциации тарифа по территориальному признаку.\nВ случае дифференциации тарифов по территориальному признаку информация по ним указывается в отдельных строках.",null,null,"Территория действия тарифа"]
[null,null,1,null,null,null,null,null,null,null,null,{"$f":"mergeValue(A69) &\".\"& mergeValue(B69)&\".\"& mergeValue(C69)","v":"1.1.1"},"Наименование системы теплоснабжения ",null,null,null,null,null,null,null,null,null,"Указывается наименование системы теплоснабжения при наличии дифференциации тарифа по системам теплоснабжения.\nВ случае дифференциации тарифов по системам теплоснабжения информация по ним указывается в отдельных строках.",null,null,"Наименование системы теплоснабжения "]
[null,null,null,1,null,null,null,null,null,null,null,{"$f":"mergeValue(A70) &\".\"& mergeValue(B70)&\".\"& mergeValue(C70)&\".\"& mergeValue(D70)","v":"1.1.1.1"},"Источник тепловой энергии  ",null,null,null,null,null,null,null,null,null,"Указывается наименование источника тепловой энергии\nВ случае дифференциации тарифов по источникам тепловой энергии информация по ним указывается в отдельных строках.",null,null,"Источник тепловой энергии  "]
[null,null,null,null,1,null,null,1,1,null,null,{"$f":"mergeValue(A71) &\".\"& mergeValue(B71)&\".\"& mergeValue(C71)&\".\"& mergeValue(D71)&\".\"& mergeValue(E71)","v":"1.1.1.1.1"},"Схема подключения теплопотребляющей установки к коллектору источника тепловой энергии",null,null,null,null,null,null,null,null,null,"Указывается схема подключения теплопотребляющей установки к коллектору источника тепловой энергии только для тарифов на тепловую энергию и за услуги по поддержанию резервной мощности.\nЗначение выбирается из перечня: Без дифференциации; к коллектору источника тепловой энергии; к тепловой сети без дополнительного преобразования на тепловых пунктах, эксплуатируемых теплоснабжающей организацией; к тепловой сети после тепловых пунктов (на тепловых пунктах), эксплуатируемых теплоснабжающей организацией.\nВ случае дифференциации тарифов по схемам подключения теплопотребляющей установки к коллектору источника тепловой энергии информация по ним указывается в отдельных строках.",null,null,"Схема подключения теплопотребляющей установки к коллектору источника тепловой энергии"]
[null,null,null,null,null,1,null,null,null,1,null,{"$f":"mergeValue(A72) &\".\"& mergeValue(B72)&\".\"& mergeValue(C72)&\".\"& mergeValue(D72)&\".\"& mergeValue(E72)&\".\"& mergeValue(F72)","v":"1.1.1.1.1.1"},"Группа потребителей",null,null,null,null,null,null,null,null,null,"Указывается группа потребителей при наличии дифференциации тарифа по группам потребителей.\nЗначение выбирается из перечня: Организации-перепродавцы; Бюджетные организации; Население; Прочие; Без дифференциации.\nВ случае дифференциации тарифов группам потребителей информация по ним указывается в отдельных строках.",null,null,"Группа потребителей"]
[null,null,null,null,null,null,1,null,null,null,1,{"$f":"mergeValue(A73) &\".\"& mergeValue(B73)&\".\"& mergeValue(C73)&\".\"& mergeValue(D73)&\".\"& mergeValue(E73)&\".\"& mergeValue(F73)&\".\"& mergeValue(G73)","v":"1.1.1.1.1.1.1"},null,null,null,null,null,null,"да",null,"да",null,"В колонке «Параметр дифференциации тарифов» указывается вид теплоносителя.\nЗначение выбирается из перечня: вода; пар; отборный пар, 1.2-2.5 кг/см2; отборный пар, 2.5-7 кг/см2; отборный пар, 7-13 кг/см2; отборный пар, > 13 кг/см2; острый и редуцированный пар; горячая вода в системе централизованного теплоснабжения на отопление; горячая вода в системе централизованного теплоснабжения на горячее водоснабжение; прочее.\nПри подаче предложения на двухставочный тариф колонка «Одноставочный тариф» не заполняется.\nПри подаче предложения на одноставочный тариф колонки в блоке «Двухставочный тариф» не заполняются.\nДаты начала и окончания действия тарифов указываются в виде «ДД.ММ.ГГГГ».\nВ случае отсутствия даты окончания действия тарифа в колонке «Дата окончания» указывается «Нет».\nИнформация в колонке «Ставка за содержание тепловой мощности, тыс. руб./Гкал/ч/мес» указывается только для тарифа по поддержанию резервной мощности. \nВ случае дифференциации тарифов по периодам действия тарифа информация по ним указывается в отдельных колонках.\nВ случае дифференциации тарифов по видам теплоносителя информация по ним указывается в отдельных строках.",{"$f":"strCheckDate(O74:V74)","v":""},null,""]
[null,null,null,null,null,null,null,null,null,null,null,null,null,null,null,null,{"$f":"R73 & \"-\" & T73","v":"-"},null,null,null,null,null,null,null,null,""]
[null,null,null,null,null,null,null,null,null,null,null,null,"Добавить вид теплоносителя (параметры теплоносителя)",null,null,null,null,null,null,null,null,null,null,null,null,"Добавить вид теплоносителя (параметры теплоносителя)"]
[null,null,null,null,null,null,null,null,null,null,null,null,"Добавить группу потребителей",null,null,null,null,null,null,null,null,null,null,null,null,"Добавить группу потребителей"]
[null,null,null,null,null,null,null,null,null,null,null,null,"Добавить схему подключения",null,null,null,null,null,null,null,null,null,null,null,null,"Добавить схему подключения"]
[null,null,null,null,null,null,null,null,null,null,null,null,"Добавить источник тепловой энергии",null,null,null,null,null,null,null,null,null,null,null,null,"Добавить источник тепловой энергии"]
[null,null,null,null,null,null,null,null,null,null,null,null,"Добавить наименование системы теплоснабжения",null,null,null,null,null,null,null,null,null,null,null,null,"Добавить наименование системы теплоснабжения"]
[null,null,null,null,null,null,null,null,null,null,null,null,"Добавить территорию действия тарифа",null,null,null,null,null,null,null,null,null,null,null,null,"Добавить территорию действия тарифа"]
[null,null,null,null,null,null,null,null,null,null,null,null,"Добавить наименование тарифа"]
[]
["et_List06(_1,_2,_3)",null,"4"]
[]
[1,null,null,null,null,null,null,null,null,null,1,{"$f":"mergeValue(A85)","v":1},"Наименование тарифа",null,null,null,null,null,null,null,null,null,"Указывается наименование тарифа в случае подачи предложения по нескольким тарифам.\nВ случае наличия нескольких тарифов информация по ним указывается в отдельных строках."]
[null,1,null,null,null,null,null,null,null,null,1,{"$f":"mergeValue(A86) &\".\"& mergeValue(B86)","v":"1.1"},"Территория действия тарифа",null,null,null,null,null,null,null,null,null,"Указывается наименование территории действия тарифа при наличии дифференциации тарифа по территориальному признаку.\nВ случае дифференциации тарифов по территориальному признаку информация по ним указывается в отдельных строках."]
[null,null,1,null,null,null,null,null,null,null,1,{"$f":"mergeValue(A87) &\".\"& mergeValue(B87)&\".\"& mergeValue(C87)","v":"1.1.1"},"Наименование системы теплоснабжения ",null,null,null,null,null,null,null,null,null,"Указывается наименование системы теплоснабжения при наличии дифференциации тарифа по системам теплоснабжения.\nВ случае дифференциации тарифов по системам теплоснабжения информация по ним указывается в отдельных строках."]
[null,null,null,1,null,null,null,null,1,null,1,{"$f":"mergeValue(A88) &\".\"& mergeValue(B88)&\".\"& mergeValue(C88)&\".\"& mergeValue(D88)","v":"1.1.1.1"},"Источник тепловой энергии  ",null,null,null,null,null,null,null,null,null,"Указывается наименование источника тепловой энергии\nВ случае дифференциации тарифов по источникам тепловой энергии информация по ним указывается в отдельных строках."]
[null,null,null,null,1,null,null,null,null,null,1]
[null,null,null,null,null,1,null,null,null,null,1,{"$f":"mergeValue(A90) &\".\"& mergeValue(B90)&\".\"& mergeValue(C90)&\".\"& mergeValue(D90)&\".\"&  mergeValue(F90)","v":"1.1.1.1.1"},"Группа потребителей",null,null,null,null,null,null,null,null,null,"Указывается группа потребителей при наличии дифференциации тарифа по группам потребителей.\nЗначение выбирается из перечня: Организации-перепродавцы; Бюджетные организации; Население; Прочие; Без дифференциации.\nВ случае дифференциации тарифов группам потребителей информация по ним указывается в отдельных строках.",null,{"$f":"strCheckUnique(Z90:Z93)","v":""}]
[null,null,null,null,null,null,1,null,null,null,null,{"$f":"mergeValue(A91) &\".\"& mergeValue(B91)&\".\"& mergeValue(C91)&\".\"& mergeValue(D91)&\".\"&  mergeValue(F91)&\".\"&  mergeValue(G91)","v":"1.1.1.1.1.1"},null,null,null,null,null,null,"да",null,"да",null,"В колонке «Параметр дифференциации тарифов» указывается вид теплоносителя.\nЗначение выбирается из перечня: вода; пар; отборный пар, 1.2-2.5 кг/см2; отборный пар, 2.5-7 кг/см2; отборный пар, 7-13 кг/см2; отборный пар, > 13 кг/см2; острый и редуцированный пар; горячая вода в системе централизованного теплоснабжения на отопление;  горячая вода в системе централизованного теплоснабжения на горячее водоснабжение; прочее.\nПри подаче предложения на двухставочный тариф колонка «Одноставочный тариф» не заполняется.\nПри подаче предложения на одноставочный тариф колонки в блоке «Двухставочный тариф» не заполняются.\nИнформация в колонке «Двухставочный тариф» не указывается для тарифа на теплоноситель.\nДаты начала и окончания действия тарифов указываются в виде «ДД.ММ.ГГГГ».\nВ случае отсутствия даты окончания действия тарифа в колонке «Дата окончания» указывается «Нет».\nВ случае дифференциации тарифов по видам теплоносителя информация по ним указывается в отдельных строках.",{"$f":"strCheckDate(O92:V92)","v":""},null,{"$f":"IF(M91=\"\",\"\",M91 )","v":""}]
[null,null,null,null,null,null,null,null,null,null,1,null,null,null,null,null,{"$f":"R91 & \"-\" & T91","v":"-"}]
[null,null,null,null,null,null,null,null,null,null,1,null,"Добавить вид теплоносителя (параметры теплоносителя)"]
[null,null,null,null,null,null,null,null,null,null,null,null,"Добавить группу потребителей"]
[]
[null,null,null,null,null,null,null,null,null,null,1,null,"Добавить источник тепловой энергии"]
[null,null,null,null,null,null,null,null,null,null,1,null,"Добавить наименование системы теплоснабжения"]
[null,null,null,null,null,null,null,null,null,null,1,null,"Добавить территорию действия тарифа"]
[null,null,null,null,null,null,null,null,null,null,null,null,"Добавить наименование тарифа"]
[]
[null,null,null,null,null,null,"et_List06(_1,_2,_3)",null,"5"]
[]
[1,null,null,null,null,null,null,null,null,null,null,{"$f":"mergeValue(A103)","v":1},"Наименование тарифа",null,null,null,null,null,null,null,null,null,null,null,null,null,null,"Указывается наименование тарифа в случае подачи предложения по нескольким тарифам.\nВ случае наличия нескольких тарифов информация по ним указывается в отдельных строках."]
[null,1,null,null,null,null,null,null,null,null,null,{"$f":"mergeValue(A104) &\".\"& mergeValue(B104)","v":"1.1"},"Территория действия тарифа",null,null,null,null,null,null,null,null,null,null,null,null,null,null,"Указывается наименование территории действия тарифа при наличии дифференциации тарифа по территориальному признаку.\nВ случае дифференциации тарифов по территориальному признаку информация по ним указывается в отдельных строках."]
[null,null,1,null,null,null,null,null,null,null,null,{"$f":"mergeValue(A105) &\".\"& mergeValue(B105)&\".\"& mergeValue(C105)","v":"1.1.1"},"Наименование системы теплоснабжения ",null,null,null,null,null,null,null,null,null,null,null,null,null,null,"Указывается наименование системы теплоснабжения при наличии дифференциации тарифа по системам теплоснабжения.\nВ случае дифференциации тарифов по системам теплоснабжения информация по ним указывается в отдельных строках."]
[null,null,null,1,null,null,null,null,null,null,null,{"$f":"mergeValue(A106) &\".\"& mergeValue(B106)&\".\"& mergeValue(C106)&\".\"& mergeValue(D106)","v":"1.1.1.1"},"Источник тепловой энергии  ",null,null,null,null,null,null,null,null,null,null,null,null,null,null,"Указывается наименование источника тепловой энергии\nВ случае дифференциации тарифов по источникам тепловой энергии информация по ним указывается в отдельных строках."]
[null,null,null,null,1]
[null,null,null,null,null,1,null,null,null,null,null,{"$f":"mergeValue(A108) &\".\"& mergeValue(B108)&\".\"& mergeValue(C108)&\".\"& mergeValue(D108)&\".\"& mergeValue(F108)","v":"1.1.1.1.1"},"Группа потребителей",null,null,null,null,null,null,null,null,null,null,null,null,null,null,"Указывается группа потребителей при наличии дифференциации тарифа по группам потребителей.\nЗначение выбирается из перечня: Организации-перепродавцы; Бюджетные организации; Население; Прочие; Без дифференциации.\nВ случае дифференциации тарифов группам потребителей информация по ним указывается в отдельных строках.",null,{"$f":"strCheckUnique(AE108:AE113)","v":""}]
[null,null,null,null,null,null,1,null,null,null,null,{"$f":"mergeValue(A109) &\".\"& mergeValue(B109)&\".\"& mergeValue(C109)&\".\"& mergeValue(D109)&\".\"& mergeValue(F109)&\".\"& mergeValue(G109)","v":"1.1.1.1.1.1"},null,null,null,null,null,null,null,null,null,{"$f":"W109 & \"-\" & Y109","v":"-"},null,"да",null,"да",null,"Указывается вид теплоносителя. Значение выбирается из перечня: вода; пар; отборный пар, 1.2-2.5 кг/см2; отборный пар, 2.5-7 кг/см2; отборный пар, 7-13 кг/см2; отборный пар, > 13 кг/см2; острый и редуцированный пар; горячая вода в системе централизованного теплоснабжения на отопление; горячая вода в системе централизованного теплоснабжения на горячее водоснабжение; прочее.\nВ случае дифференциации тарифов по видам теплоносителя информация по ним указывается в отдельных строках.",{"$f":"strCheckDate(O109:AA109)","v":""},null,{"$f":"IF(M109=\"\",\"\",M109 )","v":""}]
[null,null,null,null,null,null,null,1,null,null,null,{"$f":"mergeValue(A110) &\".\"& mergeValue(B110)&\".\"& mergeValue(C110)&\".\"& mergeValue(D110)&\".\"& mergeValue(F110)&\".\"& mergeValue(G110)&\".\"& mergeValue(H110)","v":"1.1.1.1.1.1.1"},null,null,null,null,null,null,null,null,null,{"$f":"W110 & \"-\" & Y110","v":"-"},null,null,null,null,null,"В колонке «Параметр дифференциации тарифов» указывается наименование поставщика в случае наличия дифференциации компонента двухставочного тарифа на горячую воду по поставщикам.\nПри подаче предложения на двухставочный тариф колонка «Одноставочный тариф» не заполняется.\nПри подаче предложения на одноставочный тариф колонки в блоке «Двухставочный тариф» не заполняются.\nВ случае отсутствия разбивки тарифа на компоненты колонки «Компонент на теплоноситель, руб./куб.м» и «Одноставочный компонент на тепловую энергию, руб/Гкал» не заполняются.\nДаты начала и окончания действия тарифов указываются в виде «ДД.ММ.ГГГГ».\nВ случае отсутствия даты окончания действия тарифа в колонке «Дата окончания» указывается «Нет».\nВ случае дифференциации тарифов по поставщикам информация по ним указывается в отдельных строках.",{"$f":"strCheckDate(O110:AA110)","v":""}]
[null,null,null,null,null,null,null,null,null,null,null,null,null,null,null,null,null,null,null,null,null,null,null,null,null,null,null,null,null,null,null,{"$f":"OFFSET(AF111,-1,0)","v":0}]
[null,null,null,null,null,null,null,null,null,null,null,null,"Добавить поставщика"]
[null,null,null,null,null,null,null,null,null,null,null,null,"Добавить вид теплоносителя (параметры теплоносителя)"]
[null,null,null,null,null,null,null,null,null,null,null,null,"Добавить группу потребителей"]
[]
[null,null,null,null,null,null,null,null,null,null,null,null,"Добавить источник тепловой энергии"]
[null,null,null,null,null,null,null,null,null,null,null,null,"Добавить наименование системы теплоснабжения"]
[null,null,null,null,null,null,null,null,null,null,null,null,"Добавить территорию действия тарифа"]
[null,null,null,null,null,null,null,null,null,null,null,null,"Добавить наименование тарифа"]
[null,null,null,null,null,null,null,1,null,null,null,{"$f":"mergeValue(A120) &\".\"& mergeValue(B120)&\".\"& mergeValue(C120)&\".\"& mergeValue(D120)&\".\"& mergeValue(F120)&\".\"& mergeValue(G120)&\".\"& mergeValue(H120)","v":"......1"},null,null,null,null,null,null,null,null,null,{"$f":"W120 & \"-\" & Y120","v":"-"},null,"нет",null,"нет",null,null,{"$f":"strCheckDate(O120:AA120)","v":""}]
[]
[]
[null,null,null,null,null,null,"et_List06(_1,_2,_3)",null,"6"]
[]
[1,null,null,null,null,null,null,null,null,null,null,{"$f":"mergeValue(A125)","v":1},"Наименование тарифа",null,null,null,null,null,null,null,null,null,"Указывается наименование тарифа в случае подачи предложения по нескольким тарифам.\nВ случае наличия нескольких тарифов информация по ним указывается в отдельных строках."]
[null,1,null,null,null,null,null,null,null,null,null,{"$f":"mergeValue(A126) &\".\"& mergeValue(B126)","v":"1.1"},"Территория действия тарифа",null,null,null,null,null,null,null,null,null,"Указывается наименование территории действия тарифа при наличии дифференциации тарифа по территориальному признаку.\nВ случае дифференциации тарифов по территориальному признаку информация по ним указывается в отдельных строках."]
[null,null,1,null,null,null,null,null,null,null,null,{"$f":"mergeValue(A127) &\".\"& mergeValue(B127)&\".\"& mergeValue(C127)","v":"1.1.1"},"Наименование системы теплоснабжения ",null,null,null,null,null,null,null,null,null,"Указывается наименование системы теплоснабжения при наличии дифференциации тарифа по системам теплоснабжения.\nВ случае дифференциации тарифов по системам теплоснабжения информация по ним указывается в отдельных строках."]
[null,null,null,1,null,null,null,null,null,null,null,{"$f":"mergeValue(A128) &\".\"& mergeValue(B128)&\".\"& mergeValue(C128)&\".\"& mergeValue(D128)","v":"1.1.1.1"},"Источник тепловой энергии  ",null,null,null,null,null,null,null,null,null,"Указывается наименование источника тепловой энергии\nВ случае дифференциации тарифов по источникам тепловой энергии информация по ним указывается в отдельных строках."]
[null,null,null,null,1,null,null,1,1]
[null,null,null,null,null,1,null,null,null,1,null,{"$f":"mergeValue(A130) &\".\"& mergeValue(B130)&\".\"& mergeValue(C130)&\".\"& mergeValue(D130)&\".\"&  mergeValue(F130)","v":"1.1.1.1.1"},"Группа потребителей",null,null,null,null,null,null,null,null,null,"Указывается группа потребителей при наличии дифференциации тарифа по группам потребителей.\nЗначение выбирается из перечня: Организации-перепродавцы; Бюджетные организации; Население; Прочие; Без дифференциации.\nВ случае дифференциации тарифов группам потребителей информация по ним указывается в отдельных строках.",null,{"$f":"strCheckUnique(Z130:Z133)","v":""}]
[null,null,null,null,null,null,1,null,null,null,1,{"$f":"mergeValue(A131) &\".\"& mergeValue(B131)&\".\"& mergeValue(C131)&\".\"& mergeValue(D131)&\".\"& mergeValue(F131)&\".\"& mergeValue(G131)","v":"1.1.1.1.1.1"},null,null,null,null,null,null,"да",null,"нет",null,"В колонке «Параметр дифференциации тарифов» указывается вид теплоносителя.\nЗначение выбирается из перечня: вода; пар; отборный пар, 1.2-2.5 кг/см2; отборный пар, 2.5-7 кг/см2; отборный пар, 7-13 кг/см2; отборный пар, > 13 кг/см2; острый и редуцированный пар; горячая вода в системе централизованного теплоснабжения на отопление;  горячая вода в системе централизованного теплоснабжения на горячее водоснабжение; прочее.\nПри подаче предложения на двухставочный тариф колонка «Одноставочный тариф» не заполняется.\nПри подаче предложения на одноставочный тариф колонки в блоке «Двухставочный тариф» не заполняются.\nИнформация в колонке «Двухставочный тариф» не указывается для тарифа на теплоноситель.\nДаты начала и окончания действия тарифов указываются в виде «ДД.ММ.ГГГГ».\nВ случае отсутствия даты окончания действия тарифа в колонке «Дата окончания» указывается «Нет».\nВ случае дифференциации тарифов по видам теплоносителя информация по ним указывается в отдельных строках.",{"$f":"strCheckDate(O132:V132)","v":""},null,{"$f":"IF(M131=\"\",\"\",M131 )","v":""}]
[null,null,null,null,null,null,null,null,null,null,null,null,null,null,null,null,{"$f":"R131 & \"-\" & T131","v":"-"}]
[null,null,null,null,null,null,null,null,null,null,null,null,"Добавить вид теплоносителя (параметры теплоносителя)"]
[null,null,null,null,null,null,null,null,null,null,null,null,"Добавить группу потребителей"]
[]
[null,null,null,null,null,null,null,null,null,null,null,null,"Добавить источник тепловой энергии"]
[null,null,null,null,null,null,null,null,null,null,null,null,"Добавить наименование системы теплоснабжения"]
[null,null,null,null,null,null,null,null,null,null,null,null,"Добавить территорию действия тарифа"]
[null,null,null,null,null,null,null,null,null,null,null,null,"Добавить наименование тарифа"]
[]
[null,null,null,null,null,null,"et_List06(_1,_2,_3)",null,"7"]
[]
[1,null,null,null,null,null,null,null,null,null,null,{"$f":"mergeValue(A143)","v":1},"Наименование тарифа",null,null,null,null,null,null,null,null,null,"Указывается наименование тарифа в случае подачи предложения по нескольким тарифам.\nВ случае наличия нескольких тарифов информация по ним указывается в отдельных строках."]
[null,1,null,null,null,null,null,null,null,null,null,{"$f":"mergeValue(A144) &\".\"& mergeValue(B144)","v":"1.1"},"Территория действия тарифа",null,null,null,null,null,null,null,null,null,"Указывается наименование территории действия тарифа при наличии дифференциации тарифа по территориальному признаку.\nВ случае дифференциации тарифов по территориальному признаку информация по ним указывается в отдельных строках."]
[null,null,1,null,null,null,null,null,null,null,null,{"$f":"mergeValue(A145) &\".\"& mergeValue(B145)&\".\"& mergeValue(C145)","v":"1.1.1"},"Наименование системы теплоснабжения ",null,null,null,null,null,null,null,null,null,"Указывается наименование системы теплоснабжения при наличии дифференциации тарифа по системам теплоснабжения.\nВ случае дифференциации тарифов по системам теплоснабжения информация по ним указывается в отдельных строках."]
[null,null,null,1,null,null,null,null,null,null,null,{"$f":"mergeValue(A146) &\".\"& mergeValue(B146)&\".\"& mergeValue(C146)&\".\"& mergeValue(D146)","v":"1.1.1.1"},"Источник тепловой энергии  ",null,null,null,null,null,null,null,null,null,"Указывается наименование источника тепловой энергии\nВ случае дифференциации тарифов по источникам тепловой энергии информация по ним указывается в отдельных строках."]
[null,null,null,null,1,null,null,1,1]
[null,null,null,null,null,1,null,null,null,1,null,{"$f":"mergeValue(A148) &\".\"& mergeValue(B148)&\".\"& mergeValue(C148)&\".\"& mergeValue(D148)&\".\"&  mergeValue(F148)","v":"1.1.1.1.1"},"Группа потребителей",null,null,null,null,null,null,null,null,null,"Указывается группа потребителей при наличии дифференциации тарифа по группам потребителей.\nЗначение выбирается из перечня: Организации-перепродавцы; Бюджетные организации; Население; Прочие; Без дифференциации.\nВ случае дифференциации тарифов группам потребителей информация по ним указывается в отдельных строках.",null,{"$f":"strCheckUnique(Z148:Z151)","v":""}]
[null,null,null,null,null,null,1,null,null,null,1,{"$f":"mergeValue(A149) &\".\"& mergeValue(B149)&\".\"& mergeValue(C149)&\".\"& mergeValue(D149)&\".\"& mergeValue(F149)&\".\"& mergeValue(G149)","v":"1.1.1.1.1.1"},null,null,null,null,null,null,"да",null,"нет",null,"В колонке «Параметр дифференциации тарифов» указывается вид теплоносителя.\nЗначение выбирается из перечня: вода; пар; отборный пар, 1.2-2.5 кг/см2; отборный пар, 2.5-7 кг/см2; отборный пар, 7-13 кг/см2; отборный пар, > 13 кг/см2; острый и редуцированный пар; горячая вода в системе централизованного теплоснабжения на отопление;  горячая вода в системе централизованного теплоснабжения на горячее водоснабжение; прочее.\nПри подаче предложения на двухставочный тариф колонка «Одноставочный тариф» не заполняется.\nПри подаче предложения на одноставочный тариф колонки в блоке «Двухставочный тариф» не заполняются.\nИнформация в колонке «Двухставочный тариф» не указывается для тарифа на теплоноситель.\nДаты начала и окончания действия тарифов указываются в виде «ДД.ММ.ГГГГ».\nВ случае отсутствия даты окончания действия тарифа в колонке «Дата окончания» указывается «Нет».\nВ случае дифференциации тарифов по видам теплоносителя информация по ним указывается в отдельных строках.",{"$f":"strCheckDate(O150:V150)","v":""},null,{"$f":"IF(M149=\"\",\"\",M149 )","v":""}]
[null,null,null,null,null,null,null,null,null,null,null,null,null,null,null,null,{"$f":"R149 & \"-\" & T149","v":"-"}]
[null,null,null,null,null,null,null,null,null,null,null,null,"Добавить вид теплоносителя (параметры теплоносителя)"]
[null,null,null,null,null,null,null,null,null,null,null,null,"Добавить группу потребителей"]
[]
[null,null,null,null,null,null,null,null,null,null,null,null,"Добавить источник тепловой энергии"]
[null,null,null,null,null,null,null,null,null,null,null,null,"Добавить наименование системы теплоснабжения"]
[null,null,null,null,null,null,null,null,null,null,null,null,"Добавить территорию действия тарифа"]
[null,null,null,null,null,null,null,null,null,null,null,null,"Добавить наименование тарифа"]
[]
[null,null,null,null,null,null,"et_List06(_1,_2,_3)",null,"8"]
[]
[1,null,null,null,null,null,null,null,null,null,null,{"$f":"mergeValue(A161)","v":1},"Наименование тарифа",null,null,null,null,null,null,null,null,null,"Указывается наименование тарифа в случае подачи предложения по нескольким тарифам.\nВ случае наличия нескольких тарифов информация по ним указывается в отдельных строках."]
[null,1,null,null,null,null,null,null,null,null,null,{"$f":"mergeValue(A162) &\".\"& mergeValue(B162)","v":"1.1"},"Территория действия тарифа",null,null,null,null,null,null,null,null,null,"Указывается наименование территории действия тарифа при наличии дифференциации тарифа по территориальному признаку.\nВ случае дифференциации тарифов по территориальному признаку информация по ним указывается в отдельных строках."]
[null,null,1,null,null,null,null,null,null,null,null,{"$f":"mergeValue(A163) &\".\"& mergeValue(B163)&\".\"& mergeValue(C163)","v":"1.1.1"},"Наименование системы теплоснабжения ",null,null,null,null,null,null,null,null,null,"Указывается наименование системы теплоснабжения при наличии дифференциации тарифа по системам теплоснабжения.\nВ случае дифференциации тарифов по системам теплоснабжения информация по ним указывается в отдельных строках."]
[null,null,null,1,null,null,null,null,null,null,null,{"$f":"mergeValue(A164) &\".\"& mergeValue(B164)&\".\"& mergeValue(C164)&\".\"& mergeValue(D164)","v":"1.1.1.1"},"Источник тепловой энергии  ",null,null,null,null,null,null,null,null,null,"Указывается наименование источника тепловой энергии\nВ случае дифференциации тарифов по источникам тепловой энергии информация по ним указывается в отдельных строках."]
[null,null,null,null,1,null,null,1,1,null,null,{"$f":"mergeValue(A165) &\".\"& mergeValue(B165)&\".\"& mergeValue(C165)&\".\"& mergeValue(D165)&\".\"& mergeValue(E165)","v":"1.1.1.1.1"},"Схема подключения теплопотребляющей установки к коллектору источника тепловой энергии",null,null,null,null,null,null,null,null,null,"Указывается схема подключения теплопотребляющей установки к коллектору источника тепловой энергии только для тарифов на тепловую энергию и за услуги по поддержанию резервной мощности.\nЗначение выбирается из перечня: Без дифференциации; к коллектору источника тепловой энергии; к тепловой сети без дополнительного преобразования на тепловых пунктах, эксплуатируемых теплоснабжающей организацией; к тепловой сети после тепловых пунктов (на тепловых пунктах), эксплуатируемых теплоснабжающей организацией.\nВ случае дифференциации тарифов по схемам подключения теплопотребляющей установки к коллектору источника тепловой энергии информация по ним указывается в отдельных строках."]
[null,null,null,null,null,1,null,null,null,1,null,{"$f":"mergeValue(A166) &\".\"& mergeValue(B166)&\".\"& mergeValue(C166)&\".\"& mergeValue(D166)&\".\"& mergeValue(E166)&\".\"& mergeValue(F166)","v":"1.1.1.1.1.1"},"Группа потребителей",null,null,null,null,null,null,null,null,null,"Указывается группа потребителей при наличии дифференциации тарифа по группам потребителей.\nЗначение выбирается из перечня: Организации-перепродавцы; Бюджетные организации; Население; Прочие; Без дифференциации.\nВ случае дифференциации тарифов группам потребителей информация по ним указывается в отдельных строках.",null,{"$f":"strCheckUnique(Z166:Z169)","v":""},null,{"$f":"IF(O166=\"\",\"\",O166 & \":_\")","v":""}]
[null,null,null,null,null,null,1,null,null,null,1,{"$f":"mergeValue(A167) &\".\"& mergeValue(B167)&\".\"& mergeValue(C167)&\".\"& mergeValue(D167)&\".\"& mergeValue(E167)&\".\"& mergeValue(F167)&\".\"& mergeValue(G167)","v":"1.1.1.1.1.1.1"},null,null,null,null,null,null,"да",null,"да",null,"В колонке «Параметр дифференциации тарифов» указывается вид теплоносителя.\nЗначение выбирается из перечня: вода; пар; отборный пар, 1.2-2.5 кг/см2; отборный пар, 2.5-7 кг/см2; отборный пар, 7-13 кг/см2; отборный пар, > 13 кг/см2; острый и редуцированный пар; горячая вода в системе централизованного теплоснабжения на отопление; горячая вода в системе централизованного теплоснабжения на горячее водоснабжение; прочее.\nПри подаче предложения на двухставочный тариф колонка «Одноставочный тариф» не заполняется.\nПри подаче предложения на одноставочный тариф колонки в блоке «Двухставочный тариф» не заполняются.\nДаты начала и окончания действия тарифов указываются в виде «ДД.ММ.ГГГГ».\nВ случае отсутствия даты окончания действия тарифа в колонке «Дата окончания» указывается «Нет».\nИнформация в колонке «Ставка за содержание тепловой мощности, тыс. руб./Гкал/ч/мес» указывается только для тарифа по поддержанию резервной мощности. \nВ случае дифференциации тарифов по периодам действия тарифа информация по ним указывается в отдельных колонках.\nВ случае дифференциации тарифов по видам теплоносителя информация по ним указывается в отдельных строках.",{"$f":"strCheckDate(O168:V168)","v":""},null,{"$f":"IF(M167=\"\",\"\",M167 )","v":""}]
[null,null,null,null,null,null,null,null,null,null,null,null,null,null,null,null,{"$f":"R167 & \"-\" & T167","v":"-"}]
[null,null,null,null,null,null,null,null,null,null,null,null,"Добавить вид теплоносителя (параметры теплоносителя)"]
[null,null,null,null,null,null,null,null,null,null,null,null,"Добавить группу потребителей"]
[null,null,null,null,null,null,null,null,null,null,null,null,"Добавить схему подключения"]
[null,null,null,null,null,null,null,null,null,null,null,null,"Добавить источник тепловой энергии"]
[null,null,null,null,null,null,null,null,null,null,null,null,"Добавить наименование системы теплоснабжения"]
[null,null,null,null,null,null,null,null,null,null,null,null,"Добавить территорию действия тарифа"]
[null,null,null,null,null,null,null,null,null,null,null,null,"Добавить наименование тарифа"]
[]
[null,null,null,null,null,null,"et_List06(_1,_2,_3)",null,"9"]
[]
[1,null,null,null,null,null,null,null,null,null,null,{"$f":"mergeValue(A179)","v":1},"Наименование тарифа",null,null,null,null,null,null,null,null,null,null,"Указывается наименование тарифа в случае подачи предложения по нескольким тарифам.\nВ случае наличия нескольких тарифов информация по ним указывается в отдельных строках."]
[null,1,null,null,null,null,null,null,null,null,null,{"$f":"mergeValue(A180) &\".\"& mergeValue(B180)","v":"1.1"},"Территория действия тарифа",null,null,null,null,null,null,null,null,null,null,"Указывается наименование территории действия тарифа при наличии дифференциации тарифа по территориальному признаку.\nВ случае дифференциации тарифов по территориальному признаку информация по ним указывается в отдельных строках."]
[null,null,1,null,null,null,null,null,null,null,null,{"$f":"mergeValue(A181) &\".\"& mergeValue(B181)&\".\"& mergeValue(C181)","v":"1.1.1"},"Наименование системы теплоснабжения ",null,null,null,null,null,null,null,null,null,null,"Указывается наименование системы теплоснабжения при наличии дифференциации тарифа по системам теплоснабжения.\nВ случае дифференциации тарифов по системам теплоснабжения информация по ним указывается в отдельных строках."]
[null,null,null,1,null,null,null,null,null,null,null,{"$f":"mergeValue(A182) &\".\"& mergeValue(B182)&\".\"& mergeValue(C182)&\".\"& mergeValue(D182)","v":"1.1.1.1"},"Источник тепловой энергии  ",null,null,null,null,null,null,null,null,null,null,"Указывается наименование источника тепловой энергии."]
[null,null,null,null,1,null,null,null,null,null,null,{"$f":"mergeValue(A183) &\".\"& mergeValue(B183)&\".\"& mergeValue(C183)&\".\"& mergeValue(D183)&\".\"& mergeValue(E183)","v":"1.1.1.1.1"},null,null,null,null,null,null,null,"да",null,"да",null,"В колодке «Заявитель» указывается наименование заявителя, к которой относится тариф.\nДаты начала и окончания указываются в виде «ДД.ММ.ГГГГ».\nВ случае отсутствия даты окончания тарифа в колонке «Дата окончания» указывается «Нет».\nВ случае наличия дифференциации по категориям потребителей/заявителям информация по ним указывается в отдельных строках.\nВ случае дифференциации по периодам действия тарифа информация по ним указывается в отдельных колонках.",{"$f":"strCheckDateTwo(N183:W183)","v":""}]
[null,null,null,null,null,null,null,null,null,null,null,null,null,null,null,null,null,{"$f":"S183 & \"-\" & U183","v":"-"}]
[null,null,null,null,null,null,null,null,null,null,null,null,"Добавить строку"]
[null,null,null,null,null,null,null,null,null,null,null,null,"Добавить источник тепловой энергии"]
[null,null,null,null,null,null,null,null,null,null,null,null,"Добавить наименование системы теплоснабжения"]
[null,null,null,null,null,null,null,null,null,null,null,null,"Добавить территорию действия тарифа"]
[null,null,null,null,null,null,null,null,null,null,null,null,"Добавить наименование тарифа"]
[]
[null,null,null,null,null,null,"et_List06(_1,_2,_3)",null,"10"]
[]
[1,null,null,null,null,null,null,null,null,null,null,{"$f":"mergeValue(A193)","v":1},"Наименование тарифа",null,null,null,null,null,null,null,null,null,null,null,null,null,null,null,null,null,null,null,"Указывается наименование тарифа в случае подачи предложения по нескольким тарифам.\nВ случае наличия нескольких тарифов информация по ним указывается в отдельных строках."]
[null,1,null,null,null,null,null,null,null,null,null,{"$f":"mergeValue(A194) &\".\"& mergeValue(B194)","v":"1.1"},"Территория действия тарифа",null,null,null,null,null,null,null,null,null,null,null,null,null,null,null,null,null,null,null,"Указывается наименование территории действия тарифа при наличии дифференциации тарифа по территориальному признаку.\nВ случае дифференциации тарифов по территориальному признаку информация по ним указывается в отдельных строках."]
[null,null,1,null,null,null,null,null,null,null,null,{"$f":"mergeValue(A195) &\".\"& mergeValue(B195)&\".\"& mergeValue(C195)","v":"1.1.1"},"Наименование системы теплоснабжения ",null,null,null,null,null,null,null,null,null,null,null,null,null,null,null,null,null,null,null,"Указывается наименование системы теплоснабжения при наличии дифференциации тарифа по системам теплоснабжения.\nВ случае дифференциации тарифов по системам теплоснабжения информация по ним указывается в отдельных строках."]
[null,null,null,1,null,null,null,null,null,null,null,{"$f":"mergeValue(A196) &\".\"& mergeValue(B196)&\".\"& mergeValue(C196)&\".\"& mergeValue(D196)","v":"1.1.1.1"},"Источник тепловой энергии  ",null,null,null,null,null,null,null,null,null,null,null,null,null,null,null,null,null,null,null,"Указывается наименование источника тепловой энергии."]
[null,null,null,null,1,null,null,null,null,null,null,{"$f":"mergeValue(A197) &\".\"& mergeValue(B197)&\".\"& mergeValue(C197)&\".\"& mergeValue(D197)&\".\"& mergeValue(E197)","v":"1.1.1.1.1"},null,"да",null,1,null,"да",null,1,null,"да",null,1,null,null,null,null,"да",null,"да",null,"В колодке «Параметр дифференциации тарифа/Заявитель» указывается наименование категории потребителей, к которой относится тариф.\nДаты начала и окончания указываются в виде «ДД.ММ.ГГГГ».\nВ случае отсутствия даты окончания тарифа в колонке «Дата окончания» указывается «Нет».\nВ случае наличия дифференциации по подключаемой нагрузке, диапазону диаметров, типу прокладки тепловых сетей, информация по ним указывается в отдельных строках.\nВ случае дифференциации тарифов по периодам действия тарифа информация по ним указывается в отдельных колонках.",{"$f":"strCheckDate(Z198:AF198)","v":""},{"$f":"IF(AND(COUNTIF(AJ192:AJ192,AJ197)>1,AJ197<>\"\"),\"ErrUnique:HasDoubleConn\",\"\")","v":""}]
[null,null,null,null,null,null,null,null,null,null,null,null,null,null,null,null,null,null,null,null,null,null,null,null,null,null,{"$f":"AB197 & \"-\" & AD197","v":"-"}]
[]
[]
[null,null,null,null,null,null,null,null,null,null,null,null,"Добавить строку"]
[null,null,null,null,null,null,null,null,null,null,null,null,"Добавить источник тепловой энергии"]
[null,null,null,null,null,null,null,null,null,null,null,null,"Добавить наименование системы теплоснабжения"]
[null,null,null,null,null,null,null,null,null,null,null,null,"Добавить территорию действия тарифа"]
[null,null,null,null,null,null,null,null,null,null,null,null,"Добавить наименование тарифа"]
[]
[]
[]
[]
[]
[null,null,null,null,null,null,null,null,null,null,null,null,null,"нет",null,1,null,"да",null,1,null,"да",null,1]
[null,null,null,null,null,null,null,null,null,null,null,null,null,null,null,null,null,null,null,null,null,null,null,null,"Добавить диапазон диаметров тепловых сетей"]
[null,null,null,null,null,null,null,null,null,null,null,null,null,null,null,null,null,null,null,null,"Добавить тип прокладки тепловых сетей"]
[]
[]
[]
[]
[null,null,null,null,null,null,"et_List06(_1,_2,_3)",null,"3_i"]
[]
[1,null,null,null,null,null,null,null,null,null,null,{"$f":"mergeValue(A220)","v":1},"Наименование тарифа",null,null,null,null,null,null,null,null,null,"Указывается наименование тарифа в случае подачи предложения по нескольким тарифам.\nВ случае наличия нескольких тарифов информация по ним указывается в отдельных строках.",null,null,{"$f":"IF(M220=\"\",\"\",M220 )","v":"Наименование тарифа"}]
[null,1,null,null,null,null,null,null,null,null,null,{"$f":"mergeValue(A221) &\".\"& mergeValue(B221)","v":"1.1"},"Территория действия тарифа",null,null,null,null,null,null,null,null,null,"Указывается наименование территории действия тарифа при наличии дифференциации тарифа по территориальному признаку.\nВ случае дифференциации тарифов по территориальному признаку информация по ним указывается в отдельных строках.",null,null,"Территория действия тарифа"]
[null,null,1,null,null,null,null,null,null,null,null,{"$f":"mergeValue(A222) &\".\"& mergeValue(B222)&\".\"& mergeValue(C222)","v":"1.1.1"},"Наименование системы теплоснабжения ",null,null,null,null,null,null,null,null,null,"Указывается наименование системы теплоснабжения при наличии дифференциации тарифа по системам теплоснабжения.\nВ случае дифференциации тарифов по системам теплоснабжения информация по ним указывается в отдельных строках.",null,null,"Наименование системы теплоснабжения "]
[null,null,null,1,null,null,null,null,null,null,null,{"$f":"mergeValue(A223) &\".\"& mergeValue(B223)&\".\"& mergeValue(C223)&\".\"& mergeValue(D223)","v":"1.1.1.1"},"Источник тепловой энергии  ",null,null,null,null,null,null,null,null,null,"Указывается наименование источника тепловой энергии\nВ случае дифференциации тарифов по источникам тепловой энергии информация по ним указывается в отдельных строках.",null,null,"Источник тепловой энергии  "]
[null,null,null,null,1,null,null,1,1,null,null,{"$f":"mergeValue(A224) &\".\"& mergeValue(B224)&\".\"& mergeValue(C224)&\".\"& mergeValue(D224)&\".\"& mergeValue(E224)","v":"1.1.1.1.1"},"Схема подключения теплопотребляющей установки к коллектору источника тепловой энергии",null,null,null,null,null,null,null,null,null,"Указывается схема подключения теплопотребляющей установки к коллектору источника тепловой энергии только для тарифов на тепловую энергию и за услуги по поддержанию резервной мощности.\nЗначение выбирается из перечня: Без дифференциации; к коллектору источника тепловой энергии; к тепловой сети без дополнительного преобразования на тепловых пунктах, эксплуатируемых теплоснабжающей организацией; к тепловой сети после тепловых пунктов (на тепловых пунктах), эксплуатируемых теплоснабжающей организацией.\nВ случае дифференциации тарифов по схемам подключения теплопотребляющей установки к коллектору источника тепловой энергии информация по ним указывается в отдельных строках.",null,null,"Схема подключения теплопотребляющей установки к коллектору источника тепловой энергии"]
[null,null,null,null,null,1,null,null,null,1,null,{"$f":"mergeValue(A225) &\".\"& mergeValue(B225)&\".\"& mergeValue(C225)&\".\"& mergeValue(D225)&\".\"& mergeValue(E225)&\".\"& mergeValue(F225)","v":"1.1.1.1.1.1"},"Группа потребителей",null,null,null,null,null,null,null,null,null,"Указывается группа потребителей при наличии дифференциации тарифа по группам потребителей.\nЗначение выбирается из перечня: Организации-перепродавцы; Бюджетные организации; Население; Прочие; Без дифференциации.\nВ случае дифференциации тарифов группам потребителей информация по ним указывается в отдельных строках.",null,null,"Группа потребителей"]
[null,null,null,null,null,null,1,null,null,null,1,{"$f":"mergeValue(A226) &\".\"& mergeValue(B226)&\".\"& mergeValue(C226)&\".\"& mergeValue(D226)&\".\"& mergeValue(E226)&\".\"& mergeValue(F226)&\".\"& mergeValue(G226)","v":"1.1.1.1.1.1.1"},null,null,null,null,null,null,"да",null,"да",null,"В колонке «Параметр дифференциации тарифов» указывается вид теплоносителя.\nЗначение выбирается из перечня: вода; пар; отборный пар, 1.2-2.5 кг/см2; отборный пар, 2.5-7 кг/см2; отборный пар, 7-13 кг/см2; отборный пар, > 13 кг/см2; острый и редуцированный пар; горячая вода в системе централизованного теплоснабжения на отопление; горячая вода в системе централизованного теплоснабжения на горячее водоснабжение; прочее.\nПри подаче предложения на двухставочный тариф колонка «Одноставочный тариф» не заполняется.\nПри подаче предложения на одноставочный тариф колонки в блоке «Двухставочный тариф» не заполняются.\nДаты начала и окончания действия тарифов указываются в виде «ДД.ММ.ГГГГ».\nВ случае отсутствия даты окончания действия тарифа в колонке «Дата окончания» указывается «Нет».\nИнформация в колонке «Ставка за содержание тепловой мощности, тыс. руб./Гкал/ч/мес» указывается только для тарифа по поддержанию резервной мощности. \nВ случае дифференциации тарифов по периодам действия тарифа информация по ним указывается в отдельных колонках.\nВ случае дифференциации тарифов по видам теплоносителя информация по ним указывается в отдельных строках.",{"$f":"strCheckDate(O227:V227)","v":""},null,""]
[null,null,null,null,null,null,null,null,null,null,null,null,null,null,null,null,{"$f":"R226 & \"-\" & T226","v":"-"},null,null,null,null,null,null,null,null,""]
[null,null,null,null,null,null,null,null,null,null,null,null,"Добавить вид теплоносителя (параметры теплоносителя)",null,null,null,null,null,null,null,null,null,null,null,null,"Добавить вид теплоносителя (параметры теплоносителя)"]
[null,null,null,null,null,null,null,null,null,null,null,null,"Добавить группу потребителей",null,null,null,null,null,null,null,null,null,null,null,null,"Добавить группу потребителей"]
[null,null,null,null,null,null,null,null,null,null,null,null,"Добавить схему подключения",null,null,null,null,null,null,null,null,null,null,null,null,"Добавить схему подключения"]
[null,null,null,null,null,null,null,null,null,null,null,null,"Добавить источник тепловой энергии",null,null,null,null,null,null,null,null,null,null,null,null,"Добавить источник тепловой энергии"]
[null,null,null,null,null,null,null,null,null,null,null,null,"Добавить наименование системы теплоснабжения",null,null,null,null,null,null,null,null,null,null,null,null,"Добавить наименование системы теплоснабжения"]
[null,null,null,null,null,null,null,null,null,null,null,null,"Добавить территорию действия тарифа",null,null,null,null,null,null,null,null,null,null,null,null,"Добавить территорию действия тарифа"]
[null,null,null,null,null,null,null,null,null,null,null,null,"Добавить наименование тарифа"]
[]
[null,null,null,null,null,null,"et_List06(_1,_2,_3)",null,"13"]
[]
[1,null,null,null,null,null,null,null,null,null,null,{"$f":"mergeValue(A238)","v":1},"Наименование тарифа",null,null,null,null,null,null,null,null,null,null,null,null,null,null,null,null,"Указывается наименование тарифа в случае подачи предложения по нескольким тарифам.\nВ случае наличия нескольких тарифов информация по ним указывается в отдельных строках.",null,null,{"$f":"IF(M238=\"\",\"\",M238 )","v":"Наименование тарифа"}]
[null,1,null,null,null,null,null,null,null,null,null,{"$f":"mergeValue(A239) &\".\"& mergeValue(B239)","v":"1.1"},"Территория действия тарифа",null,null,null,null,null,null,null,null,null,null,null,null,null,null,null,null,"Указывается наименование территории действия тарифа при наличии дифференциации тарифа по территориальному признаку.\nВ случае дифференциации тарифов по территориальному признаку информация по ним указывается в отдельных строках.",null,null,"Территория действия тарифа"]
[null,null,1,null,null,null,null,null,null,null,null,{"$f":"mergeValue(A240) &\".\"& mergeValue(B240)&\".\"& mergeValue(C240)","v":"1.1.1"},"Наименование системы теплоснабжения ",null,null,null,null,null,null,null,null,null,null,null,null,null,null,null,null,"Указывается наименование системы теплоснабжения при наличии дифференциации тарифа по системам теплоснабжения.\nВ случае дифференциации тарифов по системам теплоснабжения информация по ним указывается в отдельных строках.",null,null,"Наименование системы теплоснабжения "]
[null,null,null,1,null,null,null,null,null,null,null,{"$f":"mergeValue(A241) &\".\"& mergeValue(B241)&\".\"& mergeValue(C241)&\".\"& mergeValue(D241)","v":"1.1.1.1"},"Источник тепловой энергии  ",null,null,null,null,null,null,null,null,null,null,null,null,null,null,null,null,"Указывается наименование источника тепловой энергии\nВ случае дифференциации тарифов по источникам тепловой энергии информация по ним указывается в отдельных строках.",null,null,"Источник тепловой энергии  "]
[null,null,null,null,1,null,null,1,1,null,null,{"$f":"mergeValue(A242) &\".\"& mergeValue(B242)&\".\"& mergeValue(C242)&\".\"& mergeValue(D242)&\".\"& mergeValue(E242)","v":"1.1.1.1.1"},"Схема подключения теплопотребляющей установки к коллектору источника тепловой энергии",null,null,null,null,null,null,null,null,null,null,null,null,null,null,null,null,"Указывается схема подключения теплопотребляющей установки к коллектору источника тепловой энергии только для тарифов на тепловую энергию и за услуги по поддержанию резервной мощности.\nЗначение выбирается из перечня: Без дифференциации; к коллектору источника тепловой энергии; к тепловой сети без дополнительного преобразования на тепловых пунктах, эксплуатируемых теплоснабжающей организацией; к тепловой сети после тепловых пунктов (на тепловых пунктах), эксплуатируемых теплоснабжающей организацией.\nВ случае дифференциации тарифов по схемам подключения теплопотребляющей установки к коллектору источника тепловой энергии информация по ним указывается в отдельных строках.",null,null,"Схема подключения теплопотребляющей установки к коллектору источника тепловой энергии"]
[null,null,null,null,null,1,null,null,null,1,null,{"$f":"mergeValue(A243) &\".\"& mergeValue(B243)&\".\"& mergeValue(C243)&\".\"& mergeValue(D243)&\".\"& mergeValue(E243)&\".\"& mergeValue(F243)","v":"1.1.1.1.1.1"},"Группа потребителей",null,null,null,null,null,null,null,null,null,null,null,null,null,null,null,null,"Указывается группа потребителей при наличии дифференциации тарифа по группам потребителей.\nЗначение выбирается из перечня: Организации-перепродавцы; Бюджетные организации; Население; Прочие; Без дифференциации.\nВ случае дифференциации тарифов группам потребителей информация по ним указывается в отдельных строках.",null,null,"Группа потребителей"]
[null,null,null,null,null,null,1,null,null,null,1,{"$f":"mergeValue(A244) &\".\"& mergeValue(B244)&\".\"& mergeValue(C244)&\".\"& mergeValue(D244)&\".\"& mergeValue(E244)&\".\"& mergeValue(F244)&\".\"& mergeValue(G244)","v":"1.1.1.1.1.1.1"},null,null,null,null,null,null,"да",null,"да",null,null,null,null,"да",null,"нет",null,"В колонке «Параметр дифференциации тарифов» указывается вид теплоносителя.\nЗначение выбирается из перечня: вода; пар; отборный пар, 1.2-2.5 кг/см2; отборный пар, 2.5-7 кг/см2; отборный пар, 7-13 кг/см2; отборный пар, > 13 кг/см2; острый и редуцированный пар; горячая вода в системе централизованного теплоснабжения на отопление; горячая вода в системе централизованного теплоснабжения на горячее водоснабжение; прочее.\nПри подаче предложения на двухставочный тариф колонка «Одноставочный тариф» не заполняется.\nПри подаче предложения на одноставочный тариф колонки в блоке «Двухставочный тариф» не заполняются.\nДаты начала и окончания действия тарифов указываются в виде «ДД.ММ.ГГГГ».\nВ случае отсутствия даты окончания действия тарифа в колонке «Дата окончания» указывается «Нет».\nИнформация в колонке «Ставка за содержание тепловой мощности, тыс. руб./Гкал/ч/мес» указывается только для тарифа по поддержанию резервной мощности. \nВ случае дифференциации тарифов по периодам действия тарифа информация по ним указывается в отдельных колонках.\nВ случае дифференциации тарифов по видам теплоносителя информация по ним указывается в отдельных строках.",{"$f":"strCheckDate(O245:AC245)","v":""},null,""]
[null,null,null,null,null,null,null,null,null,null,null,null,null,null,null,null,{"$f":"R244 & \"-\" & T244","v":"-"},null,null,null,null,null,null,{"$f":"Y244 & \"-\" & AA244","v":"-"},null,null,null,null,null,null,null,null,""]
[null,null,null,null,null,null,null,null,null,null,null,null,"Добавить вид теплоносителя (параметры теплоносителя)",null,null,null,null,null,null,null,null,null,null,null,null,null,null,null,null,null,null,null,"Добавить вид теплоносителя (параметры теплоносителя)"]
[null,null,null,null,null,null,null,null,null,null,null,null,"Добавить группу потребителей",null,null,null,null,null,null,null,null,null,null,null,null,null,null,null,null,null,null,null,"Добавить группу потребителей"]
[null,null,null,null,null,null,null,null,null,null,null,null,"Добавить схему подключения",null,null,null,null,null,null,null,null,null,null,null,null,null,null,null,null,null,null,null,"Добавить схему подключения"]
[null,null,null,null,null,null,null,null,null,null,null,null,"Добавить источник тепловой энергии",null,null,null,null,null,null,null,null,null,null,null,null,null,null,null,null,null,null,null,"Добавить источник тепловой энергии"]
[null,null,null,null,null,null,null,null,null,null,null,null,"Добавить наименование системы теплоснабжения",null,null,null,null,null,null,null,null,null,null,null,null,null,null,null,null,null,null,null,"Добавить наименование системы теплоснабжения"]
[null,null,null,null,null,null,null,null,null,null,null,null,"Добавить территорию действия тарифа",null,null,null,null,null,null,null,null,null,null,null,null,null,null,null,null,null,null,null,"Добавить территорию действия тарифа"]
[null,null,null,null,null,null,null,null,null,null,null,null,"Добавить наименование тарифа"]
[]
["et_List07"]
[]
[]
[]
["et_List06"]
[]
[null,null,null,null,1]
[]
["et_List07"]
[]
[null,null,null,null,"1"]
[]
["et_List08"]
[]
[null,null,null,null,"1"]
[]
["et_List00_01","et_List00_02","et_List00_03"]
[]
[null,null,null,null,null,"Адрес регулируемой организации"]
[null,null,null,null,"Юридический адрес"]
[null,null,null,null,"Почтовый адрес"]
[]
[null,null,null,null,null,"Руководитель"]
[null,null,null,null,"Фамилия, имя, отчество"]
[null,null,null,null,"(код) номер телефона"]
[]
[null,null,null,null,null,"Главный бухгалтер"]
[null,null,null,null,"Фамилия, имя, отчество"]
[null,null,null,null,"(код) номер телефона"]
[]
[null,null,null,null,null,"Должностное лицо, ответственное за составление формы"]
[null,null,null,null,"Фамилия, имя, отчество"]
[null,null,null,null,"Должность"]
[null,null,null,null,"(код) номер телефона"]
[null,null,null,null,"e-mail"]
[]
["et_List03"]
[]
["3","",null,null,null,null,null,null,null,null,null,null,{"$f":"IF(ISERROR(INDEX(kind_of_nameforms,MATCH(E292,kind_of_forms,0),1)),\"\",INDEX(kind_of_nameforms,MATCH(E292,kind_of_forms,0),1))","v":""}]
[]
[]
["et_List01_0"]
[]
[null,"auto",null,1,null,null,0,null,null,"0",null,null,{"$f":"mergeValue(H297)","v":0},null,null,{"$f":"IF(ISERROR(MATCH(Q297,MODesc,0)),\"n\",\"y\")","v":"n"},null,{"$f":"K297&\"(\"&L297&\")\"","v":"()"}]
[null,null,null,null,null,null,null,"Добавить МР"]
[]
["et_List01_1"]
[]
[null,"auto",null,null,null,null,0,null,null,"0",null,null,{"$f":"mergeValue(H302)","v":0},null,null,null,null,{"$f":"K302&\"(\"&L302&\")\"","v":"()"}]
[null,null,null,null,null,null,null,null,null,null,"Добавить МО"]
[]
["et_List01_2"]
[]
[null,"auto",null,null,null,null,null,null,null,0,null,null,{"$f":"mergeValue(H307)","v":0},null,null,null,null,{"$f":"K307&\" (\"&L307&\")\"","v":" ()"}]
[]
[]
["et_List11_1"]
[]
[]
[]
[]
["et_List12_1"]
[]
[null,null,null,null,null,"x","x"]
[]
[]
["et_List12_2"]
[]
[null,null,null,null,null,"x",null,"x"]
[]
[]
["et_List12_3"]
[]
[null,null,null,null,{"$f":"E326","v":0},"x",null,"x"]
[]
[]
["et_List12_4"]
[]
[null,null,null,null,{"$f":"E331","v":0},"x",null,"x"]
[]
[]
["et_List05(_1,_2,_3,_4)"]
[]
[1,null,null,null,null,{"$f":"\"2.\" &mergeValue(A337)","v":"2.1"},"Наименование централизованной системы коммунальной инфраструктуры",null,"Указывается наименование централизованной системы холодного водоснабжения/горячего водоснабжения/водоотведения/теплоснабжения, к которой относится размещаемая информация.\nВ случае наличия нескольких централизованных систем коммунальной инфраструктуры, информация по каждой из них указывается в отдельной строке."]
[null,null,null,null,null,{"$f":"\"3.\" &mergeValue(A338)","v":"3.1"},"Наименование регулируемого вида деятельности",null,"Указывается наименование вида регулируемой деятельности."]
[null,null,null,null,null,{"$f":"\"4.\"&mergeValue(A339)","v":"4.1"},"Территория оказания услуги по регулируемому виду деятельности","x"]
[null,1,null,null,null,{"$f":"\"4.\"&mergeValue(A340) &\".\"&mergeValue(B340)","v":"4.1.1"},"Субъект Российской Федерации",{"$f":"IF(region_name=\"\",\"\",region_name)","v":"Ленинградская область"},"Указывается наименование субъекта Российской Федерации"]
[null,null,1,null,null,{"$f":"\"4.\"&mergeValue(A341) &\".\"&mergeValue(B341)&\".\"&mergeValue(C341)","v":"4.1.1.1"},"муниципальный район",null,"Указывается наименование муниципального района, на территории которого организация оказывает услуги по регулируемому виду деятельности."]
[null,null,null,1,null,{"$f":"\"4.\"&mergeValue(A342) &\".\"&mergeValue(B342)&\".\"&mergeValue(C342)&\".\"&mergeValue(D342)","v":"4.1.1.1.1"},"муниципальное образование",null,"Указывается наименование и код муниципального района, муниципального образования в соответствии с Общероссийским классификатором территорий муниципальных образований (далее - ОКТМО), входящего в муниципальный район, на территории которого организация оказывает услуги по регулируемому виду деятельности.\nВ случае оказания услуг по регулируемому виду деятельности на территории нескольких муниципальных районов (муниципальных образований) данные по каждому их них указываются в отдельной строке."]
[null,null,null,null,null,null,"Добавить МО"]
[null,null,null,null,null,null,"Добавить МР"]
[null,null,null,null,null,null,"Добавить территорию"]
[null,null,null,null,null,null,"Добавить ЦС"]
[]
[]
["et_List13_1"]
[]
[]
[]
[]
["et_List14_1_1"]
[]
[null,null,null,null,null,null,null,null,null,null,"x","Значение в колонке «Вид тарифа» выбирается из перечня видов тарифов в сфере холодного водоснабжения, предусмотренных законодательством в сфере водоснабжения и водоотведения.\nЗначение в колонке «Информация» выбирается из перечня: Метод экономически обоснованных расходов (затрат); Метод индексации установленных тарифов; Метод обеспечения доходности инвестированного капитала; Метод сравнения аналогов.\nДаты начала и окончания периода действия тарифов указывается в виде «ДД.ММ.ГГГГ».\nВ случае дифференциации предлагаемых методов регулирования видам тарифов и (или) по периодам действия тарифов информация по каждому из них указывается в отдельной строке."]
[null,null,null,null,null,null,null,"Добавить период"]
[]
[]
["et_List14_1_4"]
[]
[null,null,null,null,null,null,null,null,null,null,"x","Значение в колонке «Вид тарифа» выбирается из перечня видов тарифов в сфере холодного водоснабжения, предусмотренных законодательством в сфере водоснабжения и водоотведения.\nЗначение в колонке «Информация» выбирается из перечня: Метод экономически обоснованных расходов (затрат); Метод индексации установленных тарифов; Метод обеспечения доходности инвестированного капитала; Метод сравнения аналогов.\nДаты начала и окончания периода действия тарифов указывается в виде «ДД.ММ.ГГГГ».\nВ случае дифференциации предлагаемых методов регулирования видам тарифов и (или) по периодам действия тарифов информация по каждому из них указывается в отдельной строке."]
[null,null,null,null,null,null,null,"Добавить период"]
[]
[]
["et_List14_1_2"]
[]
[null,null,null,null,null,null,null,null,null,null,"x"]
[]
[]
["et_List14_1_3"]
[]
[null,null,null,null,null,null,null,null,null,null,"x"]

{"sheet":"TEHSHEET","index":39,"n_rows":87,"n_cols":55,"rows_kept":87,"cut":false,"hidden":true,"merged":[[0,51,0,52]]}
["REGION","year_list1","year_list","logical","Месяц\n(MONTH)","Квартал\n(QUARTER)","Месяц\n(kind_of_publication)","НДС\n/kind_of_NDS/","Номер СЦХВ(СЦВО)\n/SKI_number/","Единица измерения объема оказываемых услуг ГВС\n/kind_of_unit_GVS/","Метод регулирования\n/kind_of_control_method/",null,null,"Вид деятельности, на которую установлен тариф /kind_of_activity_WARM/","Вид теплоносителя\n(kind_of_heat_transfer)","Тип данных\n(kind_of_data_type)","Схема подключения\n(kind_of_scheme_in)\n(kind_of_scheme_in2)","Группы потребителей\n(kind_of_cons)","Тип прокладки тепловых сетей\n(kind_of_nets)","Диапазаны диаметров тепловых сетей\n(kind_of_diameters)","Подключаемая тепловая нагрузка\n(kind_of_load)",null,"Форма 2, таблица Х","виды тарифа\n/kind_group_rates/","Заголовок таблицы",null,"name_rates_4",null,"name_rates_8",null,null,"Подключаемая тепловая нагрузка\n(kind_of_load3)",null,"Вид теплоносителя\n(kind_of_heat_transfer2)","Вид теплоносителя\n(kind_of_heat_transfer3)",null,"Вид топлива\n(kind_of_fuel)",null,"Способ закупки товаров\n(kind_of_zak)",null,null,"виды тарифа\n/kind_group_rates_load/","виды тарифа\n/kind_group_rates_load_filter/",null,"виды признаков дифференциации\n/kind_of_diff/",null,"Диапазаны диаметров водопроводных сетей\n(kind_of_diameters2)",null,"List_H","List_M",null,"Перечень форм\n(kind_of_forms)",null,null,"Тип организации\nkind_of_org_type"]
["Алтайский край",2000,2013,"да","январь","I квартал","На официальном сайте организации","общий","1","тыс.куб.м/сутки","метод экономически обоснованных расходов (затрат)","метод экономически обоснованных расходов (затрат)",1,"Передача+Сбыт","вода","первичное раскрытие информации","без дифференциации","организации-перепродавцы","надземная (наземная)","50 - 250 мм","не превышает 0,1 Гкал/ч",1,null,"Тарифы на тепловую энергию (мощность), производимую в режиме комбинированной выработки электрической и тепловой энергии источниками тепловой энергии с установленной генерирующей мощностью производства электрической энергии 25 мегаватт и более, в соответствии с установленными федеральным органом исполнительной власти в области государственного регулирования тарифов в сфере теплоснабжения предельными (минимальным и (или) максимальным) уровнями указанных тарифов","Форма 4.10.2 Информация о предложении величин тарифов на тепловую энергию, поддержанию резервной тепловой мощности",null,"Тариф на теплоноситель, поставляемый потребителям","Тариф на теплоноситель, поставляемый потребителям","Плата за услуги по поддержанию резервной тепловой мощности при отсутствии потребления тепловой энергии для отдельных категорий (групп) социально значимых потребителей","Плата за услуги по поддержанию резервной тепловой мощности при отсутствии потребления тепловой энергии для отдельных категорий (групп) социально значимых потребителей",null,"не превышает 0,1 Гкал/ч",null,"Вода","Вода",null,"Газ природный по регулируемой цене",null,"Конкурс",null,null,"Тарифы на тепловую энергию (мощность), производимую в режиме комбинированной выработки электрической и тепловой энергии источниками тепловой энергии с установленной генерирующей мощностью производства электрической энергии 25 мегаватт и более, в соответствии с установленными федеральным органом исполнительной власти в области государственного регулирования тарифов в сфере теплоснабжения предельными (минимальным и (или) максимальным) уровнями указанных тарифов","Тарифы на тепловую энергию (мощность), поставляемую другим теплоснабжающим организациям теплоснабжающими организациями",null,"объемы потребления воды абонентами",null,"40 мм и менее",null,"00","00",null,"Форма 1.0.1","Основные параметры раскрываемой информации",null,"Регулируемая организация"]
["Амурская область",2001,2014,"нет","февраль","II квартал","На сайте регулирующего органа","общий с учетом освобождения от уплаты НДС","2","Гкал/ч","метод индексации установленных тарифов","метод индексации установленных тарифов",2,"Передача","пар","изменения в раскрытой ранее информации","к коллектору источника тепловой энергии","бюджетные организации","подземная (канальная)","251 - 400 мм","более 0,1 Гкал/ч и не превышает 1,5 Гкал/ч",2,null,"Тарифы на тепловую энергию (мощность), поставляемую другим теплоснабжающим организациям теплоснабжающими организациями","Форма 4.10.2 Информация о предложении величин тарифов на тепловую энергию, поддержанию резервной тепловой мощности",null,"Тариф на теплоноситель, поставляемый теплоснабжающей организацией, владеющей источником (источниками) тепловой энергии, на котором производится теплоноситель","Тариф на теплоноситель, поставляемый теплоснабжающей организацией, владеющей источником (источниками) тепловой энергии, на котором производится теплоноситель","Плата за услуги по поддержанию резервной тепловой мощности, оказываемые регулируемой организацией, мощность источников тепловой энергии которой используется для поддержания резервной мощности в соответствии со схемой теплоснабжения","Плата за услуги по поддержанию резервной тепловой мощности, оказываемые регулируемой организацией, мощность источников тепловой энергии которой используется для поддержания резервной мощности в соответствии со схемой теплоснабжения",null,"более 0,1 Гкал/ч и не превышает 1,5 Гкал/ч",null,"Отборный пар, 1,2-2,5 кг/см2","Пар",null,"Газ природный по нерегулируемой цене",null,"Аукцион",null,null,"Тарифы на тепловую энергию (мощность), поставляемую потребителям теплоснабжающими организациями в соответствии с установленными предельными (минимальными и (или) максимальными) уровнями указанных тарифов","Тарифы на теплоноситель, поставляемый теплоснабжающими организациями потребителям, другим теплоснабжающим организациям",null,"соответствие качества питьевой воды и горячей воды требованиям, установленным санитарными нормами и правилами",null,"от 41 мм до 70 мм включительно",null,"01","01",null,"Форма 4.9","Информация о способах приобретения, стоимости и объемах товаров, необходимых для производства товаров и (или) оказания услуг",null,"Единая теплоснабжающая организация"]
["Архангельская область",2002,2015,null,"март","III квартал",null,"специальный (упрощенная система налогообложения, система налогообложения для сельскохозяйственных производителей)","3","куб.м/ч","метод обеспечения доходности инвестированного капитала","метод обеспечения доходности инвестированного капитала",3,"производство комбинированная выработка","отборный пар, 1.2-2.5 кг/см2",null,"к тепловой сети без дополнительного преобразования на тепловых пунктах, эксплуатируемых теплоснабжающей организацией","население и приравненные категории","подземная (бесканальная)","401 - 550 мм","превышает 1,5 Гкал/ч при наличии технической возможности подключения",3,null,null,null,null,null,null,"Плата за услуги по поддержанию резервной тепловой мощности, оказываемые регулируемой организацией, мощность тепловых сетей которой используется для поддержания резервной мощности в соответствии со схемой теплоснабжения","Плата за услуги по поддержанию резервной тепловой мощности, оказываемые регулируемой организацией, мощность тепловых сетей которой используется для поддержания резервной мощности в соответствии со схемой теплоснабжения",null,"превышает 1,5 Гкал/ч при наличии технической возможности подключения",null,"Отборный пар, 2,5-7 кг/см2",null,null,"Уголь",null,"Аукцион в электронной форме",null,null,"Тарифы на тепловую энергию (мощность), поставляемую другим теплоснабжающим организациям теплоснабжающими организациями","Тарифы на горячую воду, поставляемую теплоснабжающими организациями потребителям, другим теплоснабжающим организациям с использованием открытых систем теплоснабжения (горячего водоснабжения)",null,"иное",null,"от 71 мм до 100 мм включительно",null,"02","02",null,"Форма 4.10.1","Информация о предложении регулируемой организацией об установлении тарифов в сфере теплоснабжения на очередной период регулирования",null,"Теплоснабжающая организация в ценовой зоне теплоснабжения"]
["Астраханская область",2003,2016,null,"апрель","IV квартал",null,null,"4",null,"метод сравнения аналогов","метод сравнения аналогов",4,"производство (некомбинированная выработка)+передача+сбыт","отборный пар, 2.5-7 кг/см2",null,"к тепловой сети после тепловых пунктов (на тепловых пунктах), эксплуатируемых теплоснабжающей организацией","прочие",null,"551 - 700 мм","превышает 1,5 Гкал/ч при отсутствии технической возможности подключения",4,null,"Тарифы на теплоноситель, поставляемый теплоснабжающими организациями потребителям, другим теплоснабжающим организациям","Форма 4.10.3 Информация о предложении величин тарифов на теплоноситель, передачу тепловой энергии, теплоносителя",1,null,null,null,null,null,"не известна",null,"Отборный пар, 7-13 кг/см2",null,null,"Мазут",null,"Запрос котировок",null,null,"Тарифы на теплоноситель, поставляемый теплоснабжающими организациями потребителям, другим теплоснабжающим организациям","Тарифы на услуги по передаче тепловой энергии",null,null,null,"от 101 мм до 150 мм включительно",null,"03","03",null,"Форма 4.10.2","Информация о предложении величин тарифов на тепловую энергию, поддержанию резервной тепловой мощности",null,"Теплосетевая организация в ценовой зоне теплоснабжения"]
["Белгородская область",2004,2017,null,"май",null,"НДС общий\n/kind_of_NDS_tariff/","НДС\n/kind_of_NDS_tariff/","5","Вид тарифа на передачу тепловой энергии /kind_of_tariff_unit/",null,null,null,"производство (некомбинированная выработка)+передача","отборный пар, 7-13 кг/см2",null,null,"без дифференциации",null,"701 мм и выше","не известна",5,null,"Тарифы на горячую воду, поставляемую теплоснабжающими организациями потребителям, другим теплоснабжающим организациям с использованием открытых систем теплоснабжения (горячего водоснабжения)","Форма 4.10.4 Информация о предложении величин тарифов на горячую воду (в открытых системах)",null,null,null,null,null,null,null,null,"Отборный пар, > 13 кг/см2",null,null,"Дизельное топливо",null,"Единственный поставщик",null,null,"Тарифы на горячую воду, поставляемую теплоснабжающими организациями потребителям, другим теплоснабжающим организациям с использованием открытых систем теплоснабжения (горячего водоснабжения)","Тарифы на услуги по передаче теплоносителя",null,null,null,"от 151 мм до 200 мм включительно",null,"04","04",null,"Форма 4.10.3","Информация о предложении величин тарифов на теплоноситель, передачу тепловой энергии, теплоносителя"]
["Брянская область",2005,null,null,"июнь",null,"тариф указан с НДС для плательщиков НДС","тариф для организаций не являющихся плательщиками НДС","6","руб./Гкал/ч/мес",null,null,null,"производство (некомбинированная выработка)+сбыт","отборный пар, > 13 кг/см2",null,null,null,null,null,"нет","6",null,"Тарифы на услуги по передаче тепловой энергии","Форма 4.10.3 Информация о предложении величин тарифов на теплоноситель, передачу тепловой энергии, теплоносителя",null,null,null,null,null,null,null,null,"Острый и редуцированный пар",null,null,"Дрова",null,"Иное",null,null,"Тарифы на услуги по передаче тепловой энергии","Плата за подключение к системе теплоснабжения",null,null,null,"от 201 мм до 250 мм включительно",null,"05","05",null,"Форма 4.10.4","Информация о предложении величин тарифов на горячую воду (в открытых системах)"]
["Владимирская область",2006,null,null,"июль",null,"тариф указан без НДС для плательщиков НДС","тариф не утверждался","7","руб./Гкал",null,null,null,"производство (некомбинированная выработка)","острый и редуцированный пар",null,null,null,null,null,null,"7",null,"Тарифы на услуги по передаче теплоносителя","Форма 4.10.3 Информация о предложении величин тарифов на теплоноситель, передачу тепловой энергии, теплоносителя",null,null,null,null,null,null,null,null,null,null,null,"Электроэнергия",null,null,null,null,"Тарифы на услуги по передаче теплоносителя","Плата за подключение к системе теплоснабжения (индивидуальная)",null,null,null,"от 250  мм и более",null,"06","06",null,"Форма 4.10.5","Информация о предложении величин тарифов на подключение к системе теплоснабжения"]
["Волгоградская область",2007,null,null,"август",null,"тариф не утверждался",null,"8",null,null,null,null,null,"горячая вода в системе централизованного теплоснабжения на отопление",null,null,null,null,null,null,"8",null,"Плата за услуги по поддержанию резервной тепловой мощности при отсутствии потребления тепловой энергии","Форма 4.10.2 Информация о предложении величин тарифов на тепловую энергию, поддержанию резервной тепловой мощности",1,null,null,null,null,null,null,null,null,null,null,"Прочее",null,null,null,null,"Плата за подключение к системе теплоснабжения","Плата за услуги по поддержанию резервной тепловой мощности при отсутствии потребления тепловой энергии",null,null,null,null,null,"07","07",null,"Форма 4.10.6","Информация о предложении платы за подключение к системе теплоснабжения в индивидуальном порядке"]
["Вологодская область",2008,null,null,"сентябрь",null,null,null,"9",null,null,null,null,null,"горячая вода в системе централизованного теплоснабжения на горячее водоснабжение",null,null,null,null,null,null,"9",null,"Плата за подключение к системе теплоснабжения (индивидуальная)","Форма 4.10.6 Информация о предложении платы за подключение к системе теплоснабжения в индивидуальном порядке",null,null,null,null,null,null,null,null,null,null,null,null,null,null,null,null,"Плата за подключение к системе теплоснабжения (индивидуальная)","Тарифы на тепловую энергию (мощность), производимую в режиме комбинированной выработки электрической и тепловой энергии источниками тепловой энергии с установленной генерирующей мощностью производства электрической энергии 25 мегаватт и более, в соответствии с установленными федеральным органом исполнительной власти в области государственного регулирования тарифов в сфере теплоснабжения предельными (минимальным и (или) максимальным) уровнями указанных тарифов",null,null,null,null,null,"08","08"]
["Воронежская область",2009,null,null,"октябрь",null,null,null,"10",null,null,null,null,null,"прочее",null,null,null,null,null,null,"10",null,"Плата за подключение к системе теплоснабжения","Форма 4.10.5 Информация о предложении величин тарифов на подключение к системе теплоснабжения",null,null,null,null,null,null,null,null,null,null,null,null,null,null,null,null,"Плата за услуги по поддержанию резервной тепловой мощности при отсутствии потребления тепловой энергии",null,null,null,null,null,null,"09","09"]
["г.Байконур",2010,null,null,"ноябрь",null,"НДС общий люди\n/kind_of_NDS_tariff_people/","НДС\n/kind_of_NDS_tariff_people/","11",null,null,null,null,null,"без дифференциации",null,null,null,null,null,null,"11",null,"Предельный уровнь цены на тепловую энергию (мощность), поставляемую теплоснабжающими организациями потребителям. Индикативы","Форма 4.10.2 Информация о предложении величин тарифов на тепловую энергию, поддержанию резервной тепловой мощности",null,null,null,null,null,null,null,null,null,null,null,null,null,null,null,null,null,null,null,null,null,null,null,"10","10"]
["г. Москва",2011,null,null,"декабрь",null,"тариф с НДС организаций-плательщиков НДС","тариф организаций не являющихся плательщиками НДС","12",null,null,null,null,null,null,null,null,null,null,null,null,"12",null,null,null,null,null,null,null,null,null,null,null,null,null,null,null,null,null,null,null,null,null,null,null,null,null,null,"11","11"]
["г.Санкт-Петербург",2012,null,null,null,null,"тариф не утверждался","тариф не утверждался","13",null,null,null,null,"Вид деятельности /kind_of_activity/",null,null,null,null,null,null,null,13,null,"Тарифы на тепловую энергию (мощность), поставляемую потребителям теплоснабжающими организациями в соответствии с установленными предельными (минимальными и (или) максимальными) уровнями указанных тарифов","Форма 4.10.2 Информация о предложении величин тарифов на тепловую энергию, поддержанию резервной тепловой мощности",null,null,null,null,null,null,null,null,null,null,null,null,null,null,null,null,null,null,null,null,null,null,null,"12","12"]
["г.Севастополь",2013,null,null,null,null,null,null,"14",null,null,null,null,"производство тепловой энергии (мощности) в режиме комбинированной выработки электрической и тепловой энергии источниками тепловой энергии с установленной генерирующей мощностью производства электрической энергии 25 МВт и более",null,null,null,null,null,null,null,null,null,null,null,null,null,null,null,null,null,null,null,null,null,null,null,null,null,null,null,null,null,null,null,null,null,null,"13","13"]
["Еврейская автономная область",2014,null,null,null,null,null,null,"15",null,null,null,null,"производство тепловой энергии (мощности) в режиме комбинированной выработки электрической и тепловой энергии источниками тепловой энергии с установленной генерирующей мощностью производства электрической энергии менее 25 МВт",null,null,null,null,null,null,null,null,null,null,null,null,null,null,null,null,null,null,null,null,null,null,null,null,null,null,null,null,null,null,null,null,null,null,"14","14"]
["Забайкальский край",2015,null,null,null,null,null,null,"16",null,null,null,null,"производство тепловой энергии (мощности) не в режиме комбинированной выработки электрической и тепловой энергии источниками тепловой энергии",null,null,null,null,null,null,null,null,null,null,null,null,null,null,null,null,null,null,null,null,null,null,null,null,null,null,null,null,null,null,null,null,null,null,"15","15"]
["Ивановская область",2016,null,null,null,null,null,null,"17",null,null,null,null,"производство теплоносителя",null,null,null,null,null,null,null,null,null,null,null,null,null,null,null,null,null,null,null,null,null,null,null,null,null,null,null,null,null,null,null,null,null,null,"16","16"]
["Иркутская область",2017,null,null,null,null,null,null,"18",null,null,null,null,"передача тепловой энергии и теплоносителя",null,null,null,null,null,null,null,null,null,null,null,null,null,null,null,null,null,null,null,null,null,null,null,null,null,null,null,null,null,null,null,null,null,null,"17","17"]
["Кабардино-Балкарская республика",2018,null,null,null,null,null,null,"19",null,null,null,null,"сбыт тепловой энергии и теплоносителя",null,null,null,null,null,null,null,null,null,null,null,null,null,null,null,null,null,null,null,null,null,null,null,null,null,null,null,null,null,null,null,null,null,null,"18","18"]
["Калининградская область",2019,null,null,null,null,null,null,"20",null,null,null,null,"подключение к системе теплоснабжения",null,null,null,null,null,null,null,null,null,null,null,null,null,null,null,null,null,null,null,null,null,null,null,null,null,null,null,null,null,null,null,null,null,null,"19","19"]
["Калужская область",2020,null,null,null,null,null,null,null,null,null,null,null,"поддержание резервной тепловой мощности при отсутствии потребления тепловой энергии",null,null,null,null,null,null,null,null,null,null,null,null,null,null,null,null,null,null,null,null,null,null,null,null,null,null,null,null,null,null,null,null,null,null,"20","20"]
["Камчатский край",2021,null,null,null,null,null,null,null,null,null,null,null,null,null,null,null,null,null,null,null,null,null,null,null,null,null,null,null,null,null,null,null,null,null,null,null,null,null,null,null,null,null,null,null,null,null,null,"21","21"]
["Карачаево-Черкесская республика",2022,null,null,null,null,null,null,null,null,null,null,null,null,null,null,null,null,null,null,null,null,null,null,null,null,null,null,null,null,null,null,null,null,null,null,null,null,null,null,null,null,null,null,null,null,null,null,"22","22"]
["Кемеровская область",2023,null,null,null,null,null,null,null,null,null,null,null,null,null,null,null,null,null,null,null,null,null,null,null,null,null,null,null,null,null,null,null,null,null,null,null,null,null,null,null,null,null,null,null,null,null,null,"23","23"]
["Кировская область",2024,null,null,null,null,null,null,null,null,null,null,null,null,null,null,null,null,null,null,null,null,null,null,null,null,null,null,null,null,null,null,null,null,null,null,null,null,null,null,null,null,null,null,null,null,null,null,null,"24"]
["Костромская область",2025,null,null,null,null,null,null,null,null,null,null,null,null,null,null,null,null,null,null,null,null,null,null,null,null,null,null,null,null,null,null,null,null,null,null,null,null,null,null,null,null,null,null,null,null,null,null,null,"25"]
["Краснодарский край",null,null,null,null,null,null,"Текущая дата",null,null,null,null,null,null,null,null,null,null,null,null,null,null,null,null,null,null,null,null,null,null,null,null,null,null,null,null,null,null,null,null,null,null,null,null,null,null,null,null,null,"26"]
["Красноярский край",null,null,"Организация",{"$f":"IF(periodStart = \"\",\"\", periodStart)","v":"01.01.2022"},{"$f":"IF(periodEnd = \"\",\"\", periodEnd)","v":"31.12.2022"},null,"07.05.2021 15:57:13",null,null,null,null,null,null,null,null,null,null,null,null,null,null,null,null,null,null,null,null,null,null,null,null,null,null,null,null,null,null,null,null,null,null,null,null,null,null,null,null,null,"27"]
["Курганская область",null,null,null,null,null,null,null,null,null,null,null,null,null,null,null,null,null,null,null,null,null,null,null,null,null,null,null,null,null,null,null,null,null,null,null,null,null,null,null,null,null,null,null,null,null,null,null,null,"28"]
["Курская область",null,null,null,null,null,null,null,null,null,null,null,null,null,null,null,null,null,null,null,null,null,null,null,null,null,null,null,null,null,null,null,null,null,null,null,null,null,null,null,null,null,null,null,null,null,null,null,null,"29"]
["Ленинградская область",null,null,"Виды деятельности",null,null,null,"https://appsrv.regportal-tariff.ru/procwsxls/",null,null,null,null,null,null,"вода",null,null,null,null,null,null,null,null,null,null,null,null,null,null,null,null,null,null,null,null,null,null,null,null,null,null,null,null,null,null,null,null,null,null,"30"]
["Липецкая область",null,null,null,null,null,null,null,null,null,null,null,null,null,"пар",null,null,null,null,null,null,null,null,null,null,null,null,null,null,null,null,null,null,null,null,null,null,null,null,null,null,null,null,null,null,null,null,null,null,"31"]
["Магаданская область",null,null,null,null,null,null,null,null,null,null,null,null,null,"отборный пар, 1.2-2.5 кг/см2",null,null,null,null,null,null,null,null,null,null,null,null,null,null,null,null,null,null,null,null,null,null,null,null,null,null,null,null,null,null,null,null,null,null,"32"]
["Московская область",null,null,null,null,null,null,null,null,null,null,null,null,null,"отборный пар, 2.5-7 кг/см2",null,null,null,null,null,null,null,null,null,null,null,null,null,null,null,null,null,null,null,null,null,null,null,null,null,null,null,null,null,null,null,null,null,null,"33"]
["Мурманская область",null,null,null,null,null,null,null,null,null,null,null,null,null,"отборный пар, 7-13 кг/см2",null,null,null,null,null,null,null,null,null,null,null,null,null,null,null,null,null,null,null,null,null,null,null,null,null,null,null,null,null,null,null,null,null,null,"34"]
["Ненецкий автономный округ",null,null,null,null,null,null,null,null,null,null,null,null,null,"отборный пар, > 13 кг/см2",null,null,null,null,null,null,null,null,null,null,null,null,null,null,null,null,null,null,null,null,null,null,null,null,null,null,null,null,null,null,null,null,null,null,"35"]
["Нижегородская область",null,null,null,null,null,null,null,null,null,null,null,null,null,"острый и редуцированный пар",null,null,null,null,null,null,null,null,null,null,null,null,null,null,null,null,null,null,null,null,null,null,null,null,null,null,null,null,null,null,null,null,null,null,"36"]
["Новгородская область",null,null,null,null,null,null,null,null,null,null,null,null,null,"горячая вода в системе централизованного теплоснабжения на отопление",null,null,null,null,null,null,null,null,null,null,null,null,null,null,null,null,null,null,null,null,null,null,null,null,null,null,null,null,null,null,null,null,null,null,"37"]
["Новосибирская область",null,null,null,null,null,null,null,null,null,null,null,null,null,"горячая вода в системе централизованного теплоснабжения на горячее водоснабжение",null,null,null,null,null,null,null,null,null,null,null,null,null,null,null,null,null,null,null,null,null,null,null,null,null,null,null,null,null,null,null,null,null,null,"38"]
["Омская область",null,null,null,null,null,null,null,null,null,null,null,null,null,"прочее",null,null,null,null,null,null,null,null,null,null,null,null,null,null,null,null,null,null,null,null,null,null,null,null,null,null,null,null,null,null,null,null,null,null,"39"]
["Оренбургская область",null,null,null,null,null,null,null,null,null,null,null,null,null,null,null,null,null,null,null,null,null,null,null,null,null,null,null,null,null,null,null,null,null,null,null,null,null,null,null,null,null,null,null,null,null,null,null,null,"40"]
["Орловская область",null,null,null,null,null,null,null,null,null,null,null,null,null,null,null,null,null,null,null,null,null,null,null,null,null,null,null,null,null,null,null,null,null,null,null,null,null,null,null,null,null,null,null,null,null,null,null,null,"41"]
["Пензенская область",null,null,null,null,null,null,null,null,null,null,null,null,null,null,null,null,null,null,null,null,null,null,null,null,null,null,null,null,null,null,null,null,null,null,null,null,null,null,null,null,null,null,null,null,null,null,null,null,"42"]
["Пермский край",null,null,null,null,null,null,null,null,null,null,null,null,null,null,null,null,null,null,null,null,null,null,null,null,null,null,null,null,null,null,null,null,null,null,null,null,null,null,null,null,null,null,null,null,null,null,null,null,"43"]
["Приморский край",null,null,null,null,null,null,null,null,null,null,null,null,null,null,null,null,null,null,null,null,null,null,null,null,null,null,null,null,null,null,null,null,null,null,null,null,null,null,null,null,null,null,null,null,null,null,null,null,"44"]
["Псковская область",null,null,null,null,null,null,null,null,null,null,null,null,null,null,null,null,null,null,null,null,null,null,null,null,null,null,null,null,null,null,null,null,null,null,null,null,null,null,null,null,null,null,null,null,null,null,null,null,"45"]
["Республика Адыгея",null,null,null,null,null,null,null,null,null,null,null,null,null,null,null,null,null,null,null,null,null,null,null,null,null,null,null,null,null,null,null,null,null,null,null,null,null,null,null,null,null,null,null,null,null,null,null,null,"46"]
["Республика Алтай",null,null,null,null,null,null,null,null,null,null,null,null,null,null,null,null,null,null,null,null,null,null,null,null,null,null,null,null,null,null,null,null,null,null,null,null,null,null,null,null,null,null,null,null,null,null,null,null,"47"]
["Республика Башкортостан",null,null,null,null,null,null,null,null,null,null,null,null,null,null,null,null,null,null,null,null,null,null,null,null,null,null,null,null,null,null,null,null,null,null,null,null,null,null,null,null,null,null,null,null,null,null,null,null,"48"]
["Республика Бурятия",null,null,null,null,null,null,null,null,null,null,null,null,null,null,null,null,null,null,null,null,null,null,null,null,null,null,null,null,null,null,null,null,null,null,null,null,null,null,null,null,null,null,null,null,null,null,null,null,"49"]
["Республика Дагестан",null,null,null,null,null,null,null,null,null,null,null,null,null,null,null,null,null,null,null,null,null,null,null,null,null,null,null,null,null,null,null,null,null,null,null,null,null,null,null,null,null,null,null,null,null,null,null,null,"50"]
["Республика Ингушетия",null,null,null,null,null,null,null,null,null,null,null,null,null,null,null,null,null,null,null,null,null,null,null,null,null,null,null,null,null,null,null,null,null,null,null,null,null,null,null,null,null,null,null,null,null,null,null,null,"51"]
["Республика Калмыкия",null,null,null,null,null,null,null,null,null,null,null,null,null,null,null,null,null,null,null,null,null,null,null,null,null,null,null,null,null,null,null,null,null,null,null,null,null,null,null,null,null,null,null,null,null,null,null,null,"52"]
["Республика Карелия",null,null,null,null,null,null,null,null,null,null,null,null,null,null,null,null,null,null,null,null,null,null,null,null,null,null,null,null,null,null,null,null,null,null,null,null,null,null,null,null,null,null,null,null,null,null,null,null,"53"]
["Республика Коми",null,null,null,null,null,null,null,null,null,null,null,null,null,null,null,null,null,null,null,null,null,null,null,null,null,null,null,null,null,null,null,null,null,null,null,null,null,null,null,null,null,null,null,null,null,null,null,null,"54"]
["Республика Крым",null,null,null,null,null,null,null,null,null,null,null,null,null,null,null,null,null,null,null,null,null,null,null,null,null,null,null,null,null,null,null,null,null,null,null,null,null,null,null,null,null,null,null,null,null,null,null,null,"55"]
["Республика Марий Эл",null,null,null,null,null,null,null,null,null,null,null,null,null,null,null,null,null,null,null,null,null,null,null,null,null,null,null,null,null,null,null,null,null,null,null,null,null,null,null,null,null,null,null,null,null,null,null,null,"56"]
["Республика Мордовия",null,null,null,null,null,null,null,null,null,null,null,null,null,null,null,null,null,null,null,null,null,null,null,null,null,null,null,null,null,null,null,null,null,null,null,null,null,null,null,null,null,null,null,null,null,null,null,null,"57"]
["Республика Саха (Якутия)",null,null,null,null,null,null,null,null,null,null,null,null,null,null,null,null,null,null,null,null,null,null,null,null,null,null,null,null,null,null,null,null,null,null,null,null,null,null,null,null,null,null,null,null,null,null,null,null,"58"]
["Республика Северная Осетия-Алания",null,null,null,null,null,null,null,null,null,null,null,null,null,null,null,null,null,null,null,null,null,null,null,null,null,null,null,null,null,null,null,null,null,null,null,null,null,null,null,null,null,null,null,null,null,null,null,null,"59"]
["Республика Татарстан"]
["Республика Тыва"]
["Республика Хакасия"]
["Ростовская область"]
["Рязанская область"]
["Самарская область"]
["Саратовская область"]
["Сахалинская область"]
["Свердловская область"]
["Смоленская область"]
["Ставропольский край"]
["Тамбовская область"]
["Тверская область"]
["Томская область"]
["Тульская область"]
["Тюменская область"]
["Удмуртская республика"]
["Ульяновская область"]
["Хабаровский край"]
["Ханты-Мансийский автономный округ"]
["Челябинская область"]
["Чеченская республика"]
["Чувашская республика"]
["Чукотский автономный округ"]
["Ямало-Ненецкий автономный округ"]
["Ярославская область"]

{"sheet":"modList14_1","index":40,"n_rows":0,"n_cols":0,"rows_kept":0,"cut":false,"hidden":true,"merged":[]}

{"sheet":"modList13","index":41,"n_rows":0,"n_cols":0,"rows_kept":0,"cut":false,"hidden":true,"merged":[]}

{"sheet":"modListTempFilter","index":42,"n_rows":0,"n_cols":0,"rows_kept":0,"cut":false,"hidden":true,"merged":[]}

{"sheet":"modCheckCyan","index":43,"n_rows":129,"n_cols":1,"rows_kept":129,"cut":false,"hidden":true,"merged":[]}
[{"$f":"IF('Форма 4.10.2 | Т-ТЭ | >=25МВт'!$O$22=\"\",1,0)","v":1}]
[{"$f":"IF('Форма 4.10.2 | Т-ТЭ | >=25МВт'!$O$23=\"\",1,0)","v":1}]
[{"$f":"IF('Форма 4.10.2 | Т-ТЭ | >=25МВт'!$M$24=\"\",1,0)","v":1}]
[{"$f":"IF('Форма 4.10.2 | Т-ТЭ | >=25МВт'!$R$24=\"\",1,0)","v":1}]
[{"$f":"IF('Форма 4.10.2 | Т-ТЭ | >=25МВт'!$T$24=\"\",1,0)","v":1}]
[{"$f":"IF('Форма 4.10.2 | Т-ТЭ | >=25МВт'!$S$24=\"\",1,0)","v":0}]
[{"$f":"IF('Форма 4.10.2 | Т-ТЭ | >=25МВт'!$U$24=\"\",1,0)","v":0}]
[{"$f":"IF('Форма 4.10.2 | Т-ТЭ | ТСО'!$O$22=\"\",1,0)","v":1}]
[{"$f":"IF('Форма 4.10.2 | Т-ТЭ | ТСО'!$O$23=\"\",1,0)","v":1}]
[{"$f":"IF('Форма 4.10.2 | Т-ТЭ | ТСО'!$M$24=\"\",1,0)","v":1}]
[{"$f":"IF('Форма 4.10.2 | Т-ТЭ | ТСО'!$R$24=\"\",1,0)","v":1}]
[{"$f":"IF('Форма 4.10.2 | Т-ТЭ | ТСО'!$T$24=\"\",1,0)","v":1}]
[{"$f":"IF('Форма 4.10.2 | Т-ТЭ | ТСО'!$S$24=\"\",1,0)","v":0}]
[{"$f":"IF('Форма 4.10.2 | Т-ТЭ | ТСО'!$U$24=\"\",1,0)","v":0}]
[{"$f":"IF('Форма 4.10.2 | Т-ТЭ | потр'!$O$22=\"\",1,0)","v":0}]
[{"$f":"IF('Форма 4.10.2 | Т-ТЭ | потр'!$O$23=\"\",1,0)","v":0}]
[{"$f":"IF('Форма 4.10.2 | Т-ТЭ | потр'!$M$24=\"\",1,0)","v":0}]
[{"$f":"IF('Форма 4.10.2 | Т-ТЭ | потр'!$R$24=\"\",1,0)","v":0}]
[{"$f":"IF('Форма 4.10.2 | Т-ТЭ | потр'!$T$24=\"\",1,0)","v":0}]
[{"$f":"IF('Форма 4.10.2 | Т-ТЭ | потр'!$S$24=\"\",1,0)","v":0}]
[{"$f":"IF('Форма 4.10.2 | Т-ТЭ | потр'!$U$24=\"\",1,0)","v":0}]
[{"$f":"IF('Форма 4.10.2 | Т-ТЭ | предел'!$O$24=\"\",1,0)","v":1}]
[{"$f":"IF('Форма 4.10.2 | Т-ТЭ | предел'!$O$25=\"\",1,0)","v":1}]
[{"$f":"IF('Форма 4.10.2 | Т-ТЭ | предел'!$M$26=\"\",1,0)","v":1}]
[{"$f":"IF('Форма 4.10.2 | Т-ТЭ | предел'!$R$26=\"\",1,0)","v":1}]
[{"$f":"IF('Форма 4.10.2 | Т-ТЭ | предел'!$T$26=\"\",1,0)","v":1}]
[{"$f":"IF('Форма 4.10.2 | Т-ТЭ | предел'!$S$26=\"\",1,0)","v":0}]
[{"$f":"IF('Форма 4.10.2 | Т-ТЭ | предел'!$U$26=\"\",1,0)","v":0}]
[{"$f":"IF('Форма 4.10.2 | Т-ТЭ | индикат'!$O$7=\"\",1,0)","v":1}]
[{"$f":"IF('Форма 4.10.2 | Т-ТЭ | индикат'!$O$24=\"\",1,0)","v":1}]
[{"$f":"IF('Форма 4.10.2 | Т-ТЭ | индикат'!$O$25=\"\",1,0)","v":1}]
[{"$f":"IF('Форма 4.10.2 | Т-ТЭ | индикат'!$M$26=\"\",1,0)","v":1}]
[{"$f":"IF('Форма 4.10.2 | Т-ТЭ | индикат'!$R$26=\"\",1,0)","v":1}]
[{"$f":"IF('Форма 4.10.2 | Т-ТЭ | индикат'!$T$26=\"\",1,0)","v":1}]
[{"$f":"IF('Форма 4.10.2 | Т-ТЭ | индикат'!$S$26=\"\",1,0)","v":0}]
[{"$f":"IF('Форма 4.10.2 | Т-ТЭ | индикат'!$U$26=\"\",1,0)","v":0}]
[{"$f":"IF('Форма 4.10.2 | Резерв мощности'!$O$22=\"\",1,0)","v":1}]
[{"$f":"IF('Форма 4.10.2 | Резерв мощности'!$O$23=\"\",1,0)","v":1}]
[{"$f":"IF('Форма 4.10.2 | Резерв мощности'!$M$24=\"\",1,0)","v":1}]
[{"$f":"IF('Форма 4.10.2 | Резерв мощности'!$O$24=\"\",1,0)","v":1}]
[{"$f":"IF('Форма 4.10.2 | Резерв мощности'!$R$24=\"\",1,0)","v":1}]
[{"$f":"IF('Форма 4.10.2 | Резерв мощности'!$T$24=\"\",1,0)","v":1}]
[{"$f":"IF('Форма 4.10.2 | Резерв мощности'!$S$24=\"\",1,0)","v":0}]
[{"$f":"IF('Форма 4.10.2 | Резерв мощности'!$U$24=\"\",1,0)","v":0}]
[{"$f":"IF('Форма 4.10.3 | Т-ТН'!$O$23=\"\",1,0)","v":1}]
[{"$f":"IF('Форма 4.10.3 | Т-ТН'!$M$24=\"\",1,0)","v":1}]
[{"$f":"IF('Форма 4.10.3 | Т-ТН'!$R$24=\"\",1,0)","v":1}]
[{"$f":"IF('Форма 4.10.3 | Т-ТН'!$T$24=\"\",1,0)","v":1}]
[{"$f":"IF('Форма 4.10.3 | Т-ТН'!$S$24=\"\",1,0)","v":0}]
[{"$f":"IF('Форма 4.10.3 | Т-ТН'!$U$24=\"\",1,0)","v":0}]
[{"$f":"IF('Форма 4.10.3 | Т-передача ТЭ'!$O$23=\"\",1,0)","v":1}]
[{"$f":"IF('Форма 4.10.3 | Т-передача ТЭ'!$M$24=\"\",1,0)","v":1}]
[{"$f":"IF('Форма 4.10.3 | Т-передача ТЭ'!$R$24=\"\",1,0)","v":1}]
[{"$f":"IF('Форма 4.10.3 | Т-передача ТЭ'!$T$24=\"\",1,0)","v":1}]
[{"$f":"IF('Форма 4.10.3 | Т-передача ТЭ'!$S$24=\"\",1,0)","v":0}]
[{"$f":"IF('Форма 4.10.3 | Т-передача ТЭ'!$U$24=\"\",1,0)","v":0}]
[{"$f":"IF('Форма 4.10.3 | Т-передача ТН'!$O$23=\"\",1,0)","v":1}]
[{"$f":"IF('Форма 4.10.3 | Т-передача ТН'!$M$24=\"\",1,0)","v":1}]
[{"$f":"IF('Форма 4.10.3 | Т-передача ТН'!$R$24=\"\",1,0)","v":1}]
[{"$f":"IF('Форма 4.10.3 | Т-передача ТН'!$T$24=\"\",1,0)","v":1}]
[{"$f":"IF('Форма 4.10.3 | Т-передача ТН'!$S$24=\"\",1,0)","v":0}]
[{"$f":"IF('Форма 4.10.3 | Т-передача ТН'!$U$24=\"\",1,0)","v":0}]
[{"$f":"IF('Форма 4.10.4 | Т-гор.вода'!$O$23=\"\",1,0)","v":1}]
[{"$f":"IF('Форма 4.10.4 | Т-гор.вода'!$M$24=\"\",1,0)","v":0}]
[{"$f":"IF('Форма 4.10.4 | Т-гор.вода'!$W$24=\"\",1,0)","v":1}]
[{"$f":"IF('Форма 4.10.4 | Т-гор.вода'!$Y$24=\"\",1,0)","v":1}]
[{"$f":"IF('Форма 4.10.4 | Т-гор.вода'!$M$25=\"\",1,0)","v":1}]
[{"$f":"IF('Форма 4.10.4 | Т-гор.вода'!$X$24=\"\",1,0)","v":0}]
[{"$f":"IF('Форма 4.10.4 | Т-гор.вода'!$Z$24=\"\",1,0)","v":0}]
[{"$f":"IF('Форма 4.10.5 | Т-подкл'!$AB$23=\"\",1,0)","v":1}]
[{"$f":"IF('Форма 4.10.5 | Т-подкл'!$AD$23=\"\",1,0)","v":1}]
[{"$f":"IF('Форма 4.10.5 | Т-подкл'!$N$23=\"\",1,0)","v":0}]
[{"$f":"IF('Форма 4.10.5 | Т-подкл'!$R$23=\"\",1,0)","v":0}]
[{"$f":"IF('Форма 4.10.5 | Т-подкл'!$V$23=\"\",1,0)","v":0}]
[{"$f":"IF('Форма 4.10.5 | Т-подкл'!$AC$23=\"\",1,0)","v":0}]
[{"$f":"IF('Форма 4.10.5 | Т-подкл'!$AE$23=\"\",1,0)","v":0}]
[{"$f":"IF('Форма 4.10.6 | Т-подкл(инд)'!$M$23=\"\",1,0)","v":1}]
[{"$f":"IF('Форма 4.10.6 | Т-подкл(инд)'!$P$23=\"\",1,0)","v":1}]
[{"$f":"IF('Форма 4.10.6 | Т-подкл(инд)'!$S$23=\"\",1,0)","v":1}]
[{"$f":"IF('Форма 4.10.6 | Т-подкл(инд)'!$T$23=\"\",1,0)","v":0}]
[{"$f":"IF('Форма 4.10.6 | Т-подкл(инд)'!$V$23=\"\",1,0)","v":0}]
[{"$f":"IF('Форма 4.9'!$F$10=\"\",1,0)","v":0}]
[{"$f":"IF('Форма 4.9'!$G$10=\"\",1,0)","v":0}]
[{"$f":"IF('Форма 4.9'!$F$11=\"\",1,0)","v":0}]
[{"$f":"IF('Форма 4.9'!$G$11=\"\",1,0)","v":0}]
[{"$f":"IF('Форма 4.9'!$F$12=\"\",1,0)","v":0}]
[{"$f":"IF('Форма 4.9'!$G$12=\"\",1,0)","v":0}]
[{"$f":"IF('Форма 4.9'!$F$13=\"\",1,0)","v":0}]
[{"$f":"IF('Форма 4.9'!$G$13=\"\",1,0)","v":0}]
[{"$f":"IF('Форма 4.10.1'!$J$15=\"\",1,0)","v":0}]
[{"$f":"IF('Форма 4.10.1'!$H$17=\"\",1,0)","v":0}]
[{"$f":"IF('Форма 4.10.1'!$I$17=\"\",1,0)","v":0}]
[{"$f":"IF('Форма 4.10.1'!$J$17=\"\",1,0)","v":0}]
[{"$f":"IF('Форма 4.10.1'!$H$22=\"\",1,0)","v":0}]
[{"$f":"IF('Форма 4.10.1'!$I$22=\"\",1,0)","v":0}]
[{"$f":"IF('Форма 4.10.1'!$J$22=\"\",1,0)","v":0}]
[{"$f":"IF('Форма 4.10.1'!$H$25=\"\",1,0)","v":0}]
[{"$f":"IF('Форма 4.10.1'!$I$25=\"\",1,0)","v":0}]
[{"$f":"IF('Форма 4.10.1'!$J$25=\"\",1,0)","v":0}]
[{"$f":"IF('Форма 4.10.1'!$H$28=\"\",1,0)","v":0}]
[{"$f":"IF('Форма 4.10.1'!$I$28=\"\",1,0)","v":0}]
[{"$f":"IF('Форма 4.10.1'!$J$28=\"\",1,0)","v":0}]
[{"$f":"IF('Форма 4.10.1'!$H$31=\"\",1,0)","v":0}]
[{"$f":"IF('Форма 4.10.1'!$I$31=\"\",1,0)","v":0}]
[{"$f":"IF('Форма 4.10.1'!$J$31=\"\",1,0)","v":0}]
[{"$f":"IF('Форма 1.0.2'!$E$12=\"\",1,0)","v":1}]
[{"$f":"IF('Форма 1.0.2'!$F$12=\"\",1,0)","v":1}]
[{"$f":"IF('Форма 1.0.2'!$G$12=\"\",1,0)","v":1}]
[{"$f":"IF('Форма 1.0.2'!$H$12=\"\",1,0)","v":1}]
[{"$f":"IF('Форма 1.0.2'!$I$12=\"\",1,0)","v":1}]
[{"$f":"IF('Форма 1.0.2'!$J$12=\"\",1,0)","v":1}]
[{"$f":"IF('Сведения об изменении'!$E$12=\"\",1,0)","v":1}]
[{"$f":"IF('Форма 4.10.6 | Т-подкл(инд)'!$U$23=\"\",1,0)","v":1}]
[{"$f":"IF('Форма 4.10.5 | Т-подкл'!$AA$23=\"\",1,0)","v":1}]
[{"$f":"IF('Форма 4.10.5 | Т-подкл'!$Z$23=\"\",1,0)","v":1}]
[{"$f":"IF(Территории!$E$12=\"\",1,0)","v":0}]
[{"$f":"IF('Перечень тарифов'!$E$21=\"\",1,0)","v":0}]
[{"$f":"IF('Перечень тарифов'!$F$21=\"\",1,0)","v":0}]
[{"$f":"IF('Перечень тарифов'!$G$21=\"\",1,0)","v":0}]
[{"$f":"IF('Перечень тарифов'!$K$21=\"\",1,0)","v":0}]
[{"$f":"IF('Перечень тарифов'!$O$21=\"\",1,0)","v":0}]
[{"$f":"IF('Перечень тарифов'!$S$21=\"\",1,0)","v":0}]
[{"$f":"IF('Форма 4.10.2 | Т-ТЭ | потр'!$O$24=\"\",1,0)","v":0}]
[{"$f":"IF('Форма 4.10.2 | Т-ТЭ | потр'!$Y$24=\"\",1,0)","v":0}]
[{"$f":"IF('Форма 4.10.2 | Т-ТЭ | потр'!$AA$24=\"\",1,0)","v":0}]
[{"$f":"IF('Форма 4.10.2 | Т-ТЭ | потр'!$V$24=\"\",1,0)","v":0}]
[{"$f":"IF('Форма 4.10.2 | Т-ТЭ | потр'!$Z$24=\"\",1,0)","v":0}]
[{"$f":"IF('Форма 4.10.2 | Т-ТЭ | потр'!$AB$24=\"\",1,0)","v":0}]
[{"$f":"IF('Форма 4.10.1'!$K$20=\"\",1,0)","v":0}]

{"sheet":"REESTR_LINK","index":44,"n_rows":3,"n_cols":3,"rows_kept":3,"cut":false,"hidden":true,"merged":[]}
["ID","LINK_NAME","REGION"]
[4189678,"https://portal.eias.ru/Portal/DownloadPage.aspx?type=12&guid=????????-????-????-????-????????????","ALL"]
[4190415,"https://eias.fstrf.ru/disclo/get_file?p_guid=????????-????-????-????-????????????","ALL"]

{"sheet":"REESTR_DS","index":45,"n_rows":6,"n_cols":2,"rows_kept":6,"cut":false,"hidden":true,"merged":[]}
[]
[]
[null,"Всеволожский муниципальный район, Заневское (41612155);"]
[null,"территория 2"]
[null,"территория 3"]
[null,"территория 4"]

{"sheet":"modHTTP","index":46,"n_rows":0,"n_cols":0,"rows_kept":0,"cut":false,"hidden":true,"merged":[]}

{"sheet":"modfrmRezimChoose","index":47,"n_rows":0,"n_cols":0,"rows_kept":0,"cut":false,"hidden":true,"merged":[]}

{"sheet":"modSheetMain","index":48,"n_rows":1,"n_cols":2,"rows_kept":1,"cut":false,"hidden":true,"merged":[]}
["Форма","Листы"]

{"sheet":"REESTR_VT","index":49,"n_rows":11,"n_cols":2,"rows_kept":11,"cut":false,"hidden":true,"merged":[]}
["ID_TARIFF_NAME","TARIFF_NAME"]
[4213775,"Тарифы на тепловую энергию (мощность), производимую в режиме комбинированной выработки электрической и тепловой энергии источниками тепловой энергии с установленной генерирующей мощностью производства электрической энергии 25 мегаватт и более, в соответствии с установленными федеральным органом исполнительной власти в области государственного регулирования тарифов в сфере теплоснабжения предельными (минимальным и (или) максимальным) уровнями указанных тарифов"]
[4213784,"Тарифы на тепловую энергию (мощность), поставляемую потребителям теплоснабжающими организациями в соответствии с установленными предельными (минимальными и (или) максимальными) уровнями указанных тарифов"]
[4213781,"Тарифы на тепловую энергию (мощность), поставляемую другим теплоснабжающим организациям теплоснабжающими организациями"]
[4213776,"Тарифы на теплоноситель, поставляемый теплоснабжающими организациями потребителям, другим теплоснабжающим организациям"]
[4213777,"Тарифы на горячую воду, поставляемую теплоснабжающими организациями потребителям, другим теплоснабжающим организациям с использованием открытых систем теплоснабжения (горячего водоснабжения)"]
[4213778,"Тарифы на услуги по передаче тепловой энергии"]
[4213780,"Тарифы на услуги по передаче теплоносителя"]
[4213779,"Плата за подключение к системе теплоснабжения"]
[4213783,"Плата за подключение к системе теплоснабжения (индивидуальная)"]
[4213782,"Плата за услуги по поддержанию резервной тепловой мощности при отсутствии потребления тепловой энергии"]

{"sheet":"REESTR_VED","index":50,"n_rows":11,"n_cols":2,"rows_kept":11,"cut":false,"hidden":true,"merged":[]}
["ID_TARIFF_NAME","VED_NAME"]
[4190064,"Производство тепловой энергии. Некомбинированная выработка"]
[4190065,"Производство тепловой энергии. Комбинированная выработка с уст. мощностью производства электрической энергии менее 25 МВт"]
[4190066,"Производство тепловой энергии. Комбинированная выработка с уст. мощностью производства электрической энергии 25 МВт и более"]
[4190067,"Производство. Теплоноситель"]
[4190068,"Передача. Тепловая энергия"]
[4190069,"Передача. Теплоноситель"]
[4190070,"Сбыт. Тепловая энергия"]
[4190071,"Сбыт. Теплоноситель"]
[4190072,"Подключение (технологическое присоединение) к системе теплоснабжения"]
[4190073,"Поддержание резервной тепловой мощности при отсутствии потребления тепловой энергии"]

{"sheet":"modfrmReestrObj","index":51,"n_rows":0,"n_cols":0,"rows_kept":0,"cut":false,"hidden":true,"merged":[]}

{"sheet":"AllSheetsInThisWorkbook","index":52,"n_rows":44,"n_cols":2,"rows_kept":44,"cut":false,"hidden":true,"merged":[]}
["Расчетные листы","Скрытые листы"]
["Instruction","modList00"]
["modUpdTemplLogger","TSH_et_union_hor"]
["List00","TEHSHEET"]
["List01","modList14_1"]
["List02","modList13"]
["List05_1","modListTempFilter"]
["List06_1","modCheckCyan"]
["List05_2","REESTR_LINK"]
["List06_2","REESTR_DS"]
["List05_13","modHTTP"]
["List06_13","modfrmRezimChoose"]
["List05_3","modSheetMain"]
["List06_3","REESTR_VT"]
["List05_3_i","REESTR_VED"]
["List06_3_i","modfrmReestrObj"]
["List05_8","AllSheetsInThisWorkbook"]
["List06_8","TSH_et_union_vert"]
["List05_4","modInstruction"]
["List06_4","modRegion"]
["List05_6","modReestr"]
["List06_6","modfrmReestr"]
["List05_7","modUpdTemplMain"]
["List06_7","TSH_REESTR_ORG"]
["List05_5","modClassifierValidate"]
["List06_5","modProv"]
["List05_10","modHyp"]
["List06_10","modServiceModule"]
["List05_9","modList01"]
["List06_9","modList02"]
["List05_11","modList03"]
["List13","TSH_REESTR_MO_FILTER"]
["List14_1","TSH_REESTR_MO"]
["List03","modInfo"]
["List07","modList05"]
["ListComm","modList06"]
["ListCheck","modList07"]
[null,"modList11"]
[null,"modList12"]
[null,"modfrmDateChoose"]
[null,"modComm"]
[null,"modThisWorkbook"]
[null,"modfrmReestrMR"]
[null,"modfrmCheckUpdates"]

{"sheet":"et_union_vert","index":53,"n_rows":0,"n_cols":0,"rows_kept":0,"cut":false,"hidden":true,"merged":[]}

{"sheet":"modInstruction","index":54,"n_rows":0,"n_cols":0,"rows_kept":0,"cut":false,"hidden":true,"merged":[]}

{"sheet":"modRegion","index":55,"n_rows":0,"n_cols":0,"rows_kept":0,"cut":false,"hidden":true,"merged":[]}

{"sheet":"modReestr","index":56,"n_rows":0,"n_cols":0,"rows_kept":0,"cut":false,"hidden":true,"merged":[]}

{"sheet":"modfrmReestr","index":57,"n_rows":0,"n_cols":0,"rows_kept":0,"cut":false,"hidden":true,"merged":[]}

{"sheet":"modUpdTemplMain","index":58,"n_rows":0,"n_cols":0,"rows_kept":0,"cut":false,"hidden":true,"merged":[]}

{"sheet":"REESTR_ORG","index":59,"n_rows":187,"n_cols":10,"rows_kept":187,"cut":false,"hidden":true,"merged":[]}
["№","REGION_ID","REGION_NAME","RST_ORG_ID","ORG_NAME","INN_NAME","KPP_NAME","ORG_START_DATE","ORG_END_DATE"]
[1,"2610","Ленинградская область","26523762","АО \"Выборгтеплоэнерго\"","4704062064","470401001","09-06-2010 00:00:00",null,"WARM"]
[2,"2610","Ленинградская область","26373306","АО \"ГАТЧИНСКИЙ ККЗ\"","4719000303","470501001",null,null,"WARM"]
[3,"2610","Ленинградская область","30335229","АО \"ГУ ЖКХ\"","5116000922","770401001",null,null,"WARM"]
[4,"2610","Ленинградская область","26373221","АО \"Газпром газораспределение Ленинградская область\"","4700000109","472450001",null,null,"WARM"]
[5,"2610","Ленинградская область","31208153","АО \"ИЭК\"","4725005187","472501001",null,null,"WARM"]
[6,"2610","Ленинградская область","28875608","АО \"КНАУФ ПЕТРОБОРД\"","4719011873","470501001",null,null,"WARM"]
[7,"2610","Ленинградская область","26373248","АО \"Коммунальные системы Гатчинского района\"","4705039967","470501001",null,null,"WARM"]
[8,"2610","Ленинградская область","26506539","АО \"Концерн Росэнергоатом\" филиал \"Ленинградская атомная станция\"","7721632827","472643001",null,null,"WARM"]
[9,"2610","Ленинградская область","26523683","АО \"ЛОТЭК\"","4716028445","470701001","09-06-2010 00:00:00",null,"WARM"]
[10,"2610","Ленинградская область","28942511","АО \"НПО \"Поиск\"","4703142849","470301001",null,null,"WARM"]
[11,"2610","Ленинградская область","26524292","АО \"Нева Энергия\"","7802312374","471302001","09-06-2010 00:00:00",null,"WARM"]
[12,"2610","Ленинградская область","30384822","АО \"ПТС\"","4715030160","471501001","01-09-2015 00:00:00",null,"WARM"]
[13,"2610","Ленинградская область","26524249","АО \"Павловский завод\"","4706002529","470601001","09-06-2010 00:00:00",null,"WARM"]
[14,"2610","Ленинградская область","26373316","АО \"Промышленный комплекс \"Энергия\"","4720011010","472501001",null,null,"WARM"]
[15,"2610","Ленинградская область","26523673","АО \"РУСАЛ Бокситогорск\"","4701000013","471501001","09-06-2010 00:00:00",null,"WARM"]
[16,"2610","Ленинградская область","27250262","АО \"РЭУ\"","7714783092","602743002","31-08-2010 00:00:00",null,"WARM"]
[17,"2610","Ленинградская область","26828034","АО \"РЭУ\" филиал \"Санкт-Петербургский\"","7714783092","783943001",null,null,"WARM"]
[18,"2610","Ленинградская область","26319703","АО \"СЗИПК\"","7819020549","471501001","09-04-1999 00:00:00",null,"WARM"]
[19,"2610","Ленинградская область","26561712","АО \"Северное\"","7814054375","781401001",null,null,"WARM"]
[20,"2610","Ленинградская область","26555650","АО \"Теплосеть Санкт-Петербурга\"","7810577007","781001001",null,null,"WARM"]
[21,"2610","Ленинградская область","28261957","АО \"Усть-Лужский Контейнерный Терминал\"","4707013562","470707001","26-08-2013 00:00:00",null,"WARM"]
[22,"2610","Ленинградская область","30427522","АО ГУ ЖКХ ОП \"Санкт-Петербургское\"","5116000922","784245001","12-10-2015 00:00:00",null,"WARM"]
[23,"2610","Ленинградская область","28967688","Банк России (Оздоровительное объединение \"Зеленый бор\" Центрального банка Российской Федерации)","7702235133","471045002","29-04-2015 00:00:00",null,"WARM"]
[24,"2610","Ленинградская область","26373297","ГБПОУ ЛО \"Лисинский лесной колледж\"","4716001436","471601001",null,null,"WARM"]
[25,"2610","Ленинградская область","28949934","ГКУ ЛО\"ОБЪЕКТ № 58 ПРАВИТЕЛЬСТВА ЛЕНИНГРАДСКОЙ ОБЛАСТИ\"","4716038771","471601001",null,null,"WARM"]
[26,"2610","Ленинградская область","30794671","ГКУЗ ЛО \"ДПБ\"","4719005020","470501001","23-05-2016 00:00:00",null,"WARM"]
[27,"2610","Ленинградская область","31233373","ГП \"Волосовское ДРСУ\"","4717000650","470501001",null,null,"WARM"]
[28,"2610","Ленинградская область","26373265","ГП \"Лодейнопольское ДРСУ\"","4709001851","471101001",null,null,"WARM"]
[29,"2610","Ленинградская область","31370428","ГП \"Пригородное ДРСУ № 1\"","4703003394","470301001",null,null,"WARM"]
[30,"2610","Ленинградская область","26422494","ГУП \"Водоканал Санкт-Петербурга\"","7830000426","784201001",null,null,"WARM"]
[31,"2610","Ленинградская область","26361126","ГУП \"ТЭК СПб\"","7830001028","783450001",null,null,"WARM"]
[32,"2610","Ленинградская область","26373225","ЗАО \"Агрофирма  \"Выборжец\"","4703006839","470301001",null,null,"WARM"]
[33,"2610","Ленинградская область","26524163","ЗАО \"Интернешнл Пейпер\"","4704012472","470401001",null,null,"WARM"]
[34,"2610","Ленинградская область","26373235","ЗАО \"Каменногорское карьероуправление\"","4704002227","470401001",null,null,"WARM"]
[35,"2610","Ленинградская область","28828779","ЗАО \"Крионорд\"","7825332183","781001001","20-11-2014 00:00:00",null,"WARM"]
[36,"2610","Ленинградская область","26373268","ЗАО \"Сосновоагропромтехника\"","4712002559","471201001",null,null,"WARM"]
[37,"2610","Ленинградская область","27331943","ИП Бушин И.В.","780520554728","отсутствует",null,null,"WARM"]
[38,"2610","Ленинградская область","26523738","ИФ РАН","7801022898","780101001","09-06-2010 00:00:00",null,"WARM"]
[39,"2610","Ленинградская область","27851016","ЛОГП \"Гатчинское дорожное ремонтно-строительное управление\"","4719002004","471090100",null,null,"WARM"]
[40,"2610","Ленинградская область","31343563","МБУ \"ЦБС\"","4703145254","470301001",null,null,"WARM"]
[41,"2610","Ленинградская область","26561751","МП \"Агалатово-Сервис\"","4703087267","470301001",null,null,"WARM"]
[42,"2610","Ленинградская область","26561667","МП \"Жилищное хозяйство\"","4708001129","472701001",null,null,"WARM"]
[43,"2610","Ленинградская область","26640400","МП \"Северное ремонтно-эксплуатационное предприятие\"","4703064012","470301001",null,null,"WARM"]
[44,"2610","Ленинградская область","26638805","МП \"ТЭКК\"","4703117909","470301001","25-10-2013 00:00:00",null,"WARM"]
[45,"2610","Ленинградская область","28813153","МП \"ТеплоРесурс\" МО Кузнечнинское ГП","4712025919","471201001","16-09-2014 00:00:00",null,"WARM"]
[46,"2610","Ленинградская область","28504079","МП МО город Коммунар \"ЖКС\"","4705062476","470501001","30-04-2013 00:00:00",null,"WARM"]
[47,"2610","Ленинградская область","28284366","МРФ \"Северо-Запад\" ПАО \"Ростелеком\"","7707049388","784243001",null,null,"WARM"]
[48,"2610","Ленинградская область","27883622","МУКП \"Свердловские коммунальные системы\"","4703128682","470301001",null,null,"WARM"]
[49,"2610","Ленинградская область","31210480","МУП \"АУРП\"","4712128960","471201001",null,null,"WARM"]
[50,"2610","Ленинградская область","26638809","МУП \"Бугровские тепловые сети\"","4703103575","470301001",null,null,"WARM"]
[51,"2610","Ленинградская область","31209792","МУП \"Ефимовские тепловые сети\"","4715031357","471501001",null,null,"WARM"]
[52,"2610","Ленинградская область","31211905","МУП \"Зеленый город\"","4716041358","471601001",null,null,"WARM"]
[53,"2610","Ленинградская область","26373257","МУП \"НазияКомСервис\"","4706027280","470601001",null,null,"WARM"]
[54,"2610","Ленинградская область","26373253","МУП \"ПриладожскЖКХ»","4706005311","470601001",null,null,"WARM"]
[55,"2610","Ленинградская область","26373254","МУП \"Путилово ЖКХ\"","4706025188","470601001",null,null,"WARM"]
[56,"2610","Ленинградская область","26640632","МУП \"Романовские коммунальные системы\"","4703117955","470301001",null,null,"WARM"]
[57,"2610","Ленинградская область","31430605","МУП \"Романовский водоканал\"","4703172650","470301001",null,null,"WARM"]
[58,"2610","Ленинградская область","27943060","МУП \"Северное Cияние\"","4706033397","470601001",null,null,"WARM"]
[59,"2610","Ленинградская область","26524169","МУП \"Тепловые сети\" г. Гатчина","4705014698","470501001",null,null,"WARM"]
[60,"2610","Ленинградская область","31347301","МУП \"Теплосеть Мельниково\"","4712029279","471201001",null,null,"WARM"]
[61,"2610","Ленинградская область","31210597","МУП \"Теплосеть Плодовое\"","4712028540","471201001",null,null,"WARM"]
[62,"2610","Ленинградская область","27222108","МУП \"Центр ЖКХ\"","4706031872","470601001","01-09-2011 00:00:00",null,"WARM"]
[63,"2610","Ленинградская область","31435482","МУП «Мгинские тепловые сети»","4706041648","470601001",null,null,"WARM"]
[64,"2610","Ленинградская область","28001460","МУП «Низино»","4720031916","472501001","25-12-2009 00:00:00",null,"WARM"]
[65,"2610","Ленинградская область","31211235","МУП «Теплосеть Сосново»","4712028451","471201001",null,null,"WARM"]
[66,"2610","Ленинградская область","26524179","МУП ЖКХ \"Сиверский\"","4705030450","470501001","09-06-2010 00:00:00",null,"WARM"]
[67,"2610","Ленинградская область","26768264","МУП ПГП «КБ»","4711006504","471101001",null,null,"WARM"]
[68,"2610","Ленинградская область","26773425","МУП УЖКХ МО ВИЛЛОЗСКОЕ СП","4720024228","472501001",null,null,"WARM"]
[69,"2610","Ленинградская область","26524175","НИЦ «Курчатовский институт» - ПИЯФ","4705001850","470501001",null,null,"WARM"]
[70,"2610","Ленинградская область","28136066","НЛРВПиС","7812024833","470602001","25-03-2013 00:00:00",null,"WARM"]
[71,"2610","Ленинградская область","26639730","ОАО \"Всеволожские тепловые сети\"","4703096470","470301001",null,null,"WARM"]
[72,"2610","Ленинградская область","26380458","ОАО \"Завод Сланцы\"","4713000931","471301001",null,null,"WARM"]
[73,"2610","Ленинградская область","26373240","ОАО \"Птицефабрика Ударник\"","4704083071","470401001",null,null,"WARM"]
[74,"2610","Ленинградская область","26814895","ОАО \"РЖД\" (Октябрьская дирекция по тепловодоснабжению - СП Центральной дирекции по тепловодоснабжению - филиала ОАО \"РЖД\")","7708503727","780445015","01-04-2011 00:00:00",null,"WARM"]
[75,"2610","Ленинградская область","26373304","ОАО \"Сясьский целлюлозно-бумажный комбинат\"","4718011856","470201001",null,null,"WARM"]
[76,"2610","Ленинградская область","26640411","ОАО \"Тепловые сети\" филиал  \"Волосовские коммунальные системы\"","4716024190","470543002",null,null,"WARM"]
[77,"2610","Ленинградская область","26524308","ОАО \"Тепловые сети\", г. Тосно","4716024190","471601001","09-06-2010 00:00:00",null,"WARM"]
[78,"2610","Ленинградская область","26373290","ОАО \"УЖКХ\" (Тихвинского района)","4715014471","471501001",null,null,"WARM"]
[79,"2610","Ленинградская область","26524171","ОАО \"Узор\"","4719002999","470501001",null,null,"WARM"]
[80,"2610","Ленинградская область","28148752","ООО \"АКВАТЕРМ\"","4707032565","470701001",null,null,"WARM"]
[81,"2610","Ленинградская область","31259501","ООО \"АСТРА\"","4707008146","470701001",null,null,"WARM"]
[82,"2610","Ленинградская область","26640553","ООО \"Аква Норд-Вест\"","7801432887","780101001",null,null,"WARM"]
[83,"2610","Ленинградская область","31206288","ООО \"Алгоритм Девелопмент\"","7842055902","780201001",null,null,"WARM"]
[84,"2610","Ленинградская область","30389240","ООО \"БАЗИС-ЭНЕРГО\"","7801474904","780101001","12-11-2015 00:00:00",null,"WARM"]
[85,"2610","Ленинградская область","28274744","ООО \"БИОТЕПЛОСНАБ\"","7811553714","471101001","07-10-2013 00:00:00",null,"WARM"]
[86,"2610","Ленинградская область","30847189","ООО \"Балтийский Дом\"","7802160435","781401001","25-10-2016 00:00:00",null,"WARM"]
[87,"2610","Ленинградская область","26524282","ООО \"Биотеплоснаб\"","4712123698","471201001","09-06-2010 00:00:00",null,"WARM"]
[88,"2610","Ленинградская область","30850125","ООО \"Бис Мелиор Трейд\"","4703144194","470301001","07-11-2016 00:00:00",null,"WARM"]
[89,"2610","Ленинградская область","28545782","ООО \"ВОДОКАНАЛ\"","4703137398","470301001","19-06-2014 00:00:00",null,"WARM"]
[90,"2610","Ленинградская область","31440833","ООО \"ВодПрофСервис\"","7801359323","780101001",null,null,"WARM"]
[91,"2610","Ленинградская область","26380445","ООО \"Водоканал\"","4711008759","471101001",null,null,"WARM"]
[92,"2610","Ленинградская область","27677580","ООО \"Выборгская лесопромышленная корпорация\"","4704087728","470401001","16-04-2012 00:00:00",null,"WARM"]
[93,"2610","Ленинградская область","31210610","ООО \"ГЕФЕСТ\"","4705065149","470501001",null,null,"WARM"]
[94,"2610","Ленинградская область","28048642","ООО \"ГРАНД\"","4714017430","472601001",null,null,"WARM"]
[95,"2610","Ленинградская область","27883546","ООО \"ГТМ - теплосервис\"","7810496527","780501001",null,null,"WARM"]
[96,"2610","Ленинградская область","31313543","ООО \"Газпром теплоэнерго Северо-Запад\"","7839108015","783901001",null,null,"WARM"]
[97,"2610","Ленинградская область","29649769","ООО \"Дубровская ТЭЦ\"","4706036863","470601001",null,null,"WARM"]
[98,"2610","Ленинградская область","30906125","ООО \"ЖилКомТеплоЭнерго\"","4712023541","471201001",null,null,"WARM"]
[99,"2610","Ленинградская область","28932418","ООО \"Жилсервис\"","7843305143","470301001","23-12-2014 00:00:00",null,"WARM"]
[100,"2610","Ленинградская область","31448412","ООО \"КЭК\"","4703176164","470301001",null,null,"WARM"]
[101,"2610","Ленинградская область","30989185","ООО \"Колтушские тепловые сети\"","4703150102","470301001",null,null,"WARM"]
[102,"2610","Ленинградская область","26524185","ООО \"Коммун Энерго\"","4707021122","470701001","09-06-2010 00:00:00",null,"WARM"]
[103,"2610","Ленинградская область","30795556","ООО \"ЛЕНТЕПЛО\"","7802566770","780201001","10-12-2018 00:00:00",null,"WARM"]
[104,"2610","Ленинградская область","28795099","ООО \"Ландшафт ЭКО\"","4712023196","471201001",null,null,"WARM"]
[105,"2610","Ленинградская область","28016967","ООО \"Лемэк\"","7801213324","472501001","07-03-2012 00:00:00",null,"WARM"]
[106,"2610","Ленинградская область","28048616","ООО \"Леноблтеплоснаб\"","7811527520","781101001",null,null,"WARM"]
[107,"2610","Ленинградская область","31210711","ООО \"Ленстрой\"","7806340848","780601001",null,null,"WARM"]
[108,"2610","Ленинградская область","27850826","ООО \"Лужское тепло\"","4710032029","471001001","30-07-2012 00:00:00",null,"WARM"]
[109,"2610","Ленинградская область","31443494","ООО \"МК Свердлова\"","4703177070","470301001",null,null,"WARM"]
[110,"2610","Ленинградская область","28155588","ООО \"Мир Техники\"","7810034240","782001001","18-06-2013 00:00:00",null,"WARM"]
[111,"2610","Ленинградская область","31343593","ООО \"НИЛА\"","4711004602","471101001",null,null,"WARM"]
[112,"2610","Ленинградская область","28545761","ООО \"НТЦ \"Энергия\"","4705052118","470501001","24-06-2015 00:00:00",null,"WARM"]
[113,"2610","Ленинградская область","28968332","ООО \"Новая Водная Ассоциация\"","7801426040","780101001","18-05-2015 00:00:00",null,"WARM"]
[114,"2610","Ленинградская область","28829716","ООО \"ОблСервис\"","4712024087","471201001",null,null,"WARM"]
[115,"2610","Ленинградская область","26375635","ООО \"Ольшаники\"","7801079076","470401001",null,null,"WARM"]
[116,"2610","Ленинградская область","28829326","ООО \"ПАРИТЕТЪ\"","4712026119","471201001",null,null,"WARM"]
[117,"2610","Ленинградская область","26523713","ООО \"ПГЛЗ\"","4715030610","471501001","09-06-2010 00:00:00",null,"WARM"]
[118,"2610","Ленинградская область","31383686","ООО \"ПО ЖКХ\"","4706040316","470601001",null,null,"WARM"]
[119,"2610","Ленинградская область","28447219","ООО \"ПРОДЭКС-ЭС\"","7810836981","781001001","17-08-2011 00:00:00",null,"WARM"]
[120,"2610","Ленинградская область","28940429","ООО \"ПРОМ ИМПУЛЬС\"","7806520632","781001001",null,null,"WARM"]
[121,"2610","Ленинградская область","27920896","ООО \"ПТЭСК\"","4706033100","470601001",null,null,"WARM"]
[122,"2610","Ленинградская область","30344093","ООО \"Паритет\"","4712026060","471201001","29-09-2015 00:00:00",null,"WARM"]
[123,"2610","Ленинградская область","27266270","ООО \"Петербургтеплоэнерго\"","7838024362","783901001",null,null,"WARM"]
[124,"2610","Ленинградская область","28489933","ООО \"Полар Инвест\"","7806104671","470301001","03-03-2000 00:00:00",null,"WARM"]
[125,"2610","Ленинградская область","28454795","ООО \"Приладожский Теплоснаб\"","4706035267","470601001","24-12-2013 00:00:00",null,"WARM"]
[126,"2610","Ленинградская область","26524253","ООО \"Промэнерго\"","4706016137","470601001","09-06-2010 00:00:00",null,"WARM"]
[127,"2610","Ленинградская область","28274778","ООО \"Ресурс\"","4711012515","471101001","07-10-2013 00:00:00",null,"WARM"]
[128,"2610","Ленинградская область","31355448","ООО \"Ресурсосбережение\"","7810388779","781001001",null,null,"WARM"]
[129,"2610","Ленинградская область","26813882","ООО \"С-КЛАД\"","7806358411","470301001",null,null,"WARM"]
[130,"2610","Ленинградская область","26640635","ООО \"СМЭУ Заневка\"","4703116542","470301001",null,null,"WARM"]
[131,"2610","Ленинградская область","30940618","ООО \"СТЭК\"","4703142768","470301001","08-12-2014 00:00:00",null,"WARM"]
[132,"2610","Ленинградская область","26799802","ООО \"Светогорское жилищно-коммунальное хозяйство\"","4704026517","470401001",null,null,"WARM"]
[133,"2610","Ленинградская область","28951581","ООО \"Сланцы\"","0276144176","470701001","01-04-2015 00:00:00",null,"WARM"]
[134,"2610","Ленинградская область","27774476","ООО \"Сосновский деревообрабатывающий завод\"","4712128738","471201001",null,null,"WARM"]
[135,"2610","Ленинградская область","28511826","ООО \"ТЕПЛОЭНЕРГО\"","7802853013","780101001",null,null,"WARM"]
[136,"2610","Ленинградская область","31075334","ООО \"ТЕРМО-ЛАЙН\"","4704103465","470401001",null,null,"WARM"]
[137,"2610","Ленинградская область","30363291","ООО \"ТК \"Мурино\"","7813559373","784201001",null,null,"WARM"]
[138,"2610","Ленинградская область","28136027","ООО \"Твердое топливо\"","7813422900","781301001","25-03-2013 00:00:00",null,"WARM"]
[139,"2610","Ленинградская область","30370326","ООО \"Тепло Сервис\"","4703137736","470301001","27-11-2015 00:00:00",null,"WARM"]
[140,"2610","Ленинградская область","28272648","ООО \"Тепловые Системы\"","7810450755","781001001","30-09-2013 00:00:00",null,"WARM"]
[141,"2610","Ленинградская область","28506998","ООО \"Теплодом\"","4703130547","781301001",null,null,"WARM"]
[142,"2610","Ленинградская область","26467459","ООО \"Теплострой плюс\"","7842322869","784201001",null,null,"WARM"]
[143,"2610","Ленинградская область","27061101","ООО \"Тихвин Дом\"","4715024568","471501001","22-12-2010 00:00:00",null,"WARM"]
[144,"2610","Ленинградская область","30917818","ООО \"Толмачевский завод ЖБ и МК\"","4710013019","471001001",null,null,"WARM"]
[145,"2610","Ленинградская область","28829108","ООО \"Транснефть-Порт Усть-Луга\"","4707021059","470701001",null,null,"WARM"]
[146,"2610","Ленинградская область","31354893","ООО \"УК \"Алгоритм\"","7802655830","780201001",null,null,"WARM"]
[147,"2610","Ленинградская область","28175609","ООО \"Управляющая компания\"Коммунальные сети\"","4707026836","470701001","05-07-2013 00:00:00",null,"WARM"]
[148,"2610","Ленинградская область","26523754","ООО \"Флагман\"","7805222344","470301001","09-06-2010 00:00:00",null,"WARM"]
[149,"2610","Ленинградская область","30989338","ООО \"ЭКОТЕХНОЛОГИЯ\"","4712027955","471201001",null,null,"WARM"]
[150,"2610","Ленинградская область","28490320","ООО \"ЭЛСО-ЭГМ\"","7813561990","780401001","06-03-2014 00:00:00",null,"WARM"]
[151,"2610","Ленинградская область","31342047","ООО \"ЭПС\"","7810757754","781001001",null,null,"WARM"]
[152,"2610","Ленинградская область","26648562","ООО \"Энерго-Ресурс\"","4703108005","470301001",null,null,"WARM"]
[153,"2610","Ленинградская область","31443489","ООО \"ЭнергоДевелопмент\"","7810770032","781001001",null,null,"WARM"]
[154,"2610","Ленинградская область","28979613","ООО \"ЭнергоИнвест\"","7841378040","780201001",null,null,"WARM"]
[155,"2610","Ленинградская область","27517472","ООО \"Энергогазмонтаж\"","7806119950","781301001",null,null,"WARM"]
[156,"2610","Ленинградская область","26361112","ООО \"Энергопромсервис\"","7811141414","781101001",null,null,"WARM"]
[157,"2610","Ленинградская область","31473900","ООО \"Юком\"","7806474947","780401001",null,null,"WARM"]
[158,"2610","Ленинградская область","31444444","ООО «Интера»","7805769183","780501001",null,null,"WARM"]
[159,"2610","Ленинградская область","30870466","ООО «Ленжилэксплуатация»","7810764455","781001001","21-10-2013 00:00:00",null,"WARM"]
[160,"2610","Ленинградская область","31451157","ООО «Новая Дубровка»","4703101112","470301001",null,null,"WARM"]
[161,"2610","Ленинградская область","27630757","ООО «Промэнерго»","7839320364","783901001",null,null,"WARM"]
[162,"2610","Ленинградская область","31448416","ООО «СЗТ»","7816126120","781601001",null,null,"WARM"]
[163,"2610","Ленинградская область","27883558","ООО «ТК Северная»","4703123451","470301001",null,null,"WARM"]
[164,"2610","Ленинградская область","26561655","ООО «ТСК»","4703125360","470301001",null,null,"WARM"]
[165,"2610","Ленинградская область","30872572","ООО «Энергия»","7813259980","781301001","06-09-2016 00:00:00",null,"WARM"]
[166,"2610","Ленинградская область","27566956","ООО «Энергоинвест»","4716026007","784201001",null,null,"WARM"]
[167,"2610","Ленинградская область","31007537","ООО УК \"Новоантропшино\"","4705063960","470501001",null,null,"WARM"]
[168,"2610","Ленинградская область","26526809","ООО Управляющая компания ''Оазис''","4712128456","471201001","09-06-2010 00:00:00",null,"WARM"]
[169,"2610","Ленинградская область","26640606","Обособленное подразделение ООО \"ФПГ \"РОССТРО - ЛФК\"","7811461140","471645001",null,null,"WARM"]
[170,"2610","Ленинградская область","26515797","ПАО \"ОГК-2\" филиал Киришская ГРЭС","2607018122","471543001",null,null,"WARM"]
[171,"2610","Ленинградская область","26322152","ПАО \"Россети Ленэнерго\"","7803002209","781001001",null,null,"WARM"]
[172,"2610","Ленинградская область","26539356","ПАО \"ТГК-1\" филиал \"Невский\"","7841312071","781301001",null,null,"WARM"]
[173,"2610","Ленинградская область","26524280","ПАО \"ТС\"","4712040346","471201001","09-06-2010 00:00:00",null,"WARM"]
[174,"2610","Ленинградская область","30955687","ПУ ФСБ России по г.Санкт-Петербургу и Ленинградской области","7842317080","784201001",null,null,"WARM"]
[175,"2610","Ленинградская область","26653815","СЗПК-филиал ОАО \"ЭЛТЕЗА\"","7716523950","771601001",null,null,"WARM"]
[176,"2610","Ленинградская область","26583421","СМУП \"ТСП\"","4714014006","472601001",null,null,"WARM"]
[177,"2610","Ленинградская область","31358350","СПБ ГБУЗ Туберкулезный санаторий \"Сосновый бор\"","4704022897","470401001",null,null,"WARM"]
[178,"2610","Ленинградская область","26319697","ФГУП \"НИТИ им. А.П. Александрова\"","4714000067","472650001","22-03-1994 00:00:00",null,"WARM"]
[179,"2610","Ленинградская область","26375640","ФГУП \"РНЦ \"Прикладная химия\"","7813046340","781101001",null,null,"WARM"]
[180,"2610","Ленинградская область","31105221","ФГУП \"Росморпорт\"","7702352454","780502001","15-05-2003 00:00:00",null,"WARM"]
[181,"2610","Ленинградская область","26524173","ФГУП ПЭКП НИЦ \"Курчатовский институт\"","4705014183","470501001",null,null,"WARM"]
[182,"2610","Ленинградская область","26373300","ФКУ \"Исправительная колония №3 УФСИН России по г. СПб и ЛО\"","4716003610","471601001",null,null,"WARM"]
[183,"2610","Ленинградская область","26373296","ФКУ ИК-2 УФСИН России по С-Пб и ЛО","4716000986","471601001",null,null,"WARM"]
[184,"2610","Ленинградская область","31342373","Филиал АО \"Нева Энергия\"","7802312374","471543001",null,null,"WARM"]
[185,"2610","Ленинградская область","28812394","Филиал АО «Газпром теплоэнерго» в Ленинградской области","5003046281","471043001","10-09-2014 00:00:00",null,"WARM"]
[186,"2610","Ленинградская область","30941480","Филиал ФГБУ \"ЦЖКУ\" Минобороны России по ЗВО","7729314745","784243001",null,null,"WARM"]

{"sheet":"modClassifierValidate","index":60,"n_rows":0,"n_cols":0,"rows_kept":0,"cut":false,"hidden":true,"merged":[]}

{"sheet":"modProv","index":61,"n_rows":0,"n_cols":0,"rows_kept":0,"cut":false,"hidden":true,"merged":[]}

{"sheet":"modHyp","index":62,"n_rows":0,"n_cols":0,"rows_kept":0,"cut":false,"hidden":true,"merged":[]}

{"sheet":"modServiceModule","index":63,"n_rows":0,"n_cols":0,"rows_kept":0,"cut":false,"hidden":true,"merged":[]}

{"sheet":"modList01","index":64,"n_rows":0,"n_cols":0,"rows_kept":0,"cut":false,"hidden":true,"merged":[]}

{"sheet":"modList02","index":65,"n_rows":0,"n_cols":0,"rows_kept":0,"cut":false,"hidden":true,"merged":[]}

{"sheet":"modList03","index":66,"n_rows":0,"n_cols":0,"rows_kept":0,"cut":false,"hidden":true,"merged":[]}

{"sheet":"REESTR_MO_FILTER","index":67,"n_rows":0,"n_cols":0,"rows_kept":0,"cut":false,"hidden":true,"merged":[]}

{"sheet":"REESTR_MO","index":68,"n_rows":206,"n_cols":4,"rows_kept":206,"cut":false,"hidden":true,"merged":[]}
["№","МР","МО","МО_ОКТМО"]
[1,"Бокситогорский муниципальный район","Бокситогорский муниципальный район","41603000"]
[2,"Бокситогорский муниципальный район","Бокситогорское","41603101"]
[3,"Бокситогорский муниципальный район","Большедворское","41603412"]
[4,"Бокситогорский муниципальный район","Борское","41603416"]
[5,"Бокситогорский муниципальный район","Ефимовское","41603155"]
[6,"Бокситогорский муниципальный район","Лидское","41603460"]
[7,"Бокситогорский муниципальный район","Пикалевское","41603102"]
[8,"Бокситогорский муниципальный район","Самойловское","41603476"]
[9,"Волосовский муниципальный район","Бегуницкое","41606404"]
[10,"Волосовский муниципальный район","Большеврудское","41606412"]
[11,"Волосовский муниципальный район","Волосовский муниципальный район","41606000"]
[12,"Волосовский муниципальный район","Волосовское","41606101"]
[13,"Волосовский муниципальный район","Калитинское","41606420"]
[14,"Волосовский муниципальный район","Клопицкое","41606430"]
[15,"Волосовский муниципальный район","Рабитицское","41606408"]
[16,"Волосовский муниципальный район","Сабское","41606436"]
[17,"Волховский муниципальный район","Бережковское","41609453"]
[18,"Волховский муниципальный район","Волховский муниципальный район","41609000"]
[19,"Волховский муниципальный район","Волховское","41609101"]
[20,"Волховский муниципальный район","Вындиноостровское","41609403"]
[21,"Волховский муниципальный район","Иссадское","41609418"]
[22,"Волховский муниципальный район","Кисельнинское","41609471"]
[23,"Волховский муниципальный район","Колчановское","41609427"]
[24,"Волховский муниципальный район","Новоладожское","41609104"]
[25,"Волховский муниципальный район","Пашское","41609444"]
[26,"Волховский муниципальный район","Потанинское","41609450"]
[27,"Волховский муниципальный район","Свирицкое","41609480"]
[28,"Волховский муниципальный район","Селивановское","41609461"]
[29,"Волховский муниципальный район","Староладожское","41609462"]
[30,"Волховский муниципальный район","Сясьстройское","41609108"]
[31,"Волховский муниципальный район","Усадищенское","41609465"]
[32,"Волховский муниципальный район","Хваловское","41609468"]
[33,"Всеволожский муниципальный район","Агалатовское","41612408"]
[34,"Всеволожский муниципальный район","Бугровское","41612402"]
[35,"Всеволожский муниципальный район","Всеволожский муниципальный район","41612000"]
[36,"Всеволожский муниципальный район","Всеволожское","41612101"]
[37,"Всеволожский муниципальный район","Дубровское","41612154"]
[38,"Всеволожский муниципальный район","Заневское","41612155"]
[39,"Всеволожский муниципальный район","Колтушское","41612416"]
[40,"Всеволожский муниципальный район","Кузьмоловское","41612158"]
[41,"Всеволожский муниципальный район","Куйвозовское","41612420"]
[42,"Всеволожский муниципальный район","Лесколовское","41612424"]
[43,"Всеволожский муниципальный район","Морозовское","41612163"]
[44,"Всеволожский муниципальный район","Муринское","41612103"]
[45,"Всеволожский муниципальный район","Новодевяткинское","41612458"]
[46,"Всеволожский муниципальный район","Рахьинское","41612167"]
[47,"Всеволожский муниципальный район","Романовское","41612442"]
[48,"Всеволожский муниципальный район","Свердловское","41612168"]
[49,"Всеволожский муниципальный район","Сертоловское","41612102"]
[50,"Всеволожский муниципальный район","Токсовское","41612175"]
[51,"Всеволожский муниципальный район","Щегловское","41612448"]
[52,"Всеволожский муниципальный район","Юкковское","41612456"]
[53,"Выборгский муниципальный район","Выборгский муниципальный район","41615000"]
[54,"Выборгский муниципальный район","Выборгское","41615101"]
[55,"Выборгский муниципальный район","Высоцкое","41615104"]
[56,"Выборгский муниципальный район","Гончаровское","41615492"]
[57,"Выборгский муниципальный район","Каменногорское","41615106"]
[58,"Выборгский муниципальный район","Красносельское","41615436"]
[59,"Выборгский муниципальный район","Первомайское","41615460"]
[60,"Выборгский муниципальный район","Полянское","41615464"]
[61,"Выборгский муниципальный район","Приморское","41615108"]
[62,"Выборгский муниципальный район","Рощинское","41615158"]
[63,"Выборгский муниципальный район","Светогорское","41615114"]
[64,"Выборгский муниципальный район","Селезневское","41615476"]
[65,"Выборгский муниципальный район","Советское","41615163"]
[66,"Гатчинский муниципальный район","Большеколпанское","41618408"]
[67,"Гатчинский муниципальный район","Веревское","41618416"]
[68,"Гатчинский муниципальный район","Войсковицкое","41618418"]
[69,"Гатчинский муниципальный район","Вырицкое","41618154"]
[70,"Гатчинский муниципальный район","Гатчинский муниципальный район","41618000"]
[71,"Гатчинский муниципальный район","Гатчинское","41618101"]
[72,"Гатчинский муниципальный район","Дружногорское","41618156"]
[73,"Гатчинский муниципальный район","Елизаветинское","41618424"]
[74,"Гатчинский муниципальный район","Кобринское","41618426"]
[75,"Гатчинский муниципальный район","Коммунарское","41618105"]
[76,"Гатчинский муниципальный район","Новосветское","41618444"]
[77,"Гатчинский муниципальный район","Пудомягское","41618404"]
[78,"Гатчинский муниципальный район","Пудостьское","41618448"]
[79,"Гатчинский муниципальный район","Рождественское","41618452"]
[80,"Гатчинский муниципальный район","Сиверское","41618169"]
[81,"Гатчинский муниципальный район","Сусанинское","41618460"]
[82,"Гатчинский муниципальный район","Сяськелевское","41618461"]
[83,"Гатчинский муниципальный район","Тайцкое","41618176"]
[84,"Кингисеппский муниципальный район","Большелуцкое","41621404"]
[85,"Кингисеппский муниципальный район","Вистинское","41621452"]
[86,"Кингисеппский муниципальный район","Ивангородское","41621102"]
[87,"Кингисеппский муниципальный район","Кингисеппский муниципальный район","41621000"]
[88,"Кингисеппский муниципальный район","Кингисеппское","41621101"]
[89,"Кингисеппский муниципальный район","Котельское","41621420"]
[90,"Кингисеппский муниципальный район","Куземкинское","41621432"]
[91,"Кингисеппский муниципальный район","Нежновское","41621440"]
[92,"Кингисеппский муниципальный район","Опольевское","41621444"]
[93,"Кингисеппский муниципальный район","Пустомержское","41621448"]
[94,"Кингисеппский муниципальный район","Усть-Лужское","41621428"]
[95,"Кингисеппский муниципальный район","Фалилеевское","41621412"]
[96,"Киришский муниципальный район","Будогощское","41624152"]
[97,"Киришский муниципальный район","Глажевское","41624412"]
[98,"Киришский муниципальный район","Киришский муниципальный район","41624000"]
[99,"Киришский муниципальный район","Киришское","41624101"]
[100,"Киришский муниципальный район","Кусинское","41624423"]
[101,"Киришский муниципальный район","Пчевжинское","41624427"]
[102,"Киришский муниципальный район","Пчевское","41624428"]
[103,"Кировский муниципальный район","Кировский муниципальный район","41625000"]
[104,"Кировский муниципальный район","Кировское","41625101"]
[105,"Кировский муниципальный район","Мгинское","41625154"]
[106,"Кировский муниципальный район","Назиевское","41625156"]
[107,"Кировский муниципальный район","Отрадненское","41625104"]
[108,"Кировский муниципальный район","Павловское","41625158"]
[109,"Кировский муниципальный район","Приладожское","41625160"]
[110,"Кировский муниципальный район","Путиловское","41625440"]
[111,"Кировский муниципальный район","Синявинское","41625163"]
[112,"Кировский муниципальный район","Суховское","41625445"]
[113,"Кировский муниципальный район","Шлиссельбургское","41625102"]
[114,"Кировский муниципальный район","Шумское","41625450"]
[115,"Лодейнопольский муниципальный район","Алеховщинское","41627404"]
[116,"Лодейнопольский муниципальный район","Доможировское","41627410"]
[117,"Лодейнопольский муниципальный район","Лодейнопольский муниципальный район","41627000"]
[118,"Лодейнопольский муниципальный район","Лодейнопольское","41627101"]
[119,"Лодейнопольский муниципальный район","Свирьстройское","41627154"]
[120,"Лодейнопольский муниципальный район","Янегское","41627420"]
[121,"Ломоносовский муниципальный район","Аннинское","41630152"]
[122,"Ломоносовский муниципальный район","Большеижорское","41630154"]
[123,"Ломоносовский муниципальный район","Виллозское","41630157"]
[124,"Ломоносовский муниципальный район","Горбунковское","41630424"]
[125,"Ломоносовский муниципальный район","Гостилицкое","41630420"]
[126,"Ломоносовский муниципальный район","Кипенское","41630428"]
[127,"Ломоносовский муниципальный район","Копорское","41630432"]
[128,"Ломоносовский муниципальный район","Лаголовское","41630434"]
[129,"Ломоносовский муниципальный район","Лебяженское","41630162"]
[130,"Ломоносовский муниципальный район","Ломоносовский муниципальный район","41630000"]
[131,"Ломоносовский муниципальный район","Лопухинское","41630436"]
[132,"Ломоносовский муниципальный район","Низинское","41630408"]
[133,"Ломоносовский муниципальный район","Оржицкое","41630438"]
[134,"Ломоносовский муниципальный район","Пениковское","41630412"]
[135,"Ломоносовский муниципальный район","Ропшинское","41630440"]
[136,"Ломоносовский муниципальный район","Русско-Высоцкое","41630444"]
[137,"Лужский муниципальный район","Володарское","41633408"]
[138,"Лужский муниципальный район","Волошовское","41633416"]
[139,"Лужский муниципальный район","Дзержинское","41633420"]
[140,"Лужский муниципальный район","Заклинское","41633436"]
[141,"Лужский муниципальный район","Лужский муниципальный район","41633000"]
[142,"Лужский муниципальный район","Лужское","41633101"]
[143,"Лужский муниципальный район","Мшинское","41633440"]
[144,"Лужский муниципальный район","Оредежское","41633444"]
[145,"Лужский муниципальный район","Осьминское","41633448"]
[146,"Лужский муниципальный район","Ретюнское","41633488"]
[147,"Лужский муниципальный район","Серебрянское","41633464"]
[148,"Лужский муниципальный район","Скребловское","41633468"]
[149,"Лужский муниципальный район","Толмачевское","41633154"]
[150,"Лужский муниципальный район","Торковичское","41633478"]
[151,"Лужский муниципальный район","Ям-Тесовское","41633456"]
[152,"Подпорожский муниципальный район","Важинское","41636154"]
[153,"Подпорожский муниципальный район","Винницкое","41636404"]
[154,"Подпорожский муниципальный район","Вознесенское","41636158"]
[155,"Подпорожский муниципальный район","Никольское","41636163"]
[156,"Подпорожский муниципальный район","Подпорожский муниципальный район","41636000"]
[157,"Подпорожский муниципальный район","Подпорожское","41636101"]
[158,"Приозерский муниципальный район","Громовское","41639412"]
[159,"Приозерский муниципальный район","Запорожское","41639416"]
[160,"Приозерский муниципальный район","Красноозерное","41639420"]
[161,"Приозерский муниципальный район","Кузнечнинское","41639154"]
[162,"Приозерский муниципальный район","Ларионовское","41639424"]
[163,"Приозерский муниципальный район","Мельниковское","41639428"]
[164,"Приозерский муниципальный район","Мичуринское","41639432"]
[165,"Приозерский муниципальный район","Петровское","41639440"]
[166,"Приозерский муниципальный район","Плодовское","41639436"]
[167,"Приозерский муниципальный район","Приозерский муниципальный район","41639000"]
[168,"Приозерский муниципальный район","Приозерское","41639101"]
[169,"Приозерский муниципальный район","Раздольевское","41639408"]
[170,"Приозерский муниципальный район","Ромашкинское","41639434"]
[171,"Приозерский муниципальный район","Севастьяновское","41639404"]
[172,"Приозерский муниципальный район","Сосновское","41639444"]
[173,"Сланцевский муниципальный район","Выскатское","41642404"]
[174,"Сланцевский муниципальный район","Гостицкое","41642424"]
[175,"Сланцевский муниципальный район","Загривское","41642408"]
[176,"Сланцевский муниципальный район","Новосельское","41642420"]
[177,"Сланцевский муниципальный район","Сланцевский муниципальный район","41642000"]
[178,"Сланцевский муниципальный район","Сланцевское","41642101"]
[179,"Сланцевский муниципальный район","Старопольское","41642436"]
[180,"Сланцевский муниципальный район","Черновское","41642440"]
[181,"Сосновоборский городской округ","Сосновоборский городской округ","41754000"]
[182,"Тихвинский муниципальный район","Борское","41645410"]
[183,"Тихвинский муниципальный район","Ганьковское","41645412"]
[184,"Тихвинский муниципальный район","Горское","41645416"]
[185,"Тихвинский муниципальный район","Коськовское","41645472"]
[186,"Тихвинский муниципальный район","Мелегежское","41645408"]
[187,"Тихвинский муниципальный район","Пашозерское","41645456"]
[188,"Тихвинский муниципальный район","Тихвинский муниципальный район","41645000"]
[189,"Тихвинский муниципальный район","Тихвинское","41645101"]
[190,"Тихвинский муниципальный район","Цвылевское","41645432"]
[191,"Тихвинский муниципальный район","Шугозерское","41645477"]
[192,"Тосненский муниципальный район","Красноборское","41648154"]
[193,"Тосненский муниципальный район","Лисинское","41648430"]
[194,"Тосненский муниципальный район","Любанское","41648105"]
[195,"Тосненский муниципальный район","Никольское","41648108"]
[196,"Тосненский муниципальный район","Нурминское","41648418"]
[197,"Тосненский муниципальный район","Рябовское","41648160"]
[198,"Тосненский муниципальный район","Тельмановское","41648443"]
[199,"Тосненский муниципальный район","Тосненский муниципальный район","41648000"]
[200,"Тосненский муниципальный район","Тосненское","41648101"]
[201,"Тосненский муниципальный район","Трубникоборское","41648444"]
[202,"Тосненский муниципальный район","Ульяновское","41648164"]
[203,"Тосненский муниципальный район","Фёдоровское","41648165"]
[204,"Тосненский муниципальный район","Форносовское","41648170"]
[205,"Тосненский муниципальный район","Шапкинское","41648464"]

{"sheet":"modInfo","index":69,"n_rows":36,"n_cols":2,"rows_kept":36,"cut":false,"hidden":true,"merged":[]}
[null,"Титульный"]
[null,"Для выбора того или иного источника публикации выполните двойной щелчок по синей ячейке напротив соответствующего источника.\nВНИМАНИЕ! Если Вы снимаете галочку с пункта, то будут скрыты и очищены соответствующие строки на листе \"Форма 1.0.2\"!\n\nОпубликование перечисленных в шаблоне показателей на сайте организации в сети Интернет и в печатных изданиях не обязательно, если данный шаблон предоставлен по системе ЕИАС (региональный сегмент)."]
[null,"Обязательное опубликование на официальном сайте органа исполнительной власти субъекта Российской Федерации в области государственного регулирования цен (тарифов), и (или) на официальном сайте органа местного самоуправления поселения или городского округа в случае их наделения в соответствии с законом субъекта Российской Федерации полномочиями по государственному регулированию цен (тарифов)предусмотрено пунктом 3 (а) постановления Правительства №6 от 17.01.2013г."]
[null,"Задайте период регулирования, выбрав даты начала и окончания периода регулирования из календаря (иконка справа от указанной ячейки), либо введите дату непосредственно в ячейку в формате - 'ДД.ММ.ГГГГ'"]
[null,"Шаблон заполняется раздельно по каждому виду тарифа"]
[null,"В зависимости от указанного вида деятельности будут доступны для заполнения поля 'Производство', 'Передача' и 'Сбыт'"]
[null,"Если выбрано 'да', на листах с разбивкой по потребителям доступны для заполнения графы для двухставочного ставочного тарифа по группам потребителей"]
[null,"Если выбрано 'да', значения тарифов для групп потребителей на листах с разбивкой по потребителям заполнятся автоматически значениями первой группы"]
[null,"Если выбрано значение «да» - в шаблоне будет сформирован лист «Форма 1.0.2» для уведомления органа регулирования о публикации информации в печатных изданиях"]
[null,"По умолчанию установлено значение «первичное раскрытие информации» Это означает, что информация раскрывается в соответствии с установленными сроком и периодичностью. В случае если в уже отправленном шаблоне обнаружена ошибка или произошло изменение информации, исправленный шаблон необходимо отправить с типом отчета «изменения в раскрытой ранее информации». "]
[null,"Укажите является ли данное юридическое лицо подразделением(филиалом) другой организации"]
[null,"Ссылки на публикации"]
[null,"Вводите адрес сайта, не нарушая цвет ячейки /если копируете гиперссылку из браузера, то выполните двойной щелчок по ячейке и только после этого можете вставить скопированный элемент/"]
[null,"Обосновывающие материалы необходимо загружать с помощью \"ЕИАС Мониторинг\". Ссылка на инструкцию по загрузке обосновывающих материалов расположена на листе 'Инструкция' в п.'Методология заполнения'.\n\nВвводите ссылку, не нарушая цвет ячейки /если копируете гиперссылку из браузера, то выполните двойной щелчок по ячейке и только после этого можете вставить скопированный элемент/."]
[null,"Если для какого-либо пункта графы 'Наименование источника (сайта или печатного издания)' информация не раскрывалась, то в соответствующем поле укажите - 'не раскрывалась'"]
[null,"Список МО"]
[null,"В случае, если тариф не дифференцируется по системам теплоснабжения, перечислите все муниципальные районы, в которых организация осуществляет услуги теплоснабжения и сфере оказания услуг по передаче тепловой энергии"]
[null,"В случае, если тариф не дифференцируется по системам теплоснабжения, перечислите все муниципальные образования, в которых организация осуществляет услуги теплоснабжения и сфере оказания услуг по передаче тепловой энергии"]
[null,"Признак дифференциации тарифа"]
[null,"В случае, если тариф не дифференцируется по системам теплоснабжения, укажите \"1\".\nВведите значение от 1 до 100, чтобы указать очередной условный порядковый номер системы теплоснабжения"]
[null,"Стандарты"]
[null,"В качестве примечания Вы можете указать единицу измерения"]
[]
[null,"Для корректного формирования Таблицы 25 Формы 1.10 необходимо задать разбивку по диаметрам и способу прокладки тепловых сетей"]
[]
[null,"Перечень тарифов"]
[null,"Указывается наименование тарифа в случае утверждения нескольких тарифов.\nВ случае наличия нескольких тарифов информация по ним указывается в отдельных строках."]
[null,"Укажите «Да» в поле «Да/Нет», если дифференциация используется.\nВ поле «Описание» указывается наименование территории действия тарифа при наличии дифференциации тарифа по территориальному признаку.\nВ случае дифференциации тарифов по территориальному признаку информация по ним указывается в отдельных строках."]
[null,"Признаки дифференциации указываются в соответствии с п.6 ст.32 ФЗ РФ от 07.12.2011 №416-ФЗ"]
[null,"Укажите «Да» в поле «Да/Нет», если дифференциация используется. В поле «Описание» укажите название ЦС ГВС или любое другое описание"]
[]
[null,"Территории"]
[1,"Наименование территории действия тарифа для целей идентификации"]
[2,"Муниципальные районы и муниципальные образования, на территории которых действует тариф"]
[null,"Инструкция"]
[null,"Нет доступных обновлений, версия отчёта актуальна"]

{"sheet":"modList05","index":70,"n_rows":0,"n_cols":0,"rows_kept":0,"cut":false,"hidden":true,"merged":[]}

{"sheet":"modList06","index":71,"n_rows":0,"n_cols":0,"rows_kept":0,"cut":false,"hidden":true,"merged":[]}

{"sheet":"modList07","index":72,"n_rows":0,"n_cols":0,"rows_kept":0,"cut":false,"hidden":true,"merged":[]}

{"sheet":"modList11","index":73,"n_rows":0,"n_cols":0,"rows_kept":0,"cut":false,"hidden":true,"merged":[]}

{"sheet":"modList12","index":74,"n_rows":0,"n_cols":0,"rows_kept":0,"cut":false,"hidden":true,"merged":[]}

{"sheet":"modfrmDateChoose","index":75,"n_rows":0,"n_cols":0,"rows_kept":0,"cut":false,"hidden":true,"merged":[]}

{"sheet":"modComm","index":76,"n_rows":0,"n_cols":0,"rows_kept":0,"cut":false,"hidden":true,"merged":[]}

{"sheet":"modThisWorkbook","index":77,"n_rows":0,"n_cols":0,"rows_kept":0,"cut":false,"hidden":true,"merged":[]}

{"sheet":"modfrmReestrMR","index":78,"n_rows":0,"n_cols":0,"rows_kept":0,"cut":false,"hidden":true,"merged":[]}

{"sheet":"modfrmCheckUpdates","index":79,"n_rows":0,"n_cols":0,"rows_kept":0,"cut":false,"hidden":true,"merged":[]}